Capital or Revenue,Directorate,Transaction Number,Date,Service Area,Expenses Type,Amount,Supplier Name
Capital,Corporate Items,5105646548,26.08.2015,Balance Sheet,Grounds Maintenance,"1,500.00",REDACTED PERSONAL DATA
Revenue,Place,5105645530,12.08.2015,Tree Felling / Replacement,Payment to Private Contractors,120.00,REDACTED PERSONAL DATA
Revenue,Childrens Services,5105643571,12.08.2015,LSCB (Local Safeguarding Childrens Board),Consultants Fees,700.00,REDACTED PERSONAL DATA
Revenue,Childrens Services,5105643578,12.08.2015,LSCB (Local Safeguarding Childrens Board),Consultants Fees,"5,950.00",REDACTED PERSONAL DATA
Revenue,Childrens Services,5105645595,14.08.2015,LSCB (Local Safeguarding Childrens Board),Consultants Fees,"6,650.00",REDACTED PERSONAL DATA
Revenue,Childrens Services,5105643971,12.08.2015,LSCB (Local Safeguarding Childrens Board),Consultants Fees,"2,450.00",REDACTED PERSONAL DATA
Revenue,Managing Director,5105646194,14.08.2015,Community Support Officers,Vehicle Maintenance Costs,45.00,ISLANDWIDE WINDSCREENS
Revenue,Place,5105647527,28.08.2015,Rights of Way Operations,Vehicle Maintenance Costs,50.00,ISLANDWIDE WINDSCREENS
Revenue,Adult Services,5105646194,14.08.2015,Gouldings Resource Centre,Vehicle Maintenance Costs,397.79,ISLANDWIDE WINDSCREENS
Revenue,Adult Services,5105646594,19.08.2015,Advocacy Services (IMCA & IMHA),Charges from Independent Providers,300.00,REDACTED PERSONAL DATA
Capital,Corporate Items,5105646739,19.08.2015,Balance Sheet,Security of Buildings,600.00,REDACTED PERSONAL DATA
Capital,Corporate Items,5105646739,19.08.2015,Balance Sheet,Security of Buildings,27.00,REDACTED PERSONAL DATA
Revenue,Childrens Services,5105647824,28.08.2015,Old Cowes Enterprise College,Security of Buildings,375.00,REDACTED PERSONAL DATA
Revenue,Place,5105647824,28.08.2015,Non-operational buildings,Security of Buildings,100.00,REDACTED PERSONAL DATA
Revenue,Childrens Services,5105643565,05.08.2015,Clatterford Pupil Referral Unit (PRU),Security of Buildings,60.00,REDACTED PERSONAL DATA
Revenue,Place,5105647824,28.08.2015,Church View Ventnor,Security of Buildings,100.00,REDACTED PERSONAL DATA
Revenue,Place,5105647824,28.08.2015,York Centre E Cowes,Security of Buildings,150.00,REDACTED PERSONAL DATA
Revenue,Place,5105647824,28.08.2015,"Westridge, Ryde",Security of Buildings,25.00,REDACTED PERSONAL DATA
Revenue,Childrens Services,5105643565,05.08.2015,Hunnyhill Primary School Disposal,Security of Buildings,310.00,REDACTED PERSONAL DATA
Revenue,Childrens Services,5105643565,05.08.2015,Sandham Middle School Disposal,Security of Buildings,"1,620.00",REDACTED PERSONAL DATA
Revenue,Childrens Services,5105643565,05.08.2015,Sandham Middle School Disposal,Security of Buildings,50.00,REDACTED PERSONAL DATA
Revenue,Childrens Services,5105647824,28.08.2015,Youth- Ryde  (Well St),Security of Buildings,"1,240.00",REDACTED PERSONAL DATA
Revenue,Place,5105647824,28.08.2015,Victoria Recreation Ground,Security of Buildings,100.00,REDACTED PERSONAL DATA
Revenue,Place,5105647824,28.08.2015,"Atkinson Drive, Newport",Security of Buildings,75.00,REDACTED PERSONAL DATA
Revenue,Childrens Services,5105647824,28.08.2015,Island Youth Water Activity Centre,Security of Buildings,100.00,REDACTED PERSONAL DATA
Revenue,Place,5105647824,28.08.2015,Somerton Industrial Park,Security of Buildings,100.00,REDACTED PERSONAL DATA
Revenue,Childrens Services,5105647824,28.08.2015,Youth- Cowes,Security of Buildings,100.00,REDACTED PERSONAL DATA
Revenue,Place,5105647824,28.08.2015,Carisbrooke Contact Centre,Security of Buildings,100.00,REDACTED PERSONAL DATA
Revenue,Childrens Services,5105643984,07.08.2015,Core Programmes,Training,780.00,CD & CD ARIS (TRAINING ERA)
Revenue,Adult Services,5105646978,21.08.2015,Seagulls,Maintenance of Operational Equipment,25.00,CHRIS' DOMESTIC SERVICES
Revenue,Childrens Services,5105647046,21.08.2015,Youth Offending Team,Printing Costs,137.50,INGENIOS DESIGN UK
Revenue,Childrens Services,5105645555,12.08.2015,Special Educational Needs Transport,Taxis - Contract Hire,645.00,CLARES CABS
Revenue,Place,5105645582,12.08.2015,Coroner,Professional Services,106.54,REDACTED PERSONAL DATA
Revenue,Place,5105645582,12.08.2015,Coroner,Professional Services,124.32,REDACTED PERSONAL DATA
Revenue,Place,5105645582,12.08.2015,Coroner,Professional Services,21.10,REDACTED PERSONAL DATA
Revenue,Place,5105645582,12.08.2015,Coroner,Professional Services,301.92,REDACTED PERSONAL DATA
Revenue,Place,5105645582,12.08.2015,Coroner,Professional Services,568.32,REDACTED PERSONAL DATA
Revenue,Childrens Services,5105646573,19.08.2015,Short Breaks,Charges from Independent Providers,584.00,REDACTED PERSONAL DATA
Revenue,Childrens Services,5105642408,07.08.2015,Visually Impaired Service,Consultants Fees,376.25,REDACTED PERSONAL DATA
Revenue,Adult Services,5105647816,28.08.2015,Local Safeguarding Adults Board,Consultants Fees,"2,294.65",REDACTED PERSONAL DATA
Revenue,Place,5105647079,21.08.2015,Duke of Edingburgh Award,Professional Services,685.00,REDACTED PERSONAL DATA
Revenue,Childrens Services,5105643906,07.08.2015,Island Learning Centre,Bought in Prof Services - Curriculum (Schools),"3,235.00",ISLAND EQUUS
Revenue,Place,5105645539,12.08.2015,Road Safety,Professional Services,200.00,REDACTED PERSONAL DATA
Revenue,Place,5105645539,12.08.2015,Road Safety,Professional Services,10.00,REDACTED PERSONAL DATA
Revenue,Childrens Services,5105645934,12.08.2015,Leaving Care Costs,Payments to/Aid Provided to Clients,150.00,REDACTED PERSONAL DATA
Revenue,Childrens Services,5105645934,12.08.2015,Leaving Care Costs,Payments to/Aid Provided to Clients,62.00,REDACTED PERSONAL DATA
Revenue,Place,5105647122,26.08.2015,Leaseholds by LA,Accommodation Costs - Leaseholder Payments,695.89,REDACTED PERSONAL DATA
Revenue,Place,5105647122,26.08.2015,Leaseholds by LA,Accommodation Costs - Leaseholder Payments,695.89,REDACTED PERSONAL DATA
Revenue,Place,5105647122,26.08.2015,Leaseholds by LA,Accommodation Costs - Leaseholder Payments,695.89,REDACTED PERSONAL DATA
Revenue,Place,5105647122,26.08.2015,Leaseholds by LA,Accommodation Costs - Leaseholder Payments,695.89,REDACTED PERSONAL DATA
Revenue,Place,5105647122,26.08.2015,Leaseholds by LA,Accommodation Costs - Leaseholder Payments,695.89,REDACTED PERSONAL DATA
Revenue,Place,5105643964,07.08.2015,Business Support  - Fire,Property Services - Planned Maintenance,160.00,REDACTED PERSONAL DATA
Revenue,Place,5105643995,07.08.2015,Business Support  - Fire,Prop Svs only - Day to day mtce,367.17,REDACTED PERSONAL DATA
Revenue,Place,5105643371,05.08.2015,Business Support  - Fire,Prop Svs only - Day to day mtce,60.00,REDACTED PERSONAL DATA
Capital,Corporate Items,5105647458,28.08.2015,Balance Sheet,Minor Works,300.00,REDACTED PERSONAL DATA
Capital,Corporate Items,5105643941,07.08.2015,Balance Sheet,Minor Works,"1,587.89",REDACTED PERSONAL DATA
Revenue,Place,5105643994,07.08.2015,Medina Leisure Centre,Property Services - Planned Maintenance,100.00,REDACTED PERSONAL DATA
Revenue,Place,5105646721,19.08.2015,Medina Leisure Centre,Prop Svs only - Day to day mtce,90.00,REDACTED PERSONAL DATA
Revenue,Place,5105646290,14.08.2015,Medina Leisure Centre,Prop Svs only - Day to day mtce,108.00,REDACTED PERSONAL DATA
Revenue,Place,5105644467,07.08.2015,Bembridge Library,Prop Svs only - Day to day mtce,198.12,REDACTED PERSONAL DATA
Revenue,Place,5105643991,07.08.2015,Ryde Library,Property Services - Planned Maintenance,228.30,REDACTED PERSONAL DATA
Revenue,Place,5105644460,07.08.2015,Archaeology,Property Services - Planned Maintenance,280.00,REDACTED PERSONAL DATA
Revenue,Place,5105644466,07.08.2015,Medina Leisure Centre,Prop Svs only - Day to day mtce,172.00,REDACTED PERSONAL DATA
Revenue,Adult Services,5105643344,05.08.2015,S75 Integrated Community Equipment Store,Fixtures and Fittings,107.05,REDACTED PERSONAL DATA
Revenue,Adult Services,5105643593,05.08.2015,Gouldings Resource Centre,Prop Svs only - Day to day mtce,90.00,REDACTED PERSONAL DATA
Revenue,Adult Services,5105647823,28.08.2015,Gouldings Resource Centre,Maintenance of Operational Equipment,90.00,REDACTED PERSONAL DATA
Revenue,Adult Services,5105643566,05.08.2015,Gouldings Resource Centre,Maintenance of Operational Equipment,60.00,REDACTED PERSONAL DATA
Revenue,Place,5105646621,19.08.2015,Non-operational buildings,Property Services - Planned Maintenance,65.00,REDACTED PERSONAL DATA
Revenue,Place,5105647005,21.08.2015,Newport Library,Prop Svs only - Day to day mtce,90.00,REDACTED PERSONAL DATA
Revenue,Place,5105644464,07.08.2015,Ventnor Library,Property Services - Planned Maintenance,100.00,REDACTED PERSONAL DATA
Revenue,Childrens Services,5105644462,07.08.2015,Beaulieu House,Minor Works,100.00,REDACTED PERSONAL DATA
Revenue,Childrens Services,5105646623,19.08.2015,Family Support activity base: 76 Greenlands,Minor Works,100.00,REDACTED PERSONAL DATA
Revenue,Childrens Services,5105647062,21.08.2015,Branstone Farm Studies Centre,Prop Svs only - Day to day mtce,74.00,REDACTED PERSONAL DATA
Revenue,Childrens Services,5105645955,19.08.2015,Branstone Farm Studies Centre,Property Services - Planned Maintenance,240.00,REDACTED PERSONAL DATA
Revenue,Childrens Services,5105643519,05.08.2015,Island Learning Centre,Minor Works,90.00,REDACTED PERSONAL DATA
Revenue,Place,5105645495,12.08.2015,"Bugle House,Newport",Property Services - Planned Maintenance,200.00,REDACTED PERSONAL DATA
Revenue,Place,5105643569,05.08.2015,"Jubilee Stores, Newport",Prop Svs only - Day to day mtce,60.00,REDACTED PERSONAL DATA
Revenue,Place,5105644465,07.08.2015,"County Hall,Newport",Property Services - Planned Maintenance,160.00,REDACTED PERSONAL DATA
Revenue,Childrens Services,5105644459,07.08.2015,Childrens Centres Maintenance,Minor Works,100.00,REDACTED PERSONAL DATA
Revenue,Place,5105645952,19.08.2015,The Heights,Property Services - Planned Maintenance,873.58,REDACTED PERSONAL DATA
Revenue,Place,5105643992,07.08.2015,The Heights,Prop Svs only - Day to day mtce,497.00,REDACTED PERSONAL DATA
Revenue,Adult Services,5105643993,07.08.2015,Adelaide Resource Centre,Property Services - Planned Maintenance,660.00,REDACTED PERSONAL DATA
Revenue,Adult Services,5105647013,21.08.2015,Adelaide Resource Centre,Maintenance of Operational Equipment,90.00,REDACTED PERSONAL DATA
Revenue,Adult Services,5105647020,26.08.2015,Adelaide Resource Centre,Maintenance of Operational Equipment,322.00,REDACTED PERSONAL DATA
Revenue,Place,5105643989,07.08.2015,Downside Community & Learning Centre,Minor Works,100.00,REDACTED PERSONAL DATA
Revenue,Adult Services,5105646423,19.08.2015,DoLS/MCA,Payments to Voluntary and Other Associations,737.28,REDACTED PERSONAL DATA
Revenue,Childrens Services,5105642449,07.08.2015,Leaving Care Costs,Charges from Independent Providers,"2,571.48",NUMBER5NEWPORT
Revenue,Childrens Services,5105647818,28.08.2015,Leaving Care Costs,Charges from Independent Providers,"3,432.63",NUMBER5NEWPORT
Revenue,Childrens Services,5105647819,28.08.2015,Leaving Care Costs,Charges from Independent Providers,"2,613.90",NUMBER5NEWPORT
Revenue,Childrens Services,5105646164,14.08.2015,Complaints (Children & Families),Professional Services,7.64,REDACTED PERSONAL DATA
Revenue,Childrens Services,5105646164,14.08.2015,Complaints (Children & Families),Professional Services,50.00,REDACTED PERSONAL DATA
Revenue,Childrens Services,5105646164,14.08.2015,Complaints (Children & Families),Professional Services,148.00,REDACTED PERSONAL DATA
Revenue,Childrens Services,5105646164,14.08.2015,Complaints (Children & Families),Professional Services,206.64,REDACTED PERSONAL DATA
Revenue,Childrens Services,5105646164,14.08.2015,Complaints (Children & Families),Professional Services,216.00,REDACTED PERSONAL DATA
Revenue,Childrens Services,5105646164,14.08.2015,Complaints (Children & Families),Professional Services,"1,207.45",REDACTED PERSONAL DATA
Revenue,Childrens Services,5105647113,26.08.2015,Complaints (Children & Families),Professional Services,"1,117.25",REDACTED PERSONAL DATA
Revenue,Childrens Services,5105647113,26.08.2015,Complaints (Children & Families),Professional Services,90.00,REDACTED PERSONAL DATA
Revenue,Childrens Services,5105647113,26.08.2015,Complaints (Children & Families),Professional Services,67.20,REDACTED PERSONAL DATA
Revenue,Childrens Services,5105646138,14.08.2015,Island Learning Centre,Taxis - Contract Hire,655.00,LAKE TAXIS
Revenue,Childrens Services,5105645926,12.08.2015,Island Learning Centre,Taxis - Contract Hire,120.50,LAKE TAXIS
Revenue,Place,5105647141,26.08.2015,Leaseholds by LA,Accommodation Costs - Leaseholder Payments,866.67,2K PROPERTY
Revenue,Place,5105643942,12.08.2015,Project Manager Waste Strategy,Computer Software & Consumables,461.25,4 PROJECTS LIMITED
Revenue,Place,5105646710,26.08.2015,Project Manager Waste Strategy,Computer Software & Consumables,461.25,4 PROJECTS LIMITED
Revenue,Childrens Services,5105644010,07.08.2015,Purchased Fostering,Transport of Clients,327.70,5 FOSTERING
Revenue,Childrens Services,5105644010,07.08.2015,Purchased Fostering,Charges from Independent Providers,"4,251.65",5 FOSTERING
Revenue,Childrens Services,5105645540,12.08.2015,Purchased Fostering,Charges from Independent Providers,"4,251.65",5 FOSTERING
Revenue,Adult Services,5105643558,05.08.2015,Gouldings Resource Centre,Consumable Cleaning Materials,176.00,A & M APPLIANCE CARE
Revenue,Adult Services,5105647218,26.08.2015,Gouldings Resource Centre,Consumable Cleaning Materials,150.00,A & M APPLIANCE CARE
Revenue,Adult Services,5105647226,26.08.2015,Highmead,Minor Works,55.00,A & M APPLIANCE CARE
Revenue,Place,5105647212,26.08.2015,Fire Technical Support,Stock Purchases,120.00,A & M APPLIANCE CARE
Revenue,Place,5105647212,26.08.2015,Fire Technical Support,Stock Purchases,30.00,A & M APPLIANCE CARE
Revenue,Adult Services,5105643564,05.08.2015,Adelaide Resource Centre,Consumable Cleaning Materials,246.00,A & M APPLIANCE CARE
Revenue,Childrens Services,5105647566,28.08.2015,Special Guardianship Order Costs,Support Children,168.39,REDACTED PERSONAL DATA
Revenue,Childrens Services,5105647566,28.08.2015,Special Guardianship Order Costs,Support Children,207.73,REDACTED PERSONAL DATA
Revenue,Childrens Services,5105646009,14.08.2015,Special Guardianship Order Costs,Support Children,168.39,REDACTED PERSONAL DATA
Revenue,Childrens Services,5105646009,14.08.2015,Special Guardianship Order Costs,Support Children,207.73,REDACTED PERSONAL DATA
Revenue,Childrens Services,5105646838,21.08.2015,Special Guardianship Order Costs,Support Children,168.39,REDACTED PERSONAL DATA
Revenue,Childrens Services,5105646838,21.08.2015,Special Guardianship Order Costs,Support Children,207.73,REDACTED PERSONAL DATA
Revenue,Childrens Services,5105643772,07.08.2015,Special Guardianship Order Costs,Support Children,207.73,REDACTED PERSONAL DATA
Revenue,Childrens Services,5105643772,07.08.2015,Special Guardianship Order Costs,Support Children,168.39,REDACTED PERSONAL DATA
Revenue,Childrens Services,5105646076,14.08.2015,Leaving Care Costs,Support Children,120.89,REDACTED PERSONAL DATA
Revenue,Childrens Services,5105643839,07.08.2015,Leaving Care Costs,Support Children,120.89,REDACTED PERSONAL DATA
Revenue,Childrens Services,5105647631,28.08.2015,Leaving Care Costs,Support Children,120.89,REDACTED PERSONAL DATA
Revenue,Childrens Services,5105646076,14.08.2015,Leaving Care Costs,Accommodation Costs - Service Users,68.50,REDACTED PERSONAL DATA
Revenue,Childrens Services,5105646904,21.08.2015,Leaving Care Costs,Accommodation Costs - Service Users,68.50,REDACTED PERSONAL DATA
Revenue,Childrens Services,5105647631,28.08.2015,Leaving Care Costs,Accommodation Costs - Service Users,68.50,REDACTED PERSONAL DATA
Revenue,Childrens Services,5105646904,21.08.2015,Leaving Care Costs,Support Children,120.89,REDACTED PERSONAL DATA
Revenue,Childrens Services,5105643839,07.08.2015,Leaving Care Costs,Accommodation Costs - Service Users,68.50,REDACTED PERSONAL DATA
Revenue,Place,5105647136,26.08.2015,Leaseholds by LA,Accommodation Costs - Leaseholder Payments,510.25,REDACTED PERSONAL DATA
Revenue,Place,5105647136,26.08.2015,Leaseholds by LA,Accommodation Costs - Leaseholder Payments,510.25,REDACTED PERSONAL DATA
Revenue,Place,5105647136,26.08.2015,Leaseholds by LA,Accommodation Costs - Leaseholder Payments,510.25,REDACTED PERSONAL DATA
Revenue,Place,5105647136,26.08.2015,Leaseholds by LA,Accommodation Costs - Leaseholder Payments,510.25,REDACTED PERSONAL DATA
Revenue,Place,5105647136,26.08.2015,Leaseholds by LA,Accommodation Costs - Leaseholder Payments,510.25,REDACTED PERSONAL DATA
Revenue,Place,5105647136,26.08.2015,Leaseholds by LA,Accommodation Costs - Leaseholder Payments,510.25,REDACTED PERSONAL DATA
Revenue,Childrens Services,5105646820,21.08.2015,Adoption Costs,Support Children,225.83,REDACTED PERSONAL DATA
Revenue,Childrens Services,5105643754,07.08.2015,Adoption Costs,Support Children,225.83,REDACTED PERSONAL DATA
Revenue,Childrens Services,5105647548,28.08.2015,Adoption Costs,Support Children,225.83,REDACTED PERSONAL DATA
Revenue,Childrens Services,5105645991,14.08.2015,Adoption Costs,Support Children,225.83,REDACTED PERSONAL DATA
Revenue,Childrens Services,5105646874,21.08.2015,In-house Fostering,Boarding Out Allowances,162.73,REDACTED PERSONAL DATA
Revenue,Childrens Services,5105647601,28.08.2015,In-house Fostering,Boarding Out Allowances,162.73,REDACTED PERSONAL DATA
Revenue,Childrens Services,5105646046,14.08.2015,In-house Fostering,Boarding Out Allowances,162.73,REDACTED PERSONAL DATA
Revenue,Childrens Services,5105643809,07.08.2015,In-house Fostering,Boarding Out Allowances,162.73,REDACTED PERSONAL DATA
Revenue,Place,5105647138,26.08.2015,Leaseholds by LA,Accommodation Costs - Leaseholder Payments,780.00,REDACTED PERSONAL DATA
Revenue,Place,5105647126,26.08.2015,Leaseholds by LA,Accommodation Costs - Leaseholder Payments,835.08,REDACTED PERSONAL DATA
Revenue,Place,5105647126,26.08.2015,Leaseholds by LA,Accommodation Costs - Leaseholder Payments,789.01,REDACTED PERSONAL DATA
Revenue,Place,5105647126,26.08.2015,Leaseholds by LA,Accommodation Costs - Leaseholder Payments,649.83,REDACTED PERSONAL DATA
Revenue,Childrens Services,5105643864,07.08.2015,In-house Fostering,Boarding Out Allowances,246.44,REDACTED PERSONAL DATA
Revenue,Childrens Services,5105643864,07.08.2015,In-house Fostering,Boarding Out Allowances,150.00,REDACTED PERSONAL DATA
Revenue,Place,5105647730,28.08.2015,Supporting People Older Persons,Payment to Private Contractors,502.80,ABBEYFIELD WEST WIGHT SOCIETY
Revenue,Adult Services,5105644817,12.08.2015,Elderly Mentally Ill Residential Care,Charges from Independent Providers,"1,781.36",ACACIA CARE HOME
Revenue,Adult Services,5105646288,14.08.2015,Elderly Frail Residential Care,Charges from Independent Providers,"1,700.44",ACACIA CARE HOME
Revenue,Adult Services,5105644817,12.08.2015,Elderly Frail Residential Care,Charges from Independent Providers,"1,700.44",ACACIA CARE HOME
Revenue,Adult Services,5105644817,12.08.2015,Elderly Frail Residential Care,Charges from Independent Providers,"1,700.44",ACACIA CARE HOME
Revenue,Adult Services,5105644435,07.08.2015,Elderly Frail Residential Care,Charges from Independent Providers,"2,368.47",ACACIA CARE HOME
Revenue,Adult Services,5105644817,12.08.2015,Elderly Frail Residential Care,Charges from Independent Providers,"1,700.44",ACACIA CARE HOME
Revenue,Adult Services,5105644817,12.08.2015,Elderly Frail Residential Care,Charges from Independent Providers,"2,093.84",ACACIA CARE HOME
Revenue,Childrens Services,5105645942,19.08.2015,Children In Need 2,Interview & recruitment expenses,18.00,ACCESS PERSONAL CHECKING SERVICES LTD
Revenue,Childrens Services,5105645942,19.08.2015,Children In Need 2,Interview & recruitment expenses,132.00,ACCESS PERSONAL CHECKING SERVICES LTD
Revenue,Childrens Services,5105645942,19.08.2015,Children in Care Team,Interview & recruitment expenses,6.00,ACCESS PERSONAL CHECKING SERVICES LTD
Revenue,Childrens Services,5105645942,19.08.2015,Children in Care Team,Interview & recruitment expenses,44.00,ACCESS PERSONAL CHECKING SERVICES LTD
Revenue,Place,5105645942,19.08.2015,Medina Leisure Centre,Interview & recruitment expenses,12.00,ACCESS PERSONAL CHECKING SERVICES LTD
Revenue,Place,5105645942,19.08.2015,Medina Leisure Centre,Interview & recruitment expenses,70.00,ACCESS PERSONAL CHECKING SERVICES LTD
Revenue,Place,5105645942,19.08.2015,School Music Service,Interview & recruitment expenses,6.00,ACCESS PERSONAL CHECKING SERVICES LTD
Revenue,Adult Services,5105645942,19.08.2015,Gouldings Resource Centre,Interview & recruitment expenses,88.00,ACCESS PERSONAL CHECKING SERVICES LTD
Revenue,Adult Services,5105645942,19.08.2015,Gouldings Resource Centre,Interview & recruitment expenses,12.00,ACCESS PERSONAL CHECKING SERVICES LTD
Revenue,Adult Services,5105645942,19.08.2015,Wightcare,Interview & recruitment expenses,12.00,ACCESS PERSONAL CHECKING SERVICES LTD
Revenue,Adult Services,5105645942,19.08.2015,Wightcare,Interview & recruitment expenses,88.00,ACCESS PERSONAL CHECKING SERVICES LTD
Revenue,Childrens Services,5105645942,19.08.2015,Beaulieu House,Interview & recruitment expenses,12.00,ACCESS PERSONAL CHECKING SERVICES LTD
Revenue,Childrens Services,5105645942,19.08.2015,Beaulieu House,Interview & recruitment expenses,44.00,ACCESS PERSONAL CHECKING SERVICES LTD
Revenue,Childrens Services,5105645942,19.08.2015,Safeguarding Support,Interview & recruitment expenses,25.00,ACCESS PERSONAL CHECKING SERVICES LTD
Revenue,Childrens Services,5105645942,19.08.2015,Safeguarding Support,Interview & recruitment expenses,8.00,ACCESS PERSONAL CHECKING SERVICES LTD
Revenue,Childrens Services,5105645942,19.08.2015,Island Learning Centre,Interview & recruitment expenses,6.00,ACCESS PERSONAL CHECKING SERVICES LTD
Revenue,Childrens Services,5105645942,19.08.2015,Social Work Coordinators,Interview & recruitment expenses,18.00,ACCESS PERSONAL CHECKING SERVICES LTD
Revenue,Childrens Services,5105645942,19.08.2015,Social Work Coordinators,Interview & recruitment expenses,78.00,ACCESS PERSONAL CHECKING SERVICES LTD
Revenue,Adult Services,5105645942,19.08.2015,No-Barriers,Interview & recruitment expenses,6.00,ACCESS PERSONAL CHECKING SERVICES LTD
Revenue,Adult Services,5105645942,19.08.2015,No-Barriers,Interview & recruitment expenses,44.00,ACCESS PERSONAL CHECKING SERVICES LTD
Revenue,Childrens Services,5105645942,19.08.2015,Adoption Team,Interview & recruitment expenses,12.00,ACCESS PERSONAL CHECKING SERVICES LTD
Revenue,Childrens Services,5105645942,19.08.2015,Adoption Team,Interview & recruitment expenses,88.00,ACCESS PERSONAL CHECKING SERVICES LTD
Revenue,Place,5105645528,12.08.2015,Licensing Services,Professional Services,396.00,ACCESS PERSONAL CHECKING SERVICES LTD
Revenue,Place,5105645528,12.08.2015,Licensing Services,Professional Services,54.00,ACCESS PERSONAL CHECKING SERVICES LTD
Revenue,Childrens Services,5105645942,19.08.2015,In-house Fostering,Interview & recruitment expenses,66.00,ACCESS PERSONAL CHECKING SERVICES LTD
Revenue,Childrens Services,5105645942,19.08.2015,In-house Fostering,Interview & recruitment expenses,484.00,ACCESS PERSONAL CHECKING SERVICES LTD
Revenue,Childrens Services,5105645942,19.08.2015,Direct Payments Children & Families,Interview & recruitment expenses,6.00,ACCESS PERSONAL CHECKING SERVICES LTD
Revenue,Childrens Services,5105645942,19.08.2015,Direct Payments Children & Families,Interview & recruitment expenses,44.00,ACCESS PERSONAL CHECKING SERVICES LTD
Revenue,Public Health,5105645942,19.08.2015,Public Health Core,Interview & recruitment expenses,6.00,ACCESS PERSONAL CHECKING SERVICES LTD
Revenue,Public Health,5105645942,19.08.2015,Public Health Core,Interview & recruitment expenses,26.00,ACCESS PERSONAL CHECKING SERVICES LTD
Revenue,Childrens Services,5105645942,19.08.2015,Youth Offending Team,Interview & recruitment expenses,6.00,ACCESS PERSONAL CHECKING SERVICES LTD
Revenue,Adult Services,5105645942,19.08.2015,Adelaide Resource Centre,Interview & recruitment expenses,6.00,ACCESS PERSONAL CHECKING SERVICES LTD
Revenue,Adult Services,5105645942,19.08.2015,Adelaide Resource Centre,Interview & recruitment expenses,44.00,ACCESS PERSONAL CHECKING SERVICES LTD
Revenue,Adult Services,5105644065,07.08.2015,Elderly Frail Homecare,Regular Respite Care,122.24,ACORN CARE SERVICE LTD
Revenue,Adult Services,5105645500,12.08.2015,Elderly Frail Homecare,Charges from Independent Providers,832.76,ACORN CARE SERVICE LTD
Revenue,Adult Services,5105644079,07.08.2015,Elderly Frail Homecare,Regular Respite Care,366.72,ACORN CARE SERVICE LTD
Revenue,Adult Services,5105644068,07.08.2015,Elderly Frail Homecare,Regular Respite Care,91.68,ACORN CARE SERVICE LTD
Revenue,Adult Services,5105644066,07.08.2015,Elderly Frail Homecare,Regular Respite Care,106.96,ACORN CARE SERVICE LTD
Revenue,Adult Services,5105644063,07.08.2015,Elderly Frail Homecare,Regular Respite Care,87.86,ACORN CARE SERVICE LTD
Revenue,Adult Services,5105644080,07.08.2015,Elderly Frail Homecare,Charges from Independent Providers,630.30,ACORN CARE SERVICE LTD
Revenue,Adult Services,5105644071,07.08.2015,Elderly Frail Homecare,Charges from Independent Providers,534.80,ACORN CARE SERVICE LTD
Revenue,Adult Services,5105644076,07.08.2015,Elderly Frail Homecare,Charges from Independent Providers,313.24,ACORN CARE SERVICE LTD
Revenue,Adult Services,5105644074,07.08.2015,Elderly Frail Homecare,Charges from Independent Providers,641.76,ACORN CARE SERVICE LTD
Revenue,Adult Services,5105644075,07.08.2015,Elderly Frail Homecare,Charges from Independent Providers,"2,567.04",ACORN CARE SERVICE LTD
Revenue,Adult Services,5105644073,07.08.2015,Elderly Frail Homecare,Charges from Independent Providers,305.60,ACORN CARE SERVICE LTD
Revenue,Adult Services,5105644078,07.08.2015,Elderly Frail Homecare,Charges from Independent Providers,61.12,ACORN CARE SERVICE LTD
Revenue,Adult Services,5105644064,07.08.2015,Elderly Frail Homecare,Charges from Independent Providers,"2,780.96",ACORN CARE SERVICE LTD
Revenue,Adult Services,5105644077,07.08.2015,Elderly Frail Homecare,Charges from Independent Providers,"1,084.88",ACORN CARE SERVICE LTD
Revenue,Adult Services,5105644061,07.08.2015,Elderly Frail Homecare,Charges from Independent Providers,427.84,ACORN CARE SERVICE LTD
Revenue,Adult Services,5105644062,07.08.2015,Elderly Frail Homecare,Charges from Independent Providers,870.96,ACORN CARE SERVICE LTD
Revenue,Adult Services,5105644053,07.08.2015,Elderly Frail Homecare,Charges from Independent Providers,"2,032.24",ACORN CARE SERVICE LTD
Revenue,Adult Services,5105644054,07.08.2015,Elderly Frail Homecare,Charges from Independent Providers,"1,463.06",ACORN CARE SERVICE LTD
Revenue,Adult Services,5105644055,07.08.2015,Elderly Frail Homecare,Charges from Independent Providers,"1,191.84",ACORN CARE SERVICE LTD
Revenue,Adult Services,5105644056,07.08.2015,Elderly Frail Homecare,Charges from Independent Providers,844.22,ACORN CARE SERVICE LTD
Revenue,Adult Services,5105644057,07.08.2015,Elderly Frail Homecare,Charges from Independent Providers,"1,084.88",ACORN CARE SERVICE LTD
Revenue,Adult Services,5105644058,07.08.2015,Elderly Frail Homecare,Charges from Independent Providers,61.12,ACORN CARE SERVICE LTD
Revenue,Adult Services,5105644059,07.08.2015,Elderly Frail Homecare,Charges from Independent Providers,"1,222.40",ACORN CARE SERVICE LTD
Revenue,Adult Services,5105644069,07.08.2015,Elderly Frail Homecare,Charges from Independent Providers,374.36,ACORN CARE SERVICE LTD
Revenue,Adult Services,5105644070,07.08.2015,Elderly Frail Homecare,Charges from Independent Providers,695.24,ACORN CARE SERVICE LTD
Revenue,Adult Services,5105644052,07.08.2015,Elderly Frail Homecare,Charges from Independent Providers,305.60,ACORN CARE SERVICE LTD
Revenue,Adult Services,5105644051,07.08.2015,Elderly Frail Homecare,Charges from Independent Providers,"1,554.74",ACORN CARE SERVICE LTD
Revenue,Adult Services,5105644060,07.08.2015,Elderly Frail Homecare,Charges from Independent Providers,672.32,ACORN CARE SERVICE LTD
Revenue,Adult Services,5105644090,07.08.2015,Elderly Frail Homecare,Charges from Independent Providers,61.12,ACORN CARE SERVICE LTD
Revenue,Adult Services,5105644086,07.08.2015,Elderly Frail Homecare,Charges from Independent Providers,"1,069.60",ACORN CARE SERVICE LTD
Revenue,Adult Services,5105644088,07.08.2015,Elderly Frail Homecare,Charges from Independent Providers,91.68,ACORN CARE SERVICE LTD
Revenue,Adult Services,5105644089,07.08.2015,Elderly Frail Homecare,Charges from Independent Providers,213.92,ACORN CARE SERVICE LTD
Revenue,Adult Services,5105644081,07.08.2015,Elderly Frail Homecare,Charges from Independent Providers,515.70,ACORN CARE SERVICE LTD
Revenue,Adult Services,5105644084,07.08.2015,Elderly Frail Homecare,Charges from Independent Providers,702.88,ACORN CARE SERVICE LTD
Revenue,Adult Services,5105644087,07.08.2015,Elderly Frail Homecare,Charges from Independent Providers,588.28,ACORN CARE SERVICE LTD
Revenue,Adult Services,5105644085,07.08.2015,Elderly Frail Homecare,Charges from Independent Providers,317.06,ACORN CARE SERVICE LTD
Revenue,Adult Services,5105644067,07.08.2015,Elderly Frail Homecare,Charges from Independent Providers,527.16,ACORN CARE SERVICE LTD
Revenue,Adult Services,5105644072,07.08.2015,Elderly Frail Homecare,Charges from Independent Providers,202.46,ACORN CARE SERVICE LTD
Revenue,Adult Services,5105644083,07.08.2015,Elderly Frail Homecare,Charges from Independent Providers,427.84,ACORN CARE SERVICE LTD
Revenue,Adult Services,5105644082,07.08.2015,Elderly Mentally Ill Homecare,Charges from Independent Providers,427.84,ACORN CARE SERVICE LTD
Revenue,Resources,5105646161,14.08.2015,Litigation Costs,Legal Fees - Other Parties,480.00,"COLLEGE CHAMBERS, BARRISTERS"
Revenue,Place,5105645490,12.08.2015,Fire Technical Support,Operational Equipment,190.84,ADAMS MOREY LTD
Revenue,Place,5105647429,26.08.2015,Fire Technical Support,Vehicle Maintenance Costs,14.00,ADAMS MOREY LTD
Revenue,Place,5105646551,19.08.2015,Fire Technical Support,Vehicle Maintenance Costs,94.31,ADAMS MOREY LTD
Revenue,Place,5105646527,19.08.2015,Fire Technical Support,Vehicle Maintenance Costs,14.50,ADAMS MOREY LTD
Revenue,Place,5105646571,19.08.2015,Fire Technical Support,Vehicle Maintenance Costs,14.50,ADAMS MOREY LTD
Revenue,Place,5105647253,26.08.2015,Fire Technical Support,Vehicle Maintenance Costs,40.00,ADAMS MOREY LTD
Revenue,Place,5105643541,05.08.2015,Fire Technical Support,Vehicle Maintenance Costs,14.50,ADAMS MOREY LTD
Revenue,Childrens Services,5105642418,14.08.2015,Island Learning Centre,Agency staff,420.00,A-DAY CONSULTANTS LTD
Revenue,Childrens Services,5105646167,14.08.2015,Island Learning Centre,Agency staff,650.00,A-DAY CONSULTANTS LTD
Revenue,Childrens Services,5105646168,14.08.2015,Island Learning Centre,Agency staff,"1,092.50",A-DAY CONSULTANTS LTD
Revenue,Adult Services,5105644697,12.08.2015,Elderly Frail Residential Care,Charges from Independent Providers,"1,812.44",ADIEMUS CARE LTD
Revenue,Resources,5105646331,19.08.2015,Committee and Scrutiny Team,Training,99.00,ADSO (ASSOCIATION OF DEMOCRATIC SERVICES OFFICERS)
Revenue,Childrens Services,5105647067,21.08.2015,Children In Need 1,Agency staff,"1,635.00",AFFINITY WORKFORCE
Revenue,Childrens Services,5105638685,07.08.2015,Children In Need 1,Agency staff,"1,636.35",AFFINITY WORKFORCE
Revenue,Childrens Services,5105643540,07.08.2015,Children In Need 1,Agency staff,"1,635.00",AFFINITY WORKFORCE
Revenue,Childrens Services,5105645907,12.08.2015,Children In Need 1,Agency staff,"1,653.00",AFFINITY WORKFORCE
Revenue,Place,5105647254,26.08.2015,Renewal & Enforcement,Payments to Voluntary and Other Associations,"6,665.00",AGE CONCERN T/A AGE UK
Revenue,Childrens Services,5105646535,19.08.2015,Support for Looked After Children - Disabled Childrens Team,Charges from Independent Providers,"2,839.60",AHIMSA (SAFER FAMILIES) LTD
Revenue,Place,5105646683,26.08.2015,Medina Leisure Centre,Prop Svs only - Day to day mtce,60.00,AIRTEK SERVICES
Revenue,Adult Services,5105646609,19.08.2015,Gouldings Resource Centre,Maintenance of Operational Equipment,187.50,AIRTEK SERVICES
Revenue,Place,5105647049,26.08.2015,Westridge Squash Courts,Prop Svs only - Day to day mtce,620.00,AIRTEK SERVICES
Revenue,Adult Services,5105647525,28.08.2015,S75 Integrated Community Equipment Store,General Materials,235.00,AKW MEDI-CARE LTD
Revenue,Adult Services,5105647525,28.08.2015,S75 Integrated Community Equipment Store,General Materials,295.00,AKW MEDI-CARE LTD
Revenue,Adult Services,5105647525,28.08.2015,S75 Integrated Community Equipment Store,General Materials,337.50,AKW MEDI-CARE LTD
Revenue,Adult Services,5105647525,28.08.2015,S75 Integrated Community Equipment Store,General Materials,359.00,AKW MEDI-CARE LTD
Revenue,Adult Services,5105647525,28.08.2015,S75 Integrated Community Equipment Store,General Materials,179.00,AKW MEDI-CARE LTD
Revenue,Childrens Services,5105644491,12.08.2015,LSCB (Local Safeguarding Childrens Board),Professional Services,"-1,663.70",ALAN BEDFORD CONSULTING
Revenue,Place,5105646374,19.08.2015,"County Hall,Newport","Refuse Collection, Disposal and Recycling Costs",32.00,ALAN NEWBERY WASTE MANAGEMENT
Revenue,Adult Services,5105646465,19.08.2015,Gouldings Resource Centre,Maintenance of Operational Equipment,59.85,ALBANY FARM & G MACHINERY LTD
Revenue,Childrens Services,5105643633,05.08.2015,Special Educational Needs Transport,Taxis - Contract Hire,267.90,ALPHA (IOW) LTD
Revenue,Childrens Services,5105641325,05.08.2015,Special Educational Needs Transport,Taxis - Contract Hire,267.90,ALPHA (IOW) LTD
Revenue,Childrens Services,5105641325,05.08.2015,Special Educational Needs Transport,Taxis - Contract Hire,321.45,ALPHA (IOW) LTD
Revenue,Childrens Services,5105641325,05.08.2015,Special Educational Needs Transport,Taxis - Contract Hire,313.35,ALPHA (IOW) LTD
Revenue,Childrens Services,5105641325,05.08.2015,Special Educational Needs Transport,Taxis - Contract Hire,396.90,ALPHA (IOW) LTD
Revenue,Childrens Services,5105641325,05.08.2015,Special Educational Needs Transport,Taxis - Contract Hire,100.00,ALPHA (IOW) LTD
Revenue,Childrens Services,5105643633,05.08.2015,Special Educational Needs Transport,Taxis - Contract Hire,100.00,ALPHA (IOW) LTD
Revenue,Childrens Services,5105643633,05.08.2015,Special Educational Needs Transport,Taxis - Contract Hire,461.75,ALPHA (IOW) LTD
Revenue,Childrens Services,5105641325,05.08.2015,Special Educational Needs Transport,Taxis - Contract Hire,461.75,ALPHA (IOW) LTD
Revenue,Childrens Services,5105643633,05.08.2015,Special Educational Needs Transport,Taxis - Contract Hire,188.00,ALPHA (IOW) LTD
Revenue,Childrens Services,5105641325,05.08.2015,Special Educational Needs Transport,Taxis - Contract Hire,188.00,ALPHA (IOW) LTD
Revenue,Childrens Services,5105641325,05.08.2015,Special Educational Needs Transport,Taxis - Contract Hire,350.00,ALPHA (IOW) LTD
Revenue,Childrens Services,5105643633,05.08.2015,Special Educational Needs Transport,Taxis - Contract Hire,350.00,ALPHA (IOW) LTD
Revenue,Childrens Services,5105641325,05.08.2015,Special Educational Needs Transport,Taxis - Contract Hire,457.20,ALPHA (IOW) LTD
Revenue,Childrens Services,5105643633,05.08.2015,Special Educational Needs Transport,Taxis - Contract Hire,457.20,ALPHA (IOW) LTD
Revenue,Childrens Services,5105643633,05.08.2015,Special Educational Needs Transport,Taxis - Contract Hire,304.80,ALPHA (IOW) LTD
Revenue,Childrens Services,5105643633,05.08.2015,Special Educational Needs Transport,Taxis - Contract Hire,355.60,ALPHA (IOW) LTD
Revenue,Childrens Services,5105641325,05.08.2015,Special Educational Needs Transport,Taxis - Contract Hire,355.60,ALPHA (IOW) LTD
Revenue,Childrens Services,5105643633,05.08.2015,Special Educational Needs Transport,Taxis - Contract Hire,396.90,ALPHA (IOW) LTD
Revenue,Childrens Services,5105643633,05.08.2015,Special Educational Needs Transport,Taxis - Contract Hire,313.35,ALPHA (IOW) LTD
Revenue,Childrens Services,5105643633,05.08.2015,Special Educational Needs Transport,Taxis - Contract Hire,321.45,ALPHA (IOW) LTD
Revenue,Childrens Services,5105641325,05.08.2015,Special Educational Needs Transport,Taxis - Contract Hire,304.80,ALPHA (IOW) LTD
Revenue,Childrens Services,5105647776,28.08.2015,S17 Child Protection,Transport of Clients,425.73,ALPHA (IOW) LTD
Revenue,Childrens Services,5105643633,05.08.2015,Pre 16 Independ. & Non-Maint. Special Schls & Independ. Specialist Provision,Transport of Clients,57.50,ALPHA (IOW) LTD
Revenue,Childrens Services,5105643633,05.08.2015,Pre 16 Independ. & Non-Maint. Special Schls & Independ. Specialist Provision,Transport of Clients,240.00,ALPHA (IOW) LTD
Revenue,Childrens Services,5105641325,05.08.2015,Pre 16 Independ. & Non-Maint. Special Schls & Independ. Specialist Provision,Transport of Clients,480.00,ALPHA (IOW) LTD
Revenue,Childrens Services,5105641325,05.08.2015,Pre 16 Independ. & Non-Maint. Special Schls & Independ. Specialist Provision,Transport of Clients,127.50,ALPHA (IOW) LTD
Revenue,Childrens Services,5105647776,28.08.2015,Support for Looked After Children,Transport of Clients,425.72,ALPHA (IOW) LTD
Revenue,Childrens Services,5105641325,05.08.2015,Home to School Transport,Taxis - Contract Hire,426.90,ALPHA (IOW) LTD
Revenue,Childrens Services,5105643633,05.08.2015,Home to School Transport,Taxis - Contract Hire,426.90,ALPHA (IOW) LTD
Revenue,Childrens Services,5105643633,05.08.2015,Home to School Transport,Taxis - Contract Hire,415.50,ALPHA (IOW) LTD
Revenue,Childrens Services,5105643633,05.08.2015,Home to School Transport,Taxis - Contract Hire,314.95,ALPHA (IOW) LTD
Revenue,Childrens Services,5105641325,05.08.2015,Home to School Transport,Taxis - Contract Hire,314.95,ALPHA (IOW) LTD
Revenue,Childrens Services,5105641325,05.08.2015,Home to School Transport,Taxis - Contract Hire,428.25,ALPHA (IOW) LTD
Revenue,Childrens Services,5105643633,05.08.2015,Home to School Transport,Taxis - Contract Hire,428.25,ALPHA (IOW) LTD
Revenue,Childrens Services,5105641325,05.08.2015,Home to School Transport,Taxis - Contract Hire,300.00,ALPHA (IOW) LTD
Revenue,Childrens Services,5105643633,05.08.2015,Home to School Transport,Taxis - Contract Hire,300.00,ALPHA (IOW) LTD
Revenue,Childrens Services,5105641325,05.08.2015,Home to School Transport,Taxis - Contract Hire,415.50,ALPHA (IOW) LTD
Revenue,Childrens Services,5105647775,28.08.2015,Island Learning Centre,Taxis - Contract Hire,427.85,ALPHA (IOW) LTD
Revenue,Childrens Services,5105647410,26.08.2015,Agency Domiciliary Care,Transport of Clients,915.25,ALPHA (IOW) LTD
Revenue,Childrens Services,5105642633,07.08.2015,Agency Domiciliary Care,Transport of Clients,960.00,ALPHA (IOW) LTD
Revenue,Childrens Services,5105642633,07.08.2015,Agency Domiciliary Care,Transport of Clients,225.50,ALPHA (IOW) LTD
Revenue,Adult Services,5105644736,12.08.2015,Learning Disability Residential Care,Charges from Independent Providers,"3,836.84",ALPHAGRANGE LTD
Revenue,Childrens Services,5105645919,12.08.2015,Home to School Transport,Taxis - Contract Hire,672.00,AMAR CABS OF NEWPORT
Revenue,Place,5105646589,26.08.2015,Project Manager Waste Strategy,Consultants Fees,"3,703.75",AMEC ENVIRONMENT AND INFRASTRUCTURE UK LTD
Revenue,Adult Services,5105644738,12.08.2015,Elderly Mentally Ill Residential Care,Charges from Independent Providers,"1,781.36",ANCONA CARE HOME
Revenue,Adult Services,5105644738,12.08.2015,Elderly Frail Residential Care,Charges from Independent Providers,"1,700.44",ANCONA CARE HOME
Revenue,Adult Services,5105644738,12.08.2015,Elderly Frail Residential Care,Charges from Independent Providers,"2,093.84",ANCONA CARE HOME
Revenue,Adult Services,5105644738,12.08.2015,Elderly Frail Residential Care,Charges from Independent Providers,"1,700.44",ANCONA CARE HOME
Revenue,Resources,5105647201,26.08.2015,Staff Benefits,Payment to Private Contractors,225.00,REDACTED PERSONAL DATA
Revenue,Adult Services,5105646165,14.08.2015,Commissioning Manager for Adult Social Care,Interim Staff,"9,046.45",ANNE BUTLER CONSULTING LTD
Revenue,Place,5105643369,05.08.2015,Print Unit,Printing Costs,136.38,ANTALIS MCNAUGHTON
Revenue,Place,5105643635,05.08.2015,Print Unit,Printing Costs,28.12,ANTALIS MCNAUGHTON
Revenue,Place,5105645533,14.08.2015,Print Unit,Printing Costs,32.88,ANTALIS MCNAUGHTON
Revenue,Place,5105645533,14.08.2015,Print Unit,Printing Costs,28.12,ANTALIS MCNAUGHTON
Revenue,Place,5105645533,14.08.2015,Print Unit,Printing Costs,93.20,ANTALIS MCNAUGHTON
Revenue,Place,5105645547,12.08.2015,Print Unit,Printing Costs,222.75,ANTALIS MCNAUGHTON
Revenue,Place,5105645547,12.08.2015,Print Unit,Printing Costs,15.00,ANTALIS MCNAUGHTON
Revenue,Place,5105646505,19.08.2015,Print Unit,Printing Costs,87.60,ANTALIS MCNAUGHTON
Revenue,Place,5105646505,19.08.2015,Print Unit,Printing Costs,19.87,ANTALIS MCNAUGHTON
Revenue,Place,5105643488,05.08.2015,Fire Technical Support,General Materials,118.40,AQUAID (SOUTH COAST) FRANCHISE LTD
Revenue,Place,5105647832,28.08.2015,Newco initiative - pump priming,Consultants Fees,"3,745.90",ARCHEMYS LTD
Revenue,Place,5105642777,19.08.2015,Newco initiative - pump priming,Consultants Fees,"3,823.30",ARCHEMYS LTD
Revenue,Place,5105647236,26.08.2015,Medina Leisure Centre,Clothing & Laundry,47.68,ARCO LTD
Revenue,Place,5105645558,12.08.2015,Medina Leisure Centre,Clothing & Laundry,308.40,ARCO LTD
Revenue,Place,5105647377,26.08.2015,Medina Leisure Centre,Clothing & Laundry,102.00,ARCO LTD
Revenue,Place,5105647052,21.08.2015,Fire Technical Support,Stock Purchases,-490.50,ARCO LTD
Revenue,Place,5105646444,21.08.2015,Fire Technical Support,Stock Purchases,21.45,ARCO LTD
Revenue,Place,5105646444,21.08.2015,Fire Technical Support,Stock Purchases,46.20,ARCO LTD
Revenue,Place,5105646444,21.08.2015,Fire Technical Support,Stock Purchases,20.96,ARCO LTD
Revenue,Place,5105646444,21.08.2015,Fire Technical Support,Stock Purchases,19.26,ARCO LTD
Revenue,Place,5105646444,21.08.2015,Fire Technical Support,Stock Purchases,206.17,ARCO LTD
Revenue,Place,5105646444,21.08.2015,Fire Technical Support,Stock Purchases,28.02,ARCO LTD
Revenue,Place,5105643638,05.08.2015,Fire Technical Support,Stock Purchases,42.76,ARCO LTD
Revenue,Place,5105646444,21.08.2015,Fire Technical Support,Stock Purchases,590.30,ARCO LTD
Revenue,Place,5105646444,21.08.2015,Fire Technical Support,Stock Purchases,42.25,ARCO LTD
Revenue,Place,5105646137,14.08.2015,Fire Technical Support,Stock Purchases,31.05,ARCO LTD
Revenue,Place,5105646445,19.08.2015,Fire Technical Support,Stock Purchases,40.36,ARCO LTD
Revenue,Place,5105646443,19.08.2015,Fire Technical Support,Stock Purchases,34.87,ARCO LTD
Revenue,Place,5105646444,21.08.2015,Fire Technical Support,Stock Purchases,38.00,ARCO LTD
Revenue,Place,5105646152,14.08.2015,Planning Business Support,Clothing & Laundry,-34.90,ARCO LTD
Revenue,Place,5105643622,05.08.2015,Planning Business Support,Clothing & Laundry,22.72,ARCO LTD
Revenue,Place,5105646173,14.08.2015,Ferry Operation,Operational Equipment,10.80,ARCO LTD
Revenue,Place,5105645421,14.08.2015,Ferry Operation,Operational Equipment,15.64,ARCO LTD
Revenue,Place,5105646173,14.08.2015,Ferry Operation,Operational Equipment,30.48,ARCO LTD
Revenue,Place,5105646476,19.08.2015,Environment officers,Operational Equipment,144.93,ARCO LTD
Revenue,Place,5105646738,21.08.2015,Environment officers,Clothing & Laundry,13.54,ARCO LTD
Revenue,Place,5105647296,26.08.2015,Crematorium,Clothing & Laundry,10.57,ARCO LTD
Revenue,Place,5105646222,14.08.2015,Crematorium,Clothing & Laundry,21.14,ARCO LTD
Revenue,Resources,5105643539,05.08.2015,Corporate Stores,Clothing & Laundry,33.69,ARCO LTD
Revenue,Resources,5105646381,19.08.2015,Corporate Stores,Clothing & Laundry,22.75,ARCO LTD
Revenue,Public Health,5105643522,05.08.2015,NHS Health Check Programme,Payment to Private Contractors,"2,188.00",ARGYLL HOUSE SURGERY
Revenue,Adult Services,5105647048,21.08.2015,S75 Integrated Community Equipment Store,Maintenance of Operational Equipment,311.99,ARJO MED AB LTD
Revenue,Adult Services,5105647048,21.08.2015,S75 Integrated Community Equipment Store,Maintenance of Operational Equipment,15.00,ARJO MED AB LTD
Revenue,Adult Services,5105645604,12.08.2015,Saxonbury,Maintenance of Operational Equipment,134.00,ARJO MED AB LTD
Revenue,Childrens Services,5105645603,19.08.2015,Beaulieu House,Minor Works,"1,000.20",ARJO MED AB LTD
Revenue,Childrens Services,5105645476,14.08.2015,Beaulieu House,Minor Works,404.98,ARJO MED AB LTD
Revenue,Resources,5105645466,12.08.2015,ICT Desktop Experience project,Training,"3,992.00",ARROW ECS
Revenue,Childrens Services,5105643545,05.08.2015,Workforce Development Schools,Training,651.79,ASPIRO EDUCATION LIMITED
Revenue,Place,5105644038,07.08.2015,Historic Environment Record,Professional Subscriptions,140.00,ASSOCIATION OF LOCAL GOVERNMENT ARCHAEOLOGICAL OFFICERS
Revenue,Adult Services,5105645474,12.08.2015,Gouldings Resource Centre,Prop Svs only - Day to day mtce,145.00,ASSA ABLOY ENTRANCE SYSTEMS LTD
Revenue,Adult Services,5105643372,05.08.2015,Westminster House,Property Services - Planned Maintenance,428.21,ASSA ABLOY ENTRANCE SYSTEMS LTD
Revenue,Place,5105647821,28.08.2015,Freshwater West Wight Library,Property Services - Planned Maintenance,454.00,ASSA ABLOY ENTRANCE SYSTEMS LTD
Revenue,Place,5105643495,05.08.2015,Sandown Library,Prop Svs only - Day to day mtce,410.81,ASSA ABLOY ENTRANCE SYSTEMS LTD
Revenue,Resources,5105646630,19.08.2015,Organisational Development � Leadership,Professional Services,"6,000.00",ASTRID DAVIES CONSULTING LTD
Revenue,Place,5105641236,05.08.2015,Highways PFI Project,Consultants Fees,"27,880.12",ATKINS LIMITED
Revenue,Place,5105645611,12.08.2015,Fire Technical Support,Vehicle Maintenance Costs,110.23,ATS EUROMASTER LTD
Revenue,Place,5105645611,12.08.2015,Fire Technical Support,Vehicle Maintenance Costs,8.70,ATS EUROMASTER LTD
Revenue,Place,5105645611,12.08.2015,Fire Technical Support,Vehicle Maintenance Costs,1.16,ATS EUROMASTER LTD
Revenue,Place,5105645611,12.08.2015,Fire Technical Support,Vehicle Maintenance Costs,3.72,ATS EUROMASTER LTD
Revenue,Place,5105645611,12.08.2015,Fire Technical Support,Vehicle Maintenance Costs,8.00,ATS EUROMASTER LTD
Revenue,Place,5105645611,12.08.2015,Fire Technical Support,Vehicle Maintenance Costs,130.52,ATS EUROMASTER LTD
Revenue,Place,5105645611,12.08.2015,Fire Technical Support,Vehicle Maintenance Costs,110.17,ATS EUROMASTER LTD
Revenue,Place,5105645611,12.08.2015,Fire Technical Support,Vehicle Maintenance Costs,4.35,ATS EUROMASTER LTD
Revenue,Place,5105645611,12.08.2015,Fire Technical Support,Vehicle Maintenance Costs,1.16,ATS EUROMASTER LTD
Revenue,Place,5105645611,12.08.2015,Fire Technical Support,Vehicle Maintenance Costs,1.86,ATS EUROMASTER LTD
Revenue,Place,5105645611,12.08.2015,Fire Technical Support,Vehicle Maintenance Costs,307.74,ATS EUROMASTER LTD
Revenue,Adult Services,5105647024,21.08.2015,Elderly Mentally Ill Residential Care,Crisis Support for Carers,373.90,AUTUMN HOUSE CARE LTD
Revenue,Adult Services,5105647024,21.08.2015,Elderly Mentally Ill Residential Care,Crisis Support for Carers,"2,093.84",AUTUMN HOUSE CARE LTD
Revenue,Adult Services,5105644711,12.08.2015,Elderly Mentally Ill Residential Care,Charges from Independent Providers,"2,093.84",AUTUMN HOUSE CARE LTD
Revenue,Adult Services,5105644711,12.08.2015,Elderly Mentally Ill Residential Care,Charges from Independent Providers,"2,093.84",AUTUMN HOUSE CARE LTD
Revenue,Adult Services,5105644711,12.08.2015,Elderly Mentally Ill Residential Care,Charges from Independent Providers,"2,093.84",AUTUMN HOUSE CARE LTD
Revenue,Adult Services,5105644711,12.08.2015,Elderly Mentally Ill Residential Care,Charges from Independent Providers,"2,093.84",AUTUMN HOUSE CARE LTD
Revenue,Adult Services,5105644711,12.08.2015,Elderly Mentally Ill Residential Care,Charges from Independent Providers,"2,093.84",AUTUMN HOUSE CARE LTD
Revenue,Adult Services,5105644711,12.08.2015,Elderly Mentally Ill Residential Care,Charges from Independent Providers,"1,781.36",AUTUMN HOUSE CARE LTD
Revenue,Adult Services,5105646660,19.08.2015,Elderly Mentally Ill Residential Care,Charges from Independent Providers,"2,093.84",AUTUMN HOUSE CARE LTD
Revenue,Adult Services,5105644431,07.08.2015,Elderly Mentally Ill Residential Care,Crisis Support for Carers,523.46,AUTUMN HOUSE CARE LTD
Revenue,Adult Services,5105644711,12.08.2015,Elderly Mentally Ill Residential Care,Charges from Independent Providers,"2,093.84",AUTUMN HOUSE CARE LTD
Revenue,Adult Services,5105644711,12.08.2015,Elderly Mentally Ill Residential Care,Charges from Independent Providers,"2,093.84",AUTUMN HOUSE CARE LTD
Revenue,Adult Services,5105644711,12.08.2015,Elderly Mentally Ill Residential Care,Charges from Independent Providers,"2,093.84",AUTUMN HOUSE CARE LTD
Revenue,Adult Services,5105644711,12.08.2015,Elderly Mentally Ill Residential Care,Charges from Independent Providers,"1,781.36",AUTUMN HOUSE CARE LTD
Revenue,Adult Services,5105644711,12.08.2015,Elderly Mentally Ill Residential Care,Charges from Independent Providers,"2,093.84",AUTUMN HOUSE CARE LTD
Revenue,Adult Services,5105644711,12.08.2015,Elderly Mentally Ill Residential Care,Charges from Independent Providers,"2,093.84",AUTUMN HOUSE CARE LTD
Revenue,Adult Services,5105644711,12.08.2015,Elderly Mentally Ill Residential Care,Charges from Independent Providers,"2,093.84",AUTUMN HOUSE CARE LTD
Revenue,Adult Services,5105644711,12.08.2015,Elderly Mentally Ill Residential Care,Charges from Independent Providers,"2,093.84",AUTUMN HOUSE CARE LTD
Revenue,Adult Services,5105644711,12.08.2015,Elderly Mentally Ill Residential Care,Charges from Independent Providers,"2,093.84",AUTUMN HOUSE CARE LTD
Revenue,Adult Services,5105644711,12.08.2015,Elderly Mentally Ill Residential Care,Charges from Independent Providers,"2,093.84",AUTUMN HOUSE CARE LTD
Revenue,Adult Services,5105644711,12.08.2015,Elderly Mentally Ill Residential Care,Charges from Independent Providers,"2,093.84",AUTUMN HOUSE CARE LTD
Revenue,Adult Services,5105644711,12.08.2015,Elderly Mentally Ill Residential Care,Charges from Independent Providers,"1,781.36",AUTUMN HOUSE CARE LTD
Revenue,Adult Services,5105643737,07.08.2015,Elderly Mentally Ill Residential Care,Charges from Independent Providers,"1,526.88",AUTUMN HOUSE CARE LTD
Revenue,Adult Services,5105643737,07.08.2015,Elderly Mentally Ill Residential Care,Charges from Independent Providers,"1,781.36",AUTUMN HOUSE CARE LTD
Revenue,Adult Services,5105644711,12.08.2015,Elderly Mentally Ill Residential Care,Charges from Independent Providers,"2,093.84",AUTUMN HOUSE CARE LTD
Revenue,Adult Services,5105644711,12.08.2015,Elderly Mentally Ill Residential Care,Charges from Independent Providers,"1,781.36",AUTUMN HOUSE CARE LTD
Revenue,Adult Services,5105644711,12.08.2015,Elderly Mentally Ill Residential Care,Charges from Independent Providers,"2,093.84",AUTUMN HOUSE CARE LTD
Revenue,Adult Services,5105644711,12.08.2015,Elderly Mentally Ill Residential Care,Charges from Independent Providers,"2,093.84",AUTUMN HOUSE CARE LTD
Revenue,Adult Services,5105644711,12.08.2015,Elderly Mentally Ill Residential Care,Charges from Independent Providers,"1,781.36",AUTUMN HOUSE CARE LTD
Revenue,Adult Services,5105644711,12.08.2015,Elderly Mentally Ill Residential Care,Charges from Independent Providers,"1,781.36",AUTUMN HOUSE CARE LTD
Revenue,Adult Services,5105647449,26.08.2015,Elderly Frail Residential Care,Charges from Independent Providers,"3,215.54",AUTUMN HOUSE CARE LTD
Revenue,Adult Services,5105646804,21.08.2015,Elderly Frail Residential Care,Charges from Independent Providers,485.84,AUTUMN HOUSE CARE LTD
Revenue,Adult Services,5105644711,12.08.2015,Elderly Frail Residential Care,Charges from Independent Providers,"2,093.84",AUTUMN HOUSE CARE LTD
Revenue,Adult Services,5105644711,12.08.2015,Elderly Frail Residential Care,Charges from Independent Providers,"2,093.84",AUTUMN HOUSE CARE LTD
Revenue,Childrens Services,5105643766,07.08.2015,Leaving Care Costs,Support Children,50.00,REDACTED PERSONAL DATA
Revenue,Childrens Services,5105646003,14.08.2015,Leaving Care Costs,Support Children,50.00,REDACTED PERSONAL DATA
Revenue,Childrens Services,5105647560,28.08.2015,Leaving Care Costs,Support Children,50.00,REDACTED PERSONAL DATA
Revenue,Childrens Services,5105646832,21.08.2015,Leaving Care Costs,Support Children,50.00,REDACTED PERSONAL DATA
Revenue,Childrens Services,5105643766,07.08.2015,In-house Fostering,Boarding Out Allowances,162.73,REDACTED PERSONAL DATA
Revenue,Childrens Services,5105643766,07.08.2015,In-house Fostering,Boarding Out Allowances,10.00,REDACTED PERSONAL DATA
Revenue,Childrens Services,5105646003,14.08.2015,In-house Fostering,Boarding Out Allowances,162.73,REDACTED PERSONAL DATA
Revenue,Childrens Services,5105646003,14.08.2015,In-house Fostering,Boarding Out Allowances,10.00,REDACTED PERSONAL DATA
Revenue,Childrens Services,5105646832,21.08.2015,In-house Fostering,Boarding Out Allowances,162.73,REDACTED PERSONAL DATA
Revenue,Childrens Services,5105646832,21.08.2015,In-house Fostering,Boarding Out Allowances,10.00,REDACTED PERSONAL DATA
Revenue,Childrens Services,5105647560,28.08.2015,In-house Fostering,Boarding Out Allowances,162.73,REDACTED PERSONAL DATA
Revenue,Childrens Services,5105647560,28.08.2015,In-house Fostering,Boarding Out Allowances,10.00,REDACTED PERSONAL DATA
Revenue,Childrens Services,5105647242,26.08.2015,Beaulieu House,General Materials,17.01,B & Q FINANCIAL SERVICES
Revenue,Childrens Services,5105647238,26.08.2015,Beaulieu House,General Materials,37.68,B & Q FINANCIAL SERVICES
Revenue,Childrens Services,5105647243,26.08.2015,Beaulieu House,General Materials,31.61,B & Q FINANCIAL SERVICES
Revenue,Adult Services,5105644724,12.08.2015,Learning Disability Residential Care,Charges from Independent Providers,"1,894.76",REDACTED PERSONAL DATA
Revenue,Adult Services,5105644724,12.08.2015,Learning Disability Residential Care,Charges from Independent Providers,"1,894.76",REDACTED PERSONAL DATA
Revenue,Adult Services,5105644724,12.08.2015,Learning Disability Residential Care,Charges from Independent Providers,"2,745.40",REDACTED PERSONAL DATA
Revenue,Place,5105647123,26.08.2015,Leaseholds by LA,Accommodation Costs - Leaseholder Payments,815.49,REDACTED PERSONAL DATA
Revenue,Resources,5105647187,26.08.2015,Staff Benefits,Payment to Private Contractors,100.00,REDACTED PERSONAL DATA
Revenue,Resources,5105647187,26.08.2015,Staff Benefits,Payment to Private Contractors,243.00,REDACTED PERSONAL DATA
Revenue,Resources,5105647187,26.08.2015,Staff Benefits,Payment to Private Contractors,100.00,REDACTED PERSONAL DATA
Revenue,Place,5105647129,26.08.2015,Leaseholds by LA,Accommodation Costs - Leaseholder Payments,799.50,REDACTED PERSONAL DATA
Revenue,Place,5105647129,26.08.2015,Leaseholds by LA,Accommodation Costs - Leaseholder Payments,888.33,REDACTED PERSONAL DATA
Revenue,Place,5105647129,26.08.2015,Leaseholds by LA,Accommodation Costs - Leaseholder Payments,866.67,REDACTED PERSONAL DATA
Revenue,Place,5105647129,26.08.2015,Leaseholds by LA,Accommodation Costs - Leaseholder Payments,866.67,REDACTED PERSONAL DATA
Revenue,Place,5105647129,26.08.2015,Leaseholds by LA,Accommodation Costs - Leaseholder Payments,799.50,REDACTED PERSONAL DATA
Revenue,Place,5105647460,26.08.2015,Business Support  - Fire,Prop Svs only - Day to day mtce,41.40,BALFOUR BEATTY
Revenue,Place,5105647792,28.08.2015,Business Support  - Fire,Prop Svs only - Day to day mtce,158.59,BALFOUR BEATTY
Revenue,Place,5105645471,12.08.2015,Business Support  - Fire,Prop Svs only - Day to day mtce,216.04,BALFOUR BEATTY
Revenue,Place,5105644512,12.08.2015,Business Support  - Fire,Prop Svs only - Day to day mtce,89.62,BALFOUR BEATTY
Revenue,Place,5105645471,12.08.2015,Business Support  - Fire,Prop Svs only - Day to day mtce,273.30,BALFOUR BEATTY
Revenue,Place,5105645456,12.08.2015,Business Support  - Fire,Prop Svs only - Day to day mtce,33.32,BALFOUR BEATTY
Revenue,Place,5105645464,12.08.2015,Business Support  - Fire,Prop Svs only - Day to day mtce,146.70,BALFOUR BEATTY
Revenue,Place,5105641231,17.07.2015,Business Support  - Fire,Prop Svs only - Day to day mtce,521.00,BALFOUR BEATTY
Capital,Corporate Items,5105645925,12.08.2015,Balance Sheet,Prop Svs only - Day to day mtce,393.22,BALFOUR BEATTY
Revenue,Childrens Services,5105644513,12.08.2015,Children's Services Strategic Management,Minor Works,63.75,BALFOUR BEATTY
Revenue,Childrens Services,5105645457,12.08.2015,Children's Services Strategic Management,Minor Works,52.20,BALFOUR BEATTY
Capital,Childrens Services,5105647204,26.08.2015,One School Pathfinder,Payment to Contractors - Capital,212.46,BALFOUR BEATTY
Revenue,Place,5105647465,26.08.2015,Public Conveniences - General,Prop Svs only - Day to day mtce,121.20,BALFOUR BEATTY
Revenue,Place,5105647463,26.08.2015,Public Conveniences - General,Prop Svs only - Day to day mtce,50.25,BALFOUR BEATTY
Revenue,Place,5105647699,28.08.2015,Public Conveniences - General,Prop Svs only - Day to day mtce,52.50,BALFOUR BEATTY
Revenue,Place,5105647793,28.08.2015,Public Conveniences - General,Prop Svs only - Day to day mtce,95.24,BALFOUR BEATTY
Revenue,Place,5105647469,26.08.2015,Public Conveniences - General,Prop Svs only - Day to day mtce,57.75,BALFOUR BEATTY
Revenue,Place,5105647790,28.08.2015,Public Conveniences - General,Prop Svs only - Day to day mtce,67.50,BALFOUR BEATTY
Revenue,Place,5105647789,28.08.2015,Public Conveniences - General,Prop Svs only - Day to day mtce,102.15,BALFOUR BEATTY
Revenue,Place,5105647468,26.08.2015,Public Conveniences - General,Prop Svs only - Day to day mtce,50.25,BALFOUR BEATTY
Revenue,Place,5105647814,28.08.2015,Public Conveniences - General,Prop Svs only - Day to day mtce,138.07,BALFOUR BEATTY
Revenue,Place,5105647836,28.08.2015,Public Conveniences - General,Prop Svs only - Day to day mtce,132.15,BALFOUR BEATTY
Revenue,Place,5105647815,28.08.2015,Public Conveniences - General,Prop Svs only - Day to day mtce,86.52,BALFOUR BEATTY
Revenue,Place,5105641226,17.07.2015,Public Conveniences - General,Prop Svs only - Day to day mtce,317.62,BALFOUR BEATTY
Revenue,Place,5105643525,05.08.2015,Public Conveniences - General,Prop Svs only - Day to day mtce,139.93,BALFOUR BEATTY
Revenue,Place,5105645453,12.08.2015,Public Conveniences - General,Prop Svs only - Day to day mtce,72.00,BALFOUR BEATTY
Revenue,Place,5105645455,12.08.2015,Public Conveniences - General,Prop Svs only - Day to day mtce,83.04,BALFOUR BEATTY
Revenue,Place,5105645452,12.08.2015,Public Conveniences - General,Prop Svs only - Day to day mtce,87.01,BALFOUR BEATTY
Revenue,Place,5105645459,12.08.2015,Public Conveniences - General,Prop Svs only - Day to day mtce,101.70,BALFOUR BEATTY
Revenue,Place,5105645925,12.08.2015,Public Conveniences - General,Prop Svs only - Day to day mtce,286.80,BALFOUR BEATTY
Revenue,Place,5105645461,12.08.2015,Public Conveniences - General,Prop Svs only - Day to day mtce,91.20,BALFOUR BEATTY
Revenue,Place,5105645463,12.08.2015,Public Conveniences - General,Prop Svs only - Day to day mtce,108.96,BALFOUR BEATTY
Revenue,Place,5105645454,12.08.2015,Public Conveniences - General,Prop Svs only - Day to day mtce,39.15,BALFOUR BEATTY
Revenue,Place,5105644474,07.08.2015,Public Conveniences - General,Prop Svs only - Day to day mtce,32.71,BALFOUR BEATTY
Revenue,Place,5105644511,12.08.2015,Public Conveniences - General,Prop Svs only - Day to day mtce,113.08,BALFOUR BEATTY
Revenue,Place,5105644473,07.08.2015,Medina Leisure Centre,Prop Svs only - Day to day mtce,24.27,BALFOUR BEATTY
Revenue,Place,5105647813,28.08.2015,Medina Leisure Centre,Prop Svs only - Day to day mtce,133.26,BALFOUR BEATTY
Revenue,Place,5105647430,26.08.2015,Ryde Library,Prop Svs only - Day to day mtce,36.00,BALFOUR BEATTY
Revenue,Place,5105645471,12.08.2015,Ryde Library,Property Services - Planned Maintenance,389.94,BALFOUR BEATTY
Revenue,Childrens Services,5105645470,12.08.2015,Learning & Development Running Costs,Minor Works,"1,077.00",BALFOUR BEATTY
Revenue,Place,5105647840,28.08.2015,Archaeology,Prop Svs only - Day to day mtce,79.20,BALFOUR BEATTY
Revenue,Place,5105644518,12.08.2015,Medina Leisure Centre,Prop Svs only - Day to day mtce,66.27,BALFOUR BEATTY
Revenue,Adult Services,5105641232,17.07.2015,S75 Integrated Community Equipment Store,Fixtures and Fittings,256.60,BALFOUR BEATTY
Revenue,Adult Services,5105645925,12.08.2015,Plean Dene,Minor Works,347.22,BALFOUR BEATTY
Revenue,Adult Services,5105645473,12.08.2015,Plean Dene,Minor Works,179.43,BALFOUR BEATTY
Revenue,Adult Services,5105644021,07.08.2015,Gouldings Resource Centre,Prop Svs only - Day to day mtce,140.15,BALFOUR BEATTY
Revenue,Adult Services,5105644024,07.08.2015,Gouldings Resource Centre,Prop Svs only - Day to day mtce,93.86,BALFOUR BEATTY
Revenue,Adult Services,5105644475,07.08.2015,Westminster House,Prop Svs only - Day to day mtce,73.59,BALFOUR BEATTY
Revenue,Adult Services,5105647794,28.08.2015,Westminster House,Prop Svs only - Day to day mtce,197.16,BALFOUR BEATTY
Revenue,Adult Services,5105646626,19.08.2015,Saxonbury,Minor Works,34.88,BALFOUR BEATTY
Revenue,Adult Services,5105647817,28.08.2015,Saxonbury,Minor Works,78.42,BALFOUR BEATTY
Revenue,Adult Services,5105647461,26.08.2015,Saxonbury,Minor Works,76.50,BALFOUR BEATTY
Revenue,Adult Services,5105641229,17.07.2015,Gouldings Resource Centre,Property Services - Planned Maintenance,955.45,BALFOUR BEATTY
Revenue,Adult Services,5105645471,12.08.2015,Gouldings Resource Centre,Property Services - Planned Maintenance,288.00,BALFOUR BEATTY
Revenue,Adult Services,5105643357,12.08.2015,Gouldings Resource Centre,Property Services - Planned Maintenance,288.00,BALFOUR BEATTY
Revenue,Place,5105647773,28.08.2015,60 Dodnor Lane rechargeable,Prop Svs only - Day to day mtce,97.96,BALFOUR BEATTY
Revenue,Place,5105644027,07.08.2015,Non-operational buildings,Prop Svs only - Day to day mtce,131.49,BALFOUR BEATTY
Revenue,Place,5105644507,12.08.2015,Freshwater West Wight Library,Prop Svs only - Day to day mtce,47.20,BALFOUR BEATTY
Revenue,Childrens Services,5105645925,12.08.2015,Family Information Zone,Prop Svs only - Day to day mtce,553.31,BALFOUR BEATTY
Revenue,Childrens Services,5105644471,07.08.2015,Family Information Zone,Prop Svs only - Day to day mtce,107.11,BALFOUR BEATTY
Revenue,Adult Services,5105647493,26.08.2015,Highmead,Minor Works,20.05,BALFOUR BEATTY
Revenue,Adult Services,5105647707,28.08.2015,Highmead,Minor Works,68.25,BALFOUR BEATTY
Revenue,Adult Services,5105644500,12.08.2015,Highmead,Minor Works,61.98,BALFOUR BEATTY
Revenue,Adult Services,5105645471,12.08.2015,Highmead,Minor Works,301.35,BALFOUR BEATTY
Revenue,Place,5105644479,07.08.2015,17 Fairlee Road,Minor Works,83.10,BALFOUR BEATTY
Revenue,Place,5105645451,12.08.2015,17 Fairlee Road,Minor Works,38.58,BALFOUR BEATTY
Revenue,Place,5105647795,28.08.2015,"Guildhall,Newport",Prop Svs only - Day to day mtce,136.61,BALFOUR BEATTY
Revenue,Place,5105647839,28.08.2015,"Guildhall,Newport",Prop Svs only - Day to day mtce,105.33,BALFOUR BEATTY
Revenue,Place,5105644025,07.08.2015,"Guildhall,Newport",Minor Works,110.37,BALFOUR BEATTY
Revenue,Place,5105647485,26.08.2015,Properties  - Other Properties,Prop Svs only - Day to day mtce,142.81,BALFOUR BEATTY
Revenue,Place,5105640943,19.08.2015,Properties  - Other Properties,Prop Svs only - Day to day mtce,802.65,BALFOUR BEATTY
Revenue,Place,5105647811,28.08.2015,"Westridge, Ryde",Prop Svs only - Day to day mtce,63.00,BALFOUR BEATTY
Capital,Resources,5105643529,05.08.2015,Management of Asbestos,Payment to Contractors - Capital,"2,169.00",BALFOUR BEATTY
Revenue,Childrens Services,5105645471,12.08.2015,Beaulieu House,Minor Works,"1,151.68",BALFOUR BEATTY
Revenue,Childrens Services,5105645447,12.08.2015,Beaulieu House,Minor Works,77.21,BALFOUR BEATTY
Revenue,Childrens Services,5105641227,17.07.2015,Youth- Brading,Prop Svs only - Day to day mtce,553.80,BALFOUR BEATTY
Revenue,Childrens Services,5105647432,26.08.2015,Beaulieu House,Minor Works,47.70,BALFOUR BEATTY
Revenue,Childrens Services,5105644515,12.08.2015,Beaulieu House,Minor Works,80.68,BALFOUR BEATTY
Revenue,Childrens Services,5105645449,12.08.2015,Youth- Ventnor,Prop Svs only - Day to day mtce,52.20,BALFOUR BEATTY
Revenue,Childrens Services,5105645467,12.08.2015,Island Learning Centre,Minor Works,195.30,BALFOUR BEATTY
Revenue,Childrens Services,5105646442,19.08.2015,Island Learning Centre,Minor Works,108.02,BALFOUR BEATTY
Revenue,Childrens Services,5105644483,07.08.2015,Island Learning Centre,Minor Works,186.70,BALFOUR BEATTY
Revenue,Childrens Services,5105644499,12.08.2015,Island Learning Centre,Minor Works,132.30,BALFOUR BEATTY
Revenue,Place,5105645471,12.08.2015,Cothey Bottom Store RYDE,Property Services - Planned Maintenance,444.66,BALFOUR BEATTY
Revenue,Place,5105647791,28.08.2015,Shanklin Lift,Prop Svs only - Day to day mtce,99.96,BALFOUR BEATTY
Revenue,Place,5105641230,17.07.2015,"County Hall,Newport",Prop Svs only - Day to day mtce,288.38,BALFOUR BEATTY
Revenue,Place,5105644504,12.08.2015,"County Hall,Newport",Prop Svs only - Day to day mtce,30.99,BALFOUR BEATTY
Revenue,Place,5105645925,12.08.2015,"County Hall,Newport",Prop Svs only - Day to day mtce,345.07,BALFOUR BEATTY
Revenue,Place,5105645458,12.08.2015,"County Hall,Newport",Prop Svs only - Day to day mtce,76.68,BALFOUR BEATTY
Revenue,Place,5105644516,12.08.2015,"Bugle House,Newport",Prop Svs only - Day to day mtce,51.90,BALFOUR BEATTY
Revenue,Place,5105645462,12.08.2015,"Bugle House,Newport",Property Services - Planned Maintenance,112.50,BALFOUR BEATTY
Revenue,Place,5105645925,12.08.2015,"Jubilee Stores, Newport",Minor Works,"2,182.14",BALFOUR BEATTY
Revenue,Place,5105647462,26.08.2015,"Jubilee Stores, Newport",Prop Svs only - Day to day mtce,136.00,BALFOUR BEATTY
Revenue,Place,5105643988,07.08.2015,"Jubilee Stores, Newport",Prop Svs only - Day to day mtce,-61.10,BALFOUR BEATTY
Revenue,Place,5105645925,12.08.2015,"Jubilee Stores, Newport",Prop Svs only - Day to day mtce,93.50,BALFOUR BEATTY
Revenue,Place,5105647466,26.08.2015,"County Hall,Newport",Prop Svs only - Day to day mtce,108.06,BALFOUR BEATTY
Revenue,Place,5105647837,28.08.2015,Crematorium,Prop Svs only - Day to day mtce,43.20,BALFOUR BEATTY
Revenue,Place,5105644477,07.08.2015,Crematorium,Prop Svs only - Day to day mtce,139.45,BALFOUR BEATTY
Revenue,Childrens Services,5105645599,12.08.2015,HCC Property Services SLA,Minor Works,69.00,BALFOUR BEATTY
Revenue,Childrens Services,5105645597,12.08.2015,HCC Property Services SLA,Minor Works,138.00,BALFOUR BEATTY
Revenue,Childrens Services,5105645598,12.08.2015,HCC Property Services SLA,Minor Works,138.00,BALFOUR BEATTY
Revenue,Childrens Services,5105645600,12.08.2015,HCC Property Services SLA,Minor Works,138.00,BALFOUR BEATTY
Revenue,Childrens Services,5105646208,14.08.2015,HCC Property Services SLA,Minor Works,80.00,BALFOUR BEATTY
Revenue,Childrens Services,5105645601,12.08.2015,HCC Property Services SLA,Minor Works,184.00,BALFOUR BEATTY
Revenue,Childrens Services,5105643419,05.08.2015,HCC Property Services SLA,Minor Works,414.00,BALFOUR BEATTY
Revenue,Childrens Services,5105643420,05.08.2015,HCC Property Services SLA,Minor Works,150.00,BALFOUR BEATTY
Revenue,Childrens Services,5105641234,19.08.2015,Non-Delegated Building Maintenance,Minor Works,709.00,BALFOUR BEATTY
Revenue,Childrens Services,5105647838,28.08.2015,Childrens Centres Maintenance,Minor Works,52.20,BALFOUR BEATTY
Revenue,Childrens Services,5105644514,12.08.2015,Childrens Centres Maintenance,Minor Works,131.40,BALFOUR BEATTY
Revenue,Place,5105644030,07.08.2015,Open space lettings,Prop Svs only - Day to day mtce,102.50,BALFOUR BEATTY
Revenue,Place,5105645460,12.08.2015,Fire Fighters Salaries,Prop Svs only - Day to day mtce,146.65,BALFOUR BEATTY
Revenue,Place,5105644509,12.08.2015,Fire Fighters Salaries,Prop Svs only - Day to day mtce,36.00,BALFOUR BEATTY
Revenue,Place,5105645471,12.08.2015,Dinosaur Isle Museum (Sandown Geology),Property Services - Planned Maintenance,895.38,BALFOUR BEATTY
Revenue,Adult Services,5105641233,19.08.2015,Adelaide Resource Centre,Prop Svs only - Day to day mtce,288.00,BALFOUR BEATTY
Revenue,Adult Services,5105644501,12.08.2015,Adelaide Resource Centre,Prop Svs only - Day to day mtce,77.05,BALFOUR BEATTY
Revenue,Adult Services,5105644503,12.08.2015,Adelaide Resource Centre,Prop Svs only - Day to day mtce,122.48,BALFOUR BEATTY
Revenue,Adult Services,5105641228,17.07.2015,Adelaide Resource Centre,Minor Works,245.90,BALFOUR BEATTY
Revenue,Adult Services,5105645471,12.08.2015,Adelaide Resource Centre,Property Services - Planned Maintenance,288.00,BALFOUR BEATTY
Revenue,Adult Services,5105647788,28.08.2015,Adelaide Resource Centre,Prop Svs only - Day to day mtce,48.85,BALFOUR BEATTY
Revenue,Adult Services,5105645465,12.08.2015,Adelaide Resource Centre,Prop Svs only - Day to day mtce,81.90,BALFOUR BEATTY
Revenue,Place,5105644502,12.08.2015,Downside Community & Learning Centre,Minor Works,84.38,BALFOUR BEATTY
Revenue,Place,5105645925,12.08.2015,Downside Community & Learning Centre,Minor Works,"1,078.24",BALFOUR BEATTY
Revenue,Adult Services,5105644517,12.08.2015,The Laurels,Minor Works,32.40,BALFOUR BEATTY
Revenue,Adult Services,5105647522,28.08.2015,The Laurels,Minor Works,83.81,BALFOUR BEATTY
Revenue,Place,5105645471,12.08.2015,"Civic Centre,Sandown",Property Services - Planned Maintenance,791.96,BALFOUR BEATTY
Revenue,Place,5105645448,12.08.2015,"Civic Centre,Sandown",Prop Svs only - Day to day mtce,69.02,BALFOUR BEATTY
Revenue,Place,5105645450,12.08.2015,"Civic Centre,Sandown",Prop Svs only - Day to day mtce,126.00,BALFOUR BEATTY
Revenue,Childrens Services,5105643662,05.08.2015,LSCB (Local Safeguarding Childrens Board),Training,743.00,BARNARDOS
Revenue,Childrens Services,5105643732,07.08.2015,Adoption Costs,Payments to Other Local Authorities,"18,000.00",BARNARDO'S
Revenue,Resources,5105647166,26.08.2015,Staff Benefits,Payment to Private Contractors,50.00,BARTON PRIMARY & EARLY YEARS
Revenue,Resources,5105647166,26.08.2015,Staff Benefits,Payment to Private Contractors,11.67,BARTON PRIMARY & EARLY YEARS
Revenue,Place,5105646976,21.08.2015,Medina Leisure Centre,Consumable Cleaning Materials,117.50,LAKE CLEANING & CATERING SUPPLIES
Revenue,Place,5105646976,21.08.2015,Medina Leisure Centre,Consumable Cleaning Materials,39.39,LAKE CLEANING & CATERING SUPPLIES
Revenue,Place,5105646976,21.08.2015,Medina Leisure Centre,Consumable Cleaning Materials,34.92,LAKE CLEANING & CATERING SUPPLIES
Revenue,Place,5105646976,21.08.2015,Medina Leisure Centre,Consumable Cleaning Materials,28.68,LAKE CLEANING & CATERING SUPPLIES
Revenue,Place,5105646976,21.08.2015,Medina Leisure Centre,Consumable Cleaning Materials,14.45,LAKE CLEANING & CATERING SUPPLIES
Revenue,Place,5105646976,21.08.2015,Medina Leisure Centre,Consumable Cleaning Materials,9.24,LAKE CLEANING & CATERING SUPPLIES
Revenue,Adult Services,5105643290,07.08.2015,Plean Dene,Operational Equipment,23.87,LAKE CLEANING & CATERING SUPPLIES
Revenue,Childrens Services,5105643663,05.08.2015,Beaulieu House,General Materials,81.35,LAKE CLEANING & CATERING SUPPLIES
Revenue,Childrens Services,5105647419,26.08.2015,Beaulieu House,General Materials,51.40,LAKE CLEANING & CATERING SUPPLIES
Revenue,Childrens Services,5105647422,26.08.2015,Beaulieu House,General Materials,22.87,LAKE CLEANING & CATERING SUPPLIES
Revenue,Childrens Services,5105647417,26.08.2015,Beaulieu House,General Materials,173.59,LAKE CLEANING & CATERING SUPPLIES
Revenue,Childrens Services,5105647420,26.08.2015,Beaulieu House,General Materials,29.84,LAKE CLEANING & CATERING SUPPLIES
Revenue,Childrens Services,5105647418,26.08.2015,Beaulieu House,General Materials,40.61,LAKE CLEANING & CATERING SUPPLIES
Revenue,Childrens Services,5105647416,26.08.2015,Beaulieu House,Professional Services,16.95,LAKE CLEANING & CATERING SUPPLIES
Revenue,Place,5105647414,26.08.2015,Westridge Squash Courts,Consumable Cleaning Materials,230.24,LAKE CLEANING & CATERING SUPPLIES
Revenue,Place,5105644015,07.08.2015,Crematorium,Sundry Office Expenses,28.00,LAKE CLEANING & CATERING SUPPLIES
Revenue,Place,5105647408,26.08.2015,The Heights,Consumable Cleaning Materials,99.96,LAKE CLEANING & CATERING SUPPLIES
Revenue,Place,5105643434,05.08.2015,The Heights,Consumable Cleaning Materials,135.17,LAKE CLEANING & CATERING SUPPLIES
Revenue,Place,5105643443,05.08.2015,The Heights,Consumable Cleaning Materials,263.70,LAKE CLEANING & CATERING SUPPLIES
Revenue,Place,5105646973,21.08.2015,The Heights,Consumable Cleaning Materials,165.72,LAKE CLEANING & CATERING SUPPLIES
Revenue,Place,5105646972,21.08.2015,The Heights,Consumable Cleaning Materials,157.04,LAKE CLEANING & CATERING SUPPLIES
Revenue,Place,5105646972,21.08.2015,The Heights,Operational Equipment,26.80,LAKE CLEANING & CATERING SUPPLIES
Revenue,Place,5105646973,21.08.2015,The Heights,Catering Equipment,23.67,LAKE CLEANING & CATERING SUPPLIES
Revenue,Place,5105646203,14.08.2015,Dinosaur Isle Museum (Sandown Geology),Operational Equipment,"1,511.40",BB INTERPRETIVE PRODUCTS LTD
Revenue,Place,5105644020,07.08.2015,Diversity & Workforce,Advertising & Publicity,272.00,BEACON MEDIA LIMITED
Revenue,Childrens Services,5105643473,12.08.2015,Support for Looked After Children - Disabled Childrens Team,Transport of Clients,420.00,BEACON TAXIS
Revenue,Place,5105647825,28.08.2015,Newport Harbour Account,Vehicle Maintenance Costs,370.00,BEAUFORT MARINE LTD
Revenue,Place,5105647826,28.08.2015,Newport Harbour Account,Operational Equipment,167.65,BEAUFORT MARINE LTD
Revenue,Adult Services,5105644926,12.08.2015,Elderly Mentally Ill Nursing Mainland,Charges from Independent Providers,"2,269.40",BEAUMONT LODGE LTD
Revenue,Place,5105646627,28.08.2015,SOREC Project ERDF,Grants to External Bodies,"4,789.95",BELAY ROPE ACCESS
Revenue,Place,5105646195,28.08.2015,Environmental Health - Geographical Team,Clothing & Laundry,26.20,BERENDSEN
Revenue,Adult Services,5105646192,14.08.2015,Community Laundry Service,Clothing & Laundry,13.74,BERENDSEN
Revenue,Adult Services,5105646193,14.08.2015,Community Laundry Service,Clothing & Laundry,13.74,BERENDSEN
Revenue,Adult Services,5105646146,14.08.2015,Community Laundry Service,Clothing & Laundry,13.74,BERENDSEN
Revenue,Place,5105647702,28.08.2015,B&B Properties,Accommodation Costs - Bed & Breakfast,"8,804.00",BERTRAM LODGE
Revenue,Adult Services,5105646522,19.08.2015,Gouldings Resource Centre,Consumable Cleaning Materials,19.68,BETA PAK LTD
Revenue,Adult Services,5105645616,21.08.2015,Gouldings Resource Centre,Consumable Cleaning Materials,56.91,BETA PAK LTD
Revenue,Adult Services,5105645904,12.08.2015,Gouldings Resource Centre,Consumable Cleaning Materials,618.63,BETA PAK LTD
Revenue,Adult Services,5105646201,14.08.2015,Gouldings Resource Centre,Consumable Cleaning Materials,56.91,BETA PAK LTD
Revenue,Adult Services,5105643640,05.08.2015,Gouldings Resource Centre,Consumable Cleaning Materials,277.82,BETA PAK LTD
Revenue,Adult Services,5105643978,07.08.2015,Gouldings Resource Centre,Consumable Cleaning Materials,5.69,BETA PAK LTD
Revenue,Adult Services,5105643946,07.08.2015,Gouldings Resource Centre,Consumable Cleaning Materials,5.69,BETA PAK LTD
Revenue,Adult Services,5105647047,21.08.2015,Gouldings Resource Centre,Consumable Cleaning Materials,150.12,BETA PAK LTD
Revenue,Adult Services,5105646370,19.08.2015,Plean Dene,Operational Equipment,5.49,BETA PAK LTD
Revenue,Adult Services,5105646471,19.08.2015,Plean Dene,Operational Equipment,16.50,BETA PAK LTD
Revenue,Adult Services,5105646226,19.08.2015,Plean Dene,Operational Equipment,1.75,BETA PAK LTD
Revenue,Adult Services,5105646292,19.08.2015,Plean Dene,Operational Equipment,15.14,BETA PAK LTD
Revenue,Adult Services,5105646592,19.08.2015,Plean Dene,Operational Equipment,5.49,BETA PAK LTD
Revenue,Adult Services,5105646740,19.08.2015,Plean Dene,Operational Equipment,37.39,BETA PAK LTD
Revenue,Adult Services,5105643340,05.08.2015,Plean Dene,Operational Equipment,5.54,BETA PAK LTD
Revenue,Adult Services,5105643361,05.08.2015,Plean Dene,Operational Equipment,31.87,BETA PAK LTD
Revenue,Adult Services,5105645911,12.08.2015,Plean Dene,Operational Equipment,34.47,BETA PAK LTD
Revenue,Adult Services,5105647044,28.08.2015,Plean Dene,Operational Equipment,18.10,BETA PAK LTD
Revenue,Adult Services,5105643981,12.08.2015,Plean Dene,Operational Equipment,135.40,BETA PAK LTD
Revenue,Adult Services,5105643981,12.08.2015,Plean Dene,Operational Equipment,11.49,BETA PAK LTD
Revenue,Adult Services,5105643476,05.08.2015,Plean Dene,Operational Equipment,23.43,BETA PAK LTD
Revenue,Adult Services,5105643498,05.08.2015,Plean Dene,Operational Equipment,40.25,BETA PAK LTD
Revenue,Adult Services,5105643969,12.08.2015,Saxonbury,Operational Equipment,214.03,BETA PAK LTD
Revenue,Adult Services,5105643979,12.08.2015,Saxonbury,Operational Equipment,44.14,BETA PAK LTD
Revenue,Adult Services,5105643582,05.08.2015,Saxonbury,Operational Equipment,3.51,BETA PAK LTD
Revenue,Adult Services,5105641903,05.08.2015,Saxonbury,Operational Equipment,190.42,BETA PAK LTD
Revenue,Resources,5105646764,21.08.2015,Payroll,Medical Fees and Staff Welfare,23.68,BETA PAK LTD
Revenue,Adult Services,5105641214,05.08.2015,31 Carter Avenue,Operational Equipment,4.92,BETA PAK LTD
Revenue,Adult Services,5105643316,05.08.2015,31 Carter Avenue,Operational Equipment,134.39,BETA PAK LTD
Revenue,Adult Services,5105643374,05.08.2015,31 Carter Avenue,Operational Equipment,44.58,BETA PAK LTD
Revenue,Adult Services,5105643450,12.08.2015,31 Carter Avenue,Operational Equipment,34.41,BETA PAK LTD
Revenue,Adult Services,5105641211,05.08.2015,31 Carter Avenue,Operational Equipment,14.29,BETA PAK LTD
Revenue,Adult Services,5105645593,12.08.2015,31 Carter Avenue,Operational Equipment,88.30,BETA PAK LTD
Revenue,Adult Services,5105646722,19.08.2015,31 Carter Avenue,Operational Equipment,12.97,BETA PAK LTD
Revenue,Adult Services,5105646563,19.08.2015,31 Carter Avenue,Operational Equipment,164.37,BETA PAK LTD
Revenue,Adult Services,5105641175,05.08.2015,Highmead,Operational Equipment,370.69,BETA PAK LTD
Revenue,Adult Services,5105645438,12.08.2015,Highmead,Operational Equipment,11.13,BETA PAK LTD
Revenue,Adult Services,5105646462,19.08.2015,Highmead,Operational Equipment,16.50,BETA PAK LTD
Revenue,Adult Services,5105646463,19.08.2015,Highmead,Operational Equipment,87.17,BETA PAK LTD
Revenue,Adult Services,5105646734,19.08.2015,Highmead,Operational Equipment,232.38,BETA PAK LTD
Revenue,Adult Services,5105647400,26.08.2015,Highmead,Operational Equipment,21.35,BETA PAK LTD
Revenue,Adult Services,5105643983,14.08.2015,Highmead,Operational Equipment,331.28,BETA PAK LTD
Revenue,Adult Services,5105647434,26.08.2015,Community Outreach,Consumable Cleaning Materials,576.00,BETA PAK LTD
Revenue,Adult Services,5105644033,14.08.2015,Seagulls,Operational Equipment,19.77,BETA PAK LTD
Revenue,Adult Services,5105641163,12.08.2015,Seagulls,Operational Equipment,4.92,BETA PAK LTD
Revenue,Adult Services,5105643710,14.08.2015,Seagulls,Operational Equipment,7.69,BETA PAK LTD
Revenue,Resources,5105646764,21.08.2015,Call Centre,Medical Fees and Staff Welfare,23.68,BETA PAK LTD
Revenue,Place,5105643427,05.08.2015,Dinosaur Isle Museum (Sandown Geology),Stock Purchases,26.04,BETA PAK LTD
Revenue,Place,5105646766,21.08.2015,Dinosaur Isle Museum (Sandown Geology),Stock Purchases,16.28,BETA PAK LTD
Revenue,Place,5105646200,14.08.2015,Dinosaur Isle Museum (Sandown Geology),Stock Purchases,32.56,BETA PAK LTD
Revenue,Place,5105646200,14.08.2015,Dinosaur Isle Museum (Sandown Geology),Stock Purchases,95.68,BETA PAK LTD
Revenue,Adult Services,5105643472,05.08.2015,Adelaide Resource Centre,Consumable Cleaning Materials,12.56,BETA PAK LTD
Revenue,Adult Services,5105646215,14.08.2015,Adelaide Resource Centre,Consumable Cleaning Materials,64.04,BETA PAK LTD
Revenue,Adult Services,5105645567,12.08.2015,Adelaide Resource Centre,Consumable Cleaning Materials,128.39,BETA PAK LTD
Revenue,Adult Services,5105645956,14.08.2015,Adelaide Resource Centre,Fixtures and Fittings,131.94,BETA PAK LTD
Revenue,Place,5105643923,07.08.2015,Downside Community & Learning Centre,Consumable Cleaning Materials,10.88,BETA PAK LTD
Revenue,Adult Services,5105646730,19.08.2015,Overbrook,Operational Equipment,66.18,BETA PAK LTD
Revenue,Adult Services,5105646970,21.08.2015,Overbrook,Operational Equipment,19.33,BETA PAK LTD
Revenue,Adult Services,5105642650,12.08.2015,Overbrook,Operational Equipment,12.85,BETA PAK LTD
Revenue,Adult Services,5105643506,05.08.2015,The Laurels,Operational Equipment,380.37,BETA PAK LTD
Revenue,Adult Services,5105643501,05.08.2015,The Laurels,Operational Equipment,17.06,BETA PAK LTD
Revenue,Adult Services,5105647244,26.08.2015,The Laurels,Operational Equipment,362.78,BETA PAK LTD
Revenue,Adult Services,5105642851,05.08.2015,The Laurels,Operational Equipment,9.98,BETA PAK LTD
Revenue,Adult Services,5105644680,12.08.2015,Physical Disability Homecare,Charges from Independent Providers,122.24,BETTER AT HOME IOW LTD
Revenue,Adult Services,5105644675,12.08.2015,Physical Disability Homecare,Charges from Independent Providers,985.56,BETTER AT HOME IOW LTD
Revenue,Adult Services,5105644654,12.08.2015,Physical Disability Homecare,Charges from Independent Providers,106.96,BETTER AT HOME IOW LTD
Revenue,Adult Services,5105644652,12.08.2015,Physical Disability Homecare,Charges from Independent Providers,320.88,BETTER AT HOME IOW LTD
Revenue,Adult Services,5105644663,12.08.2015,Physical Disability Homecare,Charges from Independent Providers,"3,162.96",BETTER AT HOME IOW LTD
Revenue,Adult Services,5105644674,12.08.2015,Physical Disability Homecare,Charges from Independent Providers,106.96,BETTER AT HOME IOW LTD
Revenue,Adult Services,5105644246,07.08.2015,Physical Disability Homecare,Charges from Independent Providers,328.52,BETTER AT HOME IOW LTD
Revenue,Adult Services,5105644682,12.08.2015,Physical Disability Homecare,Charges from Independent Providers,206.28,BETTER AT HOME IOW LTD
Revenue,Adult Services,5105644243,07.08.2015,Physical Disability Homecare,Charges from Independent Providers,355.26,BETTER AT HOME IOW LTD
Revenue,Adult Services,5105644668,12.08.2015,Physical Disability Homecare,Charges from Independent Providers,462.22,BETTER AT HOME IOW LTD
Revenue,Adult Services,5105644667,12.08.2015,Physical Disability Homecare,Regular Respite Care,61.12,BETTER AT HOME IOW LTD
Revenue,Adult Services,5105644672,12.08.2015,Physical Disability Homecare,Regular Respite Care,30.56,BETTER AT HOME IOW LTD
Revenue,Adult Services,5105644245,07.08.2015,Elderly Frail Homecare,Regular Respite Care,336.16,BETTER AT HOME IOW LTD
Revenue,Adult Services,5105644646,12.08.2015,Elderly Frail Homecare,Regular Respite Care,122.24,BETTER AT HOME IOW LTD
Revenue,Adult Services,5105644242,07.08.2015,Elderly Frail Homecare,Regular Respite Care,122.24,BETTER AT HOME IOW LTD
Revenue,Adult Services,5105644655,12.08.2015,Elderly Frail Homecare,Regular Respite Care,244.48,BETTER AT HOME IOW LTD
Revenue,Adult Services,5105644238,07.08.2015,Elderly Frail Homecare,Regular Respite Care,122.24,BETTER AT HOME IOW LTD
Revenue,Adult Services,5105644679,12.08.2015,Elderly Frail Homecare,Regular Respite Care,183.36,BETTER AT HOME IOW LTD
Revenue,Adult Services,5105644637,12.08.2015,Mental Health Homecare,Charges from Independent Providers,336.16,BETTER AT HOME IOW LTD
Revenue,Adult Services,5105646242,14.08.2015,Elderly Frail Homecare,Charges from Independent Providers,630.30,BETTER AT HOME IOW LTD
Revenue,Adult Services,5105646241,14.08.2015,Elderly Frail Homecare,Charges from Independent Providers,"1,054.32",BETTER AT HOME IOW LTD
Revenue,Adult Services,5105644634,12.08.2015,Elderly Frail Homecare,Charges from Independent Providers,458.40,BETTER AT HOME IOW LTD
Revenue,Adult Services,5105644638,12.08.2015,Elderly Frail Homecare,Charges from Independent Providers,657.04,BETTER AT HOME IOW LTD
Revenue,Adult Services,5105644634,12.08.2015,Elderly Frail Homecare,Charges from Independent Providers,267.40,BETTER AT HOME IOW LTD
Revenue,Adult Services,5105644650,12.08.2015,Elderly Frail Homecare,Charges from Independent Providers,427.84,BETTER AT HOME IOW LTD
Revenue,Adult Services,5105644649,12.08.2015,Elderly Frail Homecare,Charges from Independent Providers,412.56,BETTER AT HOME IOW LTD
Revenue,Adult Services,5105644664,12.08.2015,Elderly Frail Homecare,Charges from Independent Providers,366.72,BETTER AT HOME IOW LTD
Revenue,Adult Services,5105644665,12.08.2015,Elderly Frail Homecare,Charges from Independent Providers,695.24,BETTER AT HOME IOW LTD
Revenue,Adult Services,5105644631,12.08.2015,Elderly Frail Homecare,Charges from Independent Providers,404.92,BETTER AT HOME IOW LTD
Revenue,Adult Services,5105644633,12.08.2015,Elderly Frail Homecare,Charges from Independent Providers,427.84,BETTER AT HOME IOW LTD
Revenue,Adult Services,5105644635,12.08.2015,Elderly Frail Homecare,Charges from Independent Providers,"1,054.32",BETTER AT HOME IOW LTD
Revenue,Adult Services,5105644632,12.08.2015,Elderly Frail Homecare,Charges from Independent Providers,"1,039.04",BETTER AT HOME IOW LTD
Revenue,Adult Services,5105644651,12.08.2015,Elderly Frail Homecare,Charges from Independent Providers,420.20,BETTER AT HOME IOW LTD
Revenue,Adult Services,5105644683,12.08.2015,Elderly Frail Homecare,Charges from Independent Providers,114.60,BETTER AT HOME IOW LTD
Revenue,Adult Services,5105644670,12.08.2015,Elderly Frail Homecare,Charges from Independent Providers,122.24,BETTER AT HOME IOW LTD
Revenue,Adult Services,5105644669,12.08.2015,Elderly Frail Homecare,Charges from Independent Providers,0.00,BETTER AT HOME IOW LTD
Revenue,Adult Services,5105644673,12.08.2015,Elderly Frail Homecare,Charges from Independent Providers,534.80,BETTER AT HOME IOW LTD
Revenue,Adult Services,5105644239,07.08.2015,Elderly Frail Homecare,Charges from Independent Providers,427.84,BETTER AT HOME IOW LTD
Revenue,Adult Services,5105644639,12.08.2015,Elderly Frail Homecare,Charges from Independent Providers,870.96,BETTER AT HOME IOW LTD
Revenue,Adult Services,5105644642,12.08.2015,Elderly Frail Homecare,Charges from Independent Providers,488.96,BETTER AT HOME IOW LTD
Revenue,Adult Services,5105644636,12.08.2015,Elderly Frail Homecare,Charges from Independent Providers,427.84,BETTER AT HOME IOW LTD
Revenue,Adult Services,5105644645,12.08.2015,Elderly Frail Homecare,Charges from Independent Providers,229.20,BETTER AT HOME IOW LTD
Revenue,Adult Services,5105644641,12.08.2015,Elderly Frail Homecare,Charges from Independent Providers,45.84,BETTER AT HOME IOW LTD
Revenue,Adult Services,5105644640,12.08.2015,Elderly Frail Homecare,Charges from Independent Providers,580.64,BETTER AT HOME IOW LTD
Revenue,Adult Services,5105644653,12.08.2015,Elderly Frail Homecare,Charges from Independent Providers,297.96,BETTER AT HOME IOW LTD
Revenue,Adult Services,5105644659,12.08.2015,Elderly Frail Homecare,Charges from Independent Providers,"1,405.76",BETTER AT HOME IOW LTD
Revenue,Adult Services,5105644644,12.08.2015,Elderly Frail Homecare,Charges from Independent Providers,840.40,BETTER AT HOME IOW LTD
Revenue,Adult Services,5105644643,12.08.2015,Elderly Frail Homecare,Charges from Independent Providers,137.52,BETTER AT HOME IOW LTD
Revenue,Adult Services,5105644660,12.08.2015,Elderly Frail Homecare,Charges from Independent Providers,"2,353.12",BETTER AT HOME IOW LTD
Revenue,Adult Services,5105644661,12.08.2015,Elderly Frail Homecare,Charges from Independent Providers,641.76,BETTER AT HOME IOW LTD
Revenue,Adult Services,5105644657,12.08.2015,Elderly Frail Homecare,Charges from Independent Providers,320.88,BETTER AT HOME IOW LTD
Revenue,Adult Services,5105644662,12.08.2015,Elderly Frail Homecare,Charges from Independent Providers,114.60,BETTER AT HOME IOW LTD
Revenue,Adult Services,5105644244,07.08.2015,Elderly Frail Homecare,Charges from Independent Providers,152.80,BETTER AT HOME IOW LTD
Revenue,Adult Services,5105644666,12.08.2015,Elderly Frail Homecare,Charges from Independent Providers,706.70,BETTER AT HOME IOW LTD
Revenue,Adult Services,5105644241,07.08.2015,Elderly Frail Homecare,Charges from Independent Providers,320.88,BETTER AT HOME IOW LTD
Revenue,Adult Services,5105644647,12.08.2015,Elderly Frail Homecare,Charges from Independent Providers,213.92,BETTER AT HOME IOW LTD
Revenue,Adult Services,5105644240,07.08.2015,Elderly Frail Homecare,Charges from Independent Providers,217.74,BETTER AT HOME IOW LTD
Revenue,Adult Services,5105644237,07.08.2015,Elderly Frail Homecare,Charges from Independent Providers,466.04,BETTER AT HOME IOW LTD
Revenue,Adult Services,5105644236,07.08.2015,Elderly Frail Homecare,Charges from Independent Providers,"1,497.44",BETTER AT HOME IOW LTD
Revenue,Adult Services,5105644656,12.08.2015,Elderly Frail Homecare,Charges from Independent Providers,420.20,BETTER AT HOME IOW LTD
Revenue,Adult Services,5105644235,07.08.2015,Elderly Frail Homecare,Charges from Independent Providers,710.52,BETTER AT HOME IOW LTD
Revenue,Adult Services,5105644249,07.08.2015,Elderly Frail Homecare,Charges from Independent Providers,420.20,BETTER AT HOME IOW LTD
Revenue,Adult Services,5105644676,12.08.2015,Elderly Frail Homecare,Charges from Independent Providers,641.76,BETTER AT HOME IOW LTD
Revenue,Adult Services,5105644247,07.08.2015,Elderly Frail Homecare,Charges from Independent Providers,473.68,BETTER AT HOME IOW LTD
Revenue,Adult Services,5105644677,12.08.2015,Elderly Frail Homecare,Charges from Independent Providers,427.84,BETTER AT HOME IOW LTD
Revenue,Adult Services,5105644248,07.08.2015,Elderly Frail Homecare,Charges from Independent Providers,886.24,BETTER AT HOME IOW LTD
Revenue,Adult Services,5105644678,12.08.2015,Elderly Frail Homecare,Charges from Independent Providers,99.32,BETTER AT HOME IOW LTD
Revenue,Adult Services,5105644681,12.08.2015,Elderly Frail Homecare,Charges from Independent Providers,61.12,BETTER AT HOME IOW LTD
Revenue,Adult Services,5105644671,12.08.2015,Elderly Frail Homecare,Charges from Independent Providers,359.08,BETTER AT HOME IOW LTD
Revenue,Adult Services,5105644658,12.08.2015,Elderly Mentally Ill Homecare,Charges from Independent Providers,962.64,BETTER AT HOME IOW LTD
Revenue,Adult Services,5105644648,12.08.2015,Elderly Mentally Ill Homecare,Charges from Independent Providers,641.76,BETTER AT HOME IOW LTD
Revenue,Resources,5105646212,19.08.2015,Organisational Development � Leadership,Professional Services,"1,900.00",BEVAN YOUNG ASSOCIATES
Revenue,Childrens Services,5105646212,19.08.2015,Core Programmes,Training,750.00,BEVAN YOUNG ASSOCIATES
Revenue,Childrens Services,5105646212,19.08.2015,Core Programmes,Training,750.00,BEVAN YOUNG ASSOCIATES
Revenue,Place,5105643696,05.08.2015,Medina Leisure Centre,Stock Purchases,160.67,3663 (BFS GROUP LTD)
Revenue,Place,5105643718,07.08.2015,Medina Leisure Centre,Stock Purchases,25.86,3663 (BFS GROUP LTD)
Revenue,Adult Services,5105647265,26.08.2015,Gouldings Resource Centre,Catering Purchases,385.50,3663 (BFS GROUP LTD)
Revenue,Adult Services,5105647265,26.08.2015,Gouldings Resource Centre,Catering Purchases,93.16,3663 (BFS GROUP LTD)
Revenue,Adult Services,5105643621,05.08.2015,Gouldings Resource Centre,Catering Purchases,254.98,3663 (BFS GROUP LTD)
Revenue,Adult Services,5105643621,05.08.2015,Gouldings Resource Centre,Catering Purchases,8.77,3663 (BFS GROUP LTD)
Revenue,Adult Services,5105644478,07.08.2015,Gouldings Resource Centre,Catering Purchases,499.16,3663 (BFS GROUP LTD)
Revenue,Adult Services,5105643707,05.08.2015,Westminster House,Catering Purchases,42.02,3663 (BFS GROUP LTD)
Revenue,Adult Services,5105643708,05.08.2015,Westminster House,Catering Purchases,137.47,3663 (BFS GROUP LTD)
Revenue,Adult Services,5105643709,05.08.2015,Westminster House,Catering Purchases,158.05,3663 (BFS GROUP LTD)
Revenue,Adult Services,5105647011,21.08.2015,Westminster House,Catering Purchases,178.23,3663 (BFS GROUP LTD)
Revenue,Adult Services,5105647006,21.08.2015,Westminster House,Catering Purchases,126.83,3663 (BFS GROUP LTD)
Revenue,Adult Services,5105646979,21.08.2015,Westminster House,Catering Purchases,119.49,3663 (BFS GROUP LTD)
Revenue,Place,5105645549,12.08.2015,Westridge Squash Courts,Stock Purchases,102.94,3663 (BFS GROUP LTD)
Revenue,Place,5105645541,17.08.2015,The Heights,Stock Purchases,263.63,3663 (BFS GROUP LTD)
Revenue,Place,5105645551,12.08.2015,The Heights,Stock Purchases,103.02,3663 (BFS GROUP LTD)
Revenue,Place,5105647083,21.08.2015,The Heights,Stock Purchases,122.86,3663 (BFS GROUP LTD)
Revenue,Place,5105647083,21.08.2015,The Heights,Stock Purchases,94.06,3663 (BFS GROUP LTD)
Revenue,Place,5105645551,12.08.2015,The Heights,Stock Purchases,72.80,3663 (BFS GROUP LTD)
Revenue,Adult Services,5105643677,05.08.2015,Adelaide Resource Centre,Catering Purchases,99.36,3663 (BFS GROUP LTD)
Revenue,Adult Services,5105643725,07.08.2015,Adelaide Resource Centre,Catering Purchases,252.88,3663 (BFS GROUP LTD)
Revenue,Adult Services,5105643632,05.08.2015,Adelaide Resource Centre,Catering Purchases,-3.74,3663 (BFS GROUP LTD)
Revenue,Adult Services,5105643725,07.08.2015,Adelaide Resource Centre,Catering Purchases,34.27,3663 (BFS GROUP LTD)
Revenue,Adult Services,5105643677,05.08.2015,Adelaide Resource Centre,Catering Purchases,17.51,3663 (BFS GROUP LTD)
Revenue,Adult Services,5105645619,12.08.2015,Adelaide Resource Centre,Catering Purchases,247.70,3663 (BFS GROUP LTD)
Revenue,Adult Services,5105645615,12.08.2015,Adelaide Resource Centre,Catering Purchases,72.32,3663 (BFS GROUP LTD)
Revenue,Adult Services,5105645615,12.08.2015,Adelaide Resource Centre,Catering Purchases,16.27,3663 (BFS GROUP LTD)
Revenue,Adult Services,5105645619,12.08.2015,Adelaide Resource Centre,Catering Purchases,52.19,3663 (BFS GROUP LTD)
Revenue,Adult Services,5105647498,26.08.2015,Adelaide Resource Centre,Catering Purchases,201.87,3663 (BFS GROUP LTD)
Revenue,Adult Services,5105647401,26.08.2015,Adelaide Resource Centre,Catering Purchases,304.66,3663 (BFS GROUP LTD)
Revenue,Adult Services,5105647383,26.08.2015,Adelaide Resource Centre,Catering Purchases,101.61,3663 (BFS GROUP LTD)
Revenue,Adult Services,5105647387,26.08.2015,Adelaide Resource Centre,Catering Purchases,78.08,3663 (BFS GROUP LTD)
Revenue,Adult Services,5105647387,26.08.2015,Adelaide Resource Centre,Catering Purchases,10.95,3663 (BFS GROUP LTD)
Revenue,Adult Services,5105647383,26.08.2015,Adelaide Resource Centre,Catering Purchases,5.14,3663 (BFS GROUP LTD)
Revenue,Adult Services,5105647401,26.08.2015,Adelaide Resource Centre,Catering Purchases,17.85,3663 (BFS GROUP LTD)
Revenue,Adult Services,5105647498,26.08.2015,Adelaide Resource Centre,Catering Purchases,13.70,3663 (BFS GROUP LTD)
Revenue,Place,5105647523,28.08.2015,Public Libraries Central,Computer Maintenance,"5,061.77",BIBLIOTHECA LTD
Revenue,Place,5105647523,28.08.2015,Public Libraries Central,Computer Maintenance,594.00,BIBLIOTHECA LTD
Revenue,Place,5105647096,26.08.2015,Public Libraries Central,Stationery,69.72,BIBLIOTHECA LTD
Capital,Corporate Items,5105643604,26.08.2015,Balance Sheet,Professional Services,512.40,BIFFA WASTE SERVICES LTD
Revenue,Place,5105643604,26.08.2015,IOW Festival Costs,Professional Services,26.67,BIFFA WASTE SERVICES LTD
Revenue,Childrens Services,5105643604,26.08.2015,SEND Independent Advice & Support,"Refuse Collection, Disposal and Recycling Costs",17.42,BIFFA WASTE SERVICES LTD
Revenue,Place,5105643604,26.08.2015,Medina Leisure Centre,"Refuse Collection, Disposal and Recycling Costs",373.27,BIFFA WASTE SERVICES LTD
Revenue,Place,5105643604,26.08.2015,Ryde Harbour,"Refuse Collection, Disposal and Recycling Costs",207.16,BIFFA WASTE SERVICES LTD
Revenue,Place,5105643604,26.08.2015,Seaclose Amusements,"Refuse Collection, Disposal and Recycling Costs",14.47,BIFFA WASTE SERVICES LTD
Revenue,Childrens Services,5105643604,26.08.2015,Learning & Development Running Costs,"Refuse Collection, Disposal and Recycling Costs",123.60,BIFFA WASTE SERVICES LTD
Revenue,Place,5105643604,26.08.2015,Archives,"Refuse Collection, Disposal and Recycling Costs",189.50,BIFFA WASTE SERVICES LTD
Revenue,Adult Services,5105643604,26.08.2015,S75 Integrated Community Equipment Store,"Refuse Collection, Disposal and Recycling Costs",238.00,BIFFA WASTE SERVICES LTD
Revenue,Adult Services,5105643604,26.08.2015,Plean Dene,"Refuse Collection, Disposal and Recycling Costs",248.08,BIFFA WASTE SERVICES LTD
Revenue,Adult Services,5105643458,05.08.2015,Gouldings Resource Centre,"Refuse Collection, Disposal and Recycling Costs",171.60,BIFFA WASTE SERVICES LTD
Revenue,Adult Services,5105643610,12.08.2015,Gouldings Resource Centre,"Refuse Collection, Disposal and Recycling Costs",364.16,BIFFA WASTE SERVICES LTD
Revenue,Adult Services,5105643604,26.08.2015,Westminster House,"Refuse Collection, Disposal and Recycling Costs",46.24,BIFFA WASTE SERVICES LTD
Revenue,Adult Services,5105643604,26.08.2015,Saxonbury,"Refuse Collection, Disposal and Recycling Costs",162.16,BIFFA WASTE SERVICES LTD
Revenue,Adult Services,5105643604,26.08.2015,Stores Adult Social Care,"Refuse Collection, Disposal and Recycling Costs",93.81,BIFFA WASTE SERVICES LTD
Revenue,Place,5105643604,26.08.2015,"Enterprise House, Newport","Refuse Collection, Disposal and Recycling Costs",239.28,BIFFA WASTE SERVICES LTD
Revenue,Place,5105643604,26.08.2015,Play Development,Operational Equipment,58.56,BIFFA WASTE SERVICES LTD
Revenue,Place,5105643604,26.08.2015,Play Development,Professional Services,26.66,BIFFA WASTE SERVICES LTD
Revenue,Childrens Services,5105643604,26.08.2015,Family Information Zone,"Refuse Collection, Disposal and Recycling Costs",17.42,BIFFA WASTE SERVICES LTD
Revenue,Adult Services,5105643604,26.08.2015,31 Carter Avenue,"Refuse Collection, Disposal and Recycling Costs",166.56,BIFFA WASTE SERVICES LTD
Revenue,Adult Services,5105643604,26.08.2015,Highmead,"Refuse Collection, Disposal and Recycling Costs",95.99,BIFFA WASTE SERVICES LTD
Revenue,Place,5105643604,26.08.2015,17 Fairlee Road,"Refuse Collection, Disposal and Recycling Costs",197.00,BIFFA WASTE SERVICES LTD
Revenue,Place,5105643604,26.08.2015,Planning Business Support,"Refuse Collection, Disposal and Recycling Costs",225.04,BIFFA WASTE SERVICES LTD
Revenue,Place,5105643604,26.08.2015,"Westridge, Ryde","Refuse Collection, Disposal and Recycling Costs",149.36,BIFFA WASTE SERVICES LTD
Revenue,Resources,5105643604,26.08.2015,ICT Contracts,"Refuse Collection, Disposal and Recycling Costs",152.52,BIFFA WASTE SERVICES LTD
Revenue,Place,5105643604,26.08.2015,Ferry Management,"Refuse Collection, Disposal and Recycling Costs",86.56,BIFFA WASTE SERVICES LTD
Revenue,Childrens Services,5105643604,26.08.2015,Beaulieu House,"Refuse Collection, Disposal and Recycling Costs",180.52,BIFFA WASTE SERVICES LTD
Revenue,Place,5105643604,26.08.2015,Island Waste Refuse Disposal Contract,"Refuse Collection, Disposal and Recycling Costs",600.40,BIFFA WASTE SERVICES LTD
Revenue,Place,5105643604,26.08.2015,Fort Victoria,"Refuse Collection, Disposal and Recycling Costs",244.32,BIFFA WASTE SERVICES LTD
Revenue,Place,5105643604,26.08.2015,Newport Harbour Account,"Refuse Collection, Disposal and Recycling Costs",465.12,BIFFA WASTE SERVICES LTD
Revenue,Place,5105643604,26.08.2015,Newport Harbour Account,"Refuse Collection, Disposal and Recycling Costs",329.60,BIFFA WASTE SERVICES LTD
Revenue,Place,5105643604,26.08.2015,Fire Operations,"Refuse Collection, Disposal and Recycling Costs",588.36,BIFFA WASTE SERVICES LTD
Revenue,Childrens Services,5105643604,26.08.2015,Workshop Initiative Support in Education,"Refuse Collection, Disposal and Recycling Costs",435.46,BIFFA WASTE SERVICES LTD
Revenue,Place,5105643604,26.08.2015,Public Libraries Central,"Refuse Collection, Disposal and Recycling Costs",438.74,BIFFA WASTE SERVICES LTD
Revenue,Place,5105643604,26.08.2015,Cothey Bottom Store RYDE,"Refuse Collection, Disposal and Recycling Costs",74.68,BIFFA WASTE SERVICES LTD
Revenue,Place,5105643604,26.08.2015,Westridge Squash Courts,"Refuse Collection, Disposal and Recycling Costs",74.68,BIFFA WASTE SERVICES LTD
Revenue,Place,5105643604,26.08.2015,"Bugle House,Newport","Refuse Collection, Disposal and Recycling Costs",239.28,BIFFA WASTE SERVICES LTD
Revenue,Place,5105643604,26.08.2015,"Jubilee Stores, Newport","Refuse Collection, Disposal and Recycling Costs",166.56,BIFFA WASTE SERVICES LTD
Revenue,Adult Services,5105643604,26.08.2015,Seagulls,"Refuse Collection, Disposal and Recycling Costs",166.56,BIFFA WASTE SERVICES LTD
Revenue,Adult Services,5105643604,26.08.2015,40 Venner Avenue,"Refuse Collection, Disposal and Recycling Costs",85.04,BIFFA WASTE SERVICES LTD
Revenue,Place,5105643604,26.08.2015,Crematorium,"Refuse Collection, Disposal and Recycling Costs",200.72,BIFFA WASTE SERVICES LTD
Revenue,Childrens Services,5105643604,26.08.2015,Specialist Service Business Admin,"Refuse Collection, Disposal and Recycling Costs",244.32,BIFFA WASTE SERVICES LTD
Revenue,Place,5105643604,26.08.2015,The Heights,"Refuse Collection, Disposal and Recycling Costs",522.24,BIFFA WASTE SERVICES LTD
Revenue,Place,5105643604,26.08.2015,Dinosaur Isle Museum (Sandown Geology),"Refuse Collection, Disposal and Recycling Costs",135.86,BIFFA WASTE SERVICES LTD
Revenue,Adult Services,5105643604,26.08.2015,Overbrook,"Refuse Collection, Disposal and Recycling Costs",173.08,BIFFA WASTE SERVICES LTD
Revenue,Adult Services,5105643604,26.08.2015,The Laurels,"Refuse Collection, Disposal and Recycling Costs",95.99,BIFFA WASTE SERVICES LTD
Revenue,Place,5105643604,26.08.2015,Cycling festival - launch expenses,Professional Services,26.67,BIFFA WASTE SERVICES LTD
Revenue,Place,5105643604,26.08.2015,"Civic Centre,Sandown","Refuse Collection, Disposal and Recycling Costs",307.08,BIFFA WASTE SERVICES LTD
Revenue,Place,5105645534,12.08.2015,Play Development,Operational Equipment,54.00,BIG WIGHT T-SHIRT CO
Revenue,Place,5105645561,12.08.2015,Business Support  - Fire,Sundry Office Expenses,341.00,BLACHERE ILLUMINATION UK
Revenue,Resources,5105647161,26.08.2015,Staff Benefits,Payment to Private Contractors,156.60,BLACKBERRY LANE PRE-SCHOOL
Revenue,Childrens Services,5105646368,19.08.2015,Purchased Fostering,Charges from Independent Providers,"3,101.55",BLUE SKY FOSTERING LTD
Revenue,Childrens Services,5105646458,19.08.2015,Purchased Fostering,Charges from Independent Providers,300.15,BLUE SKY FOSTERING LTD
Revenue,Childrens Services,5105646477,19.08.2015,Purchased Fostering,Charges from Independent Providers,"3,101.55",BLUE SKY FOSTERING LTD
Revenue,Childrens Services,5105644438,19.08.2015,Beaulieu House,General Materials,34.10,BOC LTD
Revenue,Place,5105644440,07.08.2015,Ferry Maintenance,Maintenance of Operational Equipment,153.30,BOC LTD
Revenue,Childrens Services,5105646540,19.08.2015,Short Breaks,Charges from Independent Providers,520.00,BODSTER EQUINE ASSISTED LEARN CIC
Revenue,Adult Services,5105646289,14.08.2015,Plean Dene,Catering Purchases,201.66,BOOKER CASH & CARRY LTD
Revenue,Adult Services,5105646291,14.08.2015,Plean Dene,Catering Purchases,2.49,BOOKER CASH & CARRY LTD
Revenue,Adult Services,5105646534,19.08.2015,Plean Dene,Catering Purchases,7.55,BOOKER CASH & CARRY LTD
Revenue,Adult Services,5105646494,19.08.2015,Plean Dene,Catering Purchases,4.49,BOOKER CASH & CARRY LTD
Revenue,Adult Services,5105646498,19.08.2015,Plean Dene,Catering Purchases,22.98,BOOKER CASH & CARRY LTD
Revenue,Adult Services,5105646305,14.08.2015,Plean Dene,Catering Purchases,7.54,BOOKER CASH & CARRY LTD
Revenue,Adult Services,5105646599,19.08.2015,Plean Dene,Catering Purchases,18.53,BOOKER CASH & CARRY LTD
Revenue,Adult Services,5105646996,21.08.2015,Plean Dene,Catering Purchases,14.39,BOOKER CASH & CARRY LTD
Revenue,Adult Services,5105646997,21.08.2015,Plean Dene,Catering Purchases,178.42,BOOKER CASH & CARRY LTD
Revenue,Adult Services,5105646998,21.08.2015,Plean Dene,Catering Purchases,27.89,BOOKER CASH & CARRY LTD
Revenue,Adult Services,5105647022,21.08.2015,Plean Dene,Catering Purchases,24.33,BOOKER CASH & CARRY LTD
Revenue,Adult Services,5105646998,21.08.2015,Plean Dene,Catering Purchases,164.05,BOOKER CASH & CARRY LTD
Revenue,Adult Services,5105646997,21.08.2015,Plean Dene,Catering Purchases,12.00,BOOKER CASH & CARRY LTD
Revenue,Adult Services,5105646599,19.08.2015,Plean Dene,Catering Purchases,14.48,BOOKER CASH & CARRY LTD
Revenue,Adult Services,5105647841,28.08.2015,Plean Dene,Catering Purchases,8.44,BOOKER CASH & CARRY LTD
Revenue,Adult Services,5105647477,28.08.2015,Plean Dene,Catering Purchases,10.20,BOOKER CASH & CARRY LTD
Revenue,Adult Services,5105647071,21.08.2015,Plean Dene,Catering Purchases,10.74,BOOKER CASH & CARRY LTD
Revenue,Adult Services,5105645617,12.08.2015,Plean Dene,Catering Purchases,96.08,BOOKER CASH & CARRY LTD
Revenue,Adult Services,5105645605,12.08.2015,Plean Dene,Catering Purchases,19.23,BOOKER CASH & CARRY LTD
Revenue,Adult Services,5105646289,14.08.2015,Plean Dene,Catering Purchases,23.02,BOOKER CASH & CARRY LTD
Revenue,Adult Services,5105641309,07.08.2015,Plean Dene,Catering Purchases,8.36,BOOKER CASH & CARRY LTD
Revenue,Adult Services,5105643457,05.08.2015,Plean Dene,Catering Purchases,54.06,BOOKER CASH & CARRY LTD
Revenue,Adult Services,5105643452,05.08.2015,Plean Dene,Catering Purchases,44.92,BOOKER CASH & CARRY LTD
Revenue,Adult Services,5105643455,05.08.2015,Plean Dene,Catering Purchases,22.98,BOOKER CASH & CARRY LTD
Revenue,Adult Services,5105643447,05.08.2015,Plean Dene,Catering Purchases,6.14,BOOKER CASH & CARRY LTD
Revenue,Adult Services,5105643486,05.08.2015,Plean Dene,Catering Purchases,68.76,BOOKER CASH & CARRY LTD
Revenue,Adult Services,5105644482,07.08.2015,Plean Dene,Catering Purchases,120.62,BOOKER CASH & CARRY LTD
Revenue,Adult Services,5105644497,12.08.2015,Plean Dene,Catering Purchases,53.61,BOOKER CASH & CARRY LTD
Revenue,Adult Services,5105644482,07.08.2015,Plean Dene,Catering Purchases,25.44,BOOKER CASH & CARRY LTD
Revenue,Adult Services,5105643287,05.08.2015,Plean Dene,Catering Purchases,22.98,BOOKER CASH & CARRY LTD
Revenue,Adult Services,5105647827,28.08.2015,Highmead,Catering Purchases,134.17,BOOKER CASH & CARRY LTD
Revenue,Adult Services,5105647828,28.08.2015,Highmead,Catering Purchases,172.17,BOOKER CASH & CARRY LTD
Revenue,Adult Services,5105647828,28.08.2015,Highmead,Catering Purchases,19.40,BOOKER CASH & CARRY LTD
Revenue,Adult Services,5105647827,28.08.2015,Highmead,Catering Purchases,17.94,BOOKER CASH & CARRY LTD
Revenue,Adult Services,5105647008,21.08.2015,Highmead,Catering Purchases,154.98,BOOKER CASH & CARRY LTD
Revenue,Adult Services,5105647008,21.08.2015,Highmead,Catering Purchases,12.12,BOOKER CASH & CARRY LTD
Revenue,Adult Services,5105641505,12.08.2015,Overbrook,Catering Purchases,125.61,BOOKER CASH & CARRY LTD
Revenue,Adult Services,5105647116,26.08.2015,The Laurels,Catering Purchases,84.84,BOOKER CASH & CARRY LTD
Revenue,Adult Services,5105647116,26.08.2015,The Laurels,Catering Purchases,6.98,BOOKER CASH & CARRY LTD
Revenue,Adult Services,5105643466,05.08.2015,The Laurels,Catering Purchases,0.70,BOOKER CASH & CARRY LTD
Revenue,Adult Services,5105644510,12.08.2015,The Laurels,Catering Purchases,57.99,BOOKER CASH & CARRY LTD
Revenue,Adult Services,5105644014,07.08.2015,The Laurels,Catering Purchases,105.58,BOOKER CASH & CARRY LTD
Revenue,Adult Services,5105644014,07.08.2015,The Laurels,Catering Purchases,20.94,BOOKER CASH & CARRY LTD
Revenue,Adult Services,5105644510,12.08.2015,The Laurels,Catering Purchases,16.46,BOOKER CASH & CARRY LTD
Revenue,Adult Services,5105643510,05.08.2015,The Laurels,Catering Purchases,158.94,BOOKER CASH & CARRY LTD
Revenue,Adult Services,5105646495,19.08.2015,The Laurels,Catering Purchases,100.29,BOOKER CASH & CARRY LTD
Revenue,Public Health,5105646287,14.08.2015,Contraception,Payment to Private Contractors,387.00,BOOTS THE CHEMIST LTD (Ryde)
Revenue,Public Health,5105646287,14.08.2015,Contraception,Payment to Private Contractors,57.20,BOOTS THE CHEMIST LTD (Ryde)
Revenue,Public Health,5105646287,14.08.2015,Contraception,Payment to Private Contractors,84.30,BOOTS THE CHEMIST LTD (Ryde)
Revenue,Public Health,5105646287,14.08.2015,Contraception,Payment to Private Contractors,3.55,BOOTS THE CHEMIST LTD (Ryde)
Revenue,Public Health,5105646287,14.08.2015,Drug Misuse - Adults,Payment to Private Contractors,448.00,BOOTS THE CHEMIST LTD (Ryde)
Revenue,Public Health,5105646287,14.08.2015,Drug Misuse - Adults,Payment to Private Contractors,900.00,BOOTS THE CHEMIST LTD (Ryde)
Revenue,Public Health,5105646287,14.08.2015,STI Tests & Treatment,Payment to Private Contractors,20.00,BOOTS THE CHEMIST LTD (Ryde)
Revenue,Public Health,5105646287,14.08.2015,STI Tests & Treatment,Payment to Private Contractors,30.00,BOOTS THE CHEMIST LTD (Ryde)
Revenue,Public Health,5105646287,14.08.2015,STI Tests & Treatment,Payment to Private Contractors,8.04,BOOTS THE CHEMIST LTD (Ryde)
Revenue,Public Health,5105646252,14.08.2015,Contraception,Payment to Private Contractors,21.50,BOOTS UK LTD (107 HIGH ST SANDOWN)
Revenue,Public Health,5105646252,14.08.2015,Contraception,Payment to Private Contractors,5.20,BOOTS UK LTD (107 HIGH ST SANDOWN)
Revenue,Public Health,5105646252,14.08.2015,Drug Misuse - Adults,Payment to Private Contractors,80.50,BOOTS UK LTD (107 HIGH ST SANDOWN)
Revenue,Public Health,5105646252,14.08.2015,Drug Misuse - Adults,Payment to Private Contractors,150.00,BOOTS UK LTD (107 HIGH ST SANDOWN)
Revenue,Public Health,5105646253,14.08.2015,Contraception,Payment to Private Contractors,28.10,BOOTS UK LTD (COWES)
Revenue,Public Health,5105646253,14.08.2015,Contraception,Payment to Private Contractors,43.00,BOOTS UK LTD (COWES)
Revenue,Public Health,5105646253,14.08.2015,STI Tests & Treatment,Payment to Private Contractors,8.04,BOOTS UK LTD (COWES)
Revenue,Public Health,5105646253,14.08.2015,STI Tests & Treatment,Payment to Private Contractors,30.00,BOOTS UK LTD (COWES)
Revenue,Public Health,5105646253,14.08.2015,Drug Misuse - Adults,Payment to Private Contractors,354.00,BOOTS UK LTD (COWES)
Revenue,Public Health,5105646253,14.08.2015,Drug Misuse - Adults,Payment to Private Contractors,63.00,BOOTS UK LTD (COWES)
Revenue,Public Health,5105646276,14.08.2015,Drug Misuse - Adults,Payment to Private Contractors,50.00,BOOTS UK LTD (FRESHWATER)
Revenue,Public Health,5105646270,14.08.2015,Contraception,Payment to Private Contractors,559.00,BOOTS UK LTD (NEWPORT)
Revenue,Public Health,5105646270,14.08.2015,Contraception,Payment to Private Contractors,112.40,BOOTS UK LTD (NEWPORT)
Revenue,Public Health,5105646270,14.08.2015,Contraception,Payment to Private Contractors,88.40,BOOTS UK LTD (NEWPORT)
Revenue,Public Health,5105646270,14.08.2015,STI Tests & Treatment,Payment to Private Contractors,5.00,BOOTS UK LTD (NEWPORT)
Revenue,Public Health,5105646256,14.08.2015,Contraception,Payment to Private Contractors,236.50,BOOTS UK LTD (SANDOWN LARGE STORE)
Revenue,Public Health,5105646256,14.08.2015,Contraception,Payment to Private Contractors,36.40,BOOTS UK LTD (SANDOWN LARGE STORE)
Revenue,Public Health,5105646256,14.08.2015,Contraception,Payment to Private Contractors,56.20,BOOTS UK LTD (SANDOWN LARGE STORE)
Revenue,Public Health,5105646256,14.08.2015,Drug Misuse - Adults,Payment to Private Contractors,73.50,BOOTS UK LTD (SANDOWN LARGE STORE)
Revenue,Public Health,5105646256,14.08.2015,Drug Misuse - Adults,Payment to Private Contractors,248.00,BOOTS UK LTD (SANDOWN LARGE STORE)
Revenue,Public Health,5105646283,14.08.2015,Contraception,Payment to Private Contractors,10.40,BOOTS UK LTD (SHANKLIN)
Revenue,Public Health,5105646283,14.08.2015,Contraception,Payment to Private Contractors,64.50,BOOTS UK LTD (SHANKLIN)
Revenue,Public Health,5105646283,14.08.2015,Drug Misuse - Adults,Payment to Private Contractors,48.00,BOOTS UK LTD (SHANKLIN)
Revenue,Public Health,5105646261,14.08.2015,Contraception,Payment to Private Contractors,5.20,BOOTS UK LTD (TOWER HOUSE)
Revenue,Public Health,5105646261,14.08.2015,Contraception,Payment to Private Contractors,21.50,BOOTS UK LTD (TOWER HOUSE)
Revenue,Public Health,5105646261,14.08.2015,STI Tests & Treatment,Payment to Private Contractors,5.00,BOOTS UK LTD (TOWER HOUSE)
Revenue,Public Health,5105646261,14.08.2015,Drug Misuse - Adults,Payment to Private Contractors,14.00,BOOTS UK LTD (TOWER HOUSE)
Revenue,Public Health,5105646269,14.08.2015,Contraception,Payment to Private Contractors,14.05,BOOTS UK LTD
Revenue,Public Health,5105646269,14.08.2015,Contraception,Payment to Private Contractors,5.20,BOOTS UK LTD
Revenue,Public Health,5105646269,14.08.2015,Contraception,Payment to Private Contractors,43.00,BOOTS UK LTD
Revenue,Public Health,5105646262,14.08.2015,Contraception,Payment to Private Contractors,14.05,BOOTS UK LTD (YLB BEMBRIDGE)
Revenue,Public Health,5105646262,14.08.2015,Contraception,Payment to Private Contractors,5.20,BOOTS UK LTD (YLB BEMBRIDGE)
Revenue,Public Health,5105646262,14.08.2015,Contraception,Payment to Private Contractors,43.00,BOOTS UK LTD (YLB BEMBRIDGE)
Revenue,Place,5105647097,21.08.2015,The Heights,Stock Purchases,170.25,BRAKE BROS LTD
Revenue,Place,5105647708,28.08.2015,The Heights,Stock Purchases,85.98,BRAKE BROS LTD
Revenue,Place,5105647097,21.08.2015,The Heights,Stock Purchases,30.29,BRAKE BROS LTD
Revenue,Place,5105643641,12.08.2015,The Heights,Stock Purchases,-21.53,BRAKE BROS LTD
Revenue,Place,5105645531,12.08.2015,The Heights,Stock Purchases,163.17,BRAKE BROS LTD
Revenue,Place,5105647153,26.08.2015,Leaseholds by LA,Accommodation Costs - Leaseholder Payments,746.81,BRAMBLE LETTINGS
Revenue,Place,5105647153,26.08.2015,Leaseholds by LA,Accommodation Costs - Leaseholder Payments,746.81,BRAMBLE LETTINGS
Revenue,Place,5105647153,26.08.2015,Leaseholds by LA,Accommodation Costs - Leaseholder Payments,746.81,BRAMBLE LETTINGS
Revenue,Place,5105647153,26.08.2015,Leaseholds by LA,Accommodation Costs - Leaseholder Payments,746.81,BRAMBLE LETTINGS
Revenue,Place,5105647153,26.08.2015,Leaseholds by LA,Accommodation Costs - Leaseholder Payments,746.81,BRAMBLE LETTINGS
Revenue,Place,5105647153,26.08.2015,Leaseholds by LA,Accommodation Costs - Leaseholder Payments,588.38,BRAMBLE LETTINGS
Revenue,Place,5105647153,26.08.2015,Leaseholds by LA,Accommodation Costs - Leaseholder Payments,588.38,BRAMBLE LETTINGS
Revenue,Place,5105647153,26.08.2015,Leaseholds by LA,Accommodation Costs - Leaseholder Payments,588.38,BRAMBLE LETTINGS
Revenue,Place,5105647153,26.08.2015,Leaseholds by LA,Accommodation Costs - Leaseholder Payments,588.38,BRAMBLE LETTINGS
Revenue,Place,5105647153,26.08.2015,Leaseholds by LA,Accommodation Costs - Leaseholder Payments,588.38,BRAMBLE LETTINGS
Revenue,Place,5105647153,26.08.2015,Leaseholds by LA,Accommodation Costs - Leaseholder Payments,746.81,BRAMBLE LETTINGS
Revenue,Place,5105647153,26.08.2015,Leaseholds by LA,Accommodation Costs - Leaseholder Payments,746.81,BRAMBLE LETTINGS
Revenue,Place,5105647153,26.08.2015,Leaseholds by LA,Accommodation Costs - Leaseholder Payments,746.81,BRAMBLE LETTINGS
Revenue,Place,5105647153,26.08.2015,Leaseholds by LA,Accommodation Costs - Leaseholder Payments,746.81,BRAMBLE LETTINGS
Revenue,Place,5105647153,26.08.2015,Leaseholds by LA,Accommodation Costs - Leaseholder Payments,746.81,BRAMBLE LETTINGS
Revenue,Place,5105647153,26.08.2015,Leaseholds by LA,Accommodation Costs - Leaseholder Payments,746.81,BRAMBLE LETTINGS
Revenue,Place,5105647153,26.08.2015,Leaseholds by LA,Accommodation Costs - Leaseholder Payments,746.81,BRAMBLE LETTINGS
Revenue,Place,5105647153,26.08.2015,Leaseholds by LA,Accommodation Costs - Leaseholder Payments,746.81,BRAMBLE LETTINGS
Revenue,Place,5105647153,26.08.2015,Leaseholds by LA,Accommodation Costs - Leaseholder Payments,769.43,BRAMBLE LETTINGS
Revenue,Place,5105647153,26.08.2015,Leaseholds by LA,Accommodation Costs - Leaseholder Payments,746.81,BRAMBLE LETTINGS
Revenue,Place,5105647153,26.08.2015,Leaseholds by LA,Accommodation Costs - Leaseholder Payments,588.38,BRAMBLE LETTINGS
Revenue,Place,5105647153,26.08.2015,Leaseholds by LA,Accommodation Costs - Leaseholder Payments,746.81,BRAMBLE LETTINGS
Revenue,Adult Services,5105644739,12.08.2015,Elderly Mentally Ill Residential Care,Charges from Independent Providers,"1,781.36",BRIGHSTONE CARE LTD
Revenue,Adult Services,5105644739,12.08.2015,Elderly Frail Residential Care,Charges from Independent Providers,"1,700.44",BRIGHSTONE CARE LTD
Revenue,Adult Services,5105644739,12.08.2015,Elderly Frail Residential Care,Charges from Independent Providers,"2,093.84",BRIGHSTONE CARE LTD
Revenue,Adult Services,5105646181,19.08.2015,Plean Dene,Grounds Maintenance,387.49,BRIGHSTONE LANDSCAPING LTD
Revenue,Adult Services,5105646181,19.08.2015,Westminster House,Grounds Maintenance,48.00,BRIGHSTONE LANDSCAPING LTD
Revenue,Adult Services,5105646181,19.08.2015,Saxonbury,Grounds Maintenance,48.00,BRIGHSTONE LANDSCAPING LTD
Revenue,Adult Services,5105646181,19.08.2015,Highmead,Grounds Maintenance,126.00,BRIGHSTONE LANDSCAPING LTD
Revenue,Place,5105647442,26.08.2015,Play Areas Health & Safety work,Payment to Private Contractors,45.00,BRIGHSTONE LANDSCAPING LTD
Revenue,Place,5105643535,05.08.2015,Beach Cleaning,Payment to Private Contractors,30.00,BRIGHSTONE LANDSCAPING LTD
Revenue,Place,5105647457,26.08.2015,Beach Cleaning,Payment to Private Contractors,100.00,BRIGHSTONE LANDSCAPING LTD
Revenue,Place,5105647512,28.08.2015,Beach Cleaning,Payment to Private Contractors,45.00,BRIGHSTONE LANDSCAPING LTD
Revenue,Place,5105647480,26.08.2015,Beach Cleaning,Payment to Private Contractors,30.00,BRIGHSTONE LANDSCAPING LTD
Revenue,Place,5105647481,26.08.2015,Beach Cleaning,Payment to Private Contractors,185.00,BRIGHSTONE LANDSCAPING LTD
Revenue,Place,5105647482,26.08.2015,Beach Cleaning,Payment to Private Contractors,495.00,BRIGHSTONE LANDSCAPING LTD
Revenue,Place,5105646163,14.08.2015,Beach Cleaning,Payment to Private Contractors,510.00,BRIGHSTONE LANDSCAPING LTD
Revenue,Place,5105646294,14.08.2015,Beach Cleaning,Beach Cleansing Contractors,"15,689.13",BRIGHSTONE LANDSCAPING LTD
Revenue,Place,5105647486,26.08.2015,Fire Operations,Grounds Maintenance,806.25,BRIGHSTONE LANDSCAPING LTD
Revenue,Adult Services,5105646181,19.08.2015,Seagulls,Grounds Maintenance,48.00,BRIGHSTONE LANDSCAPING LTD
Revenue,Adult Services,5105646181,19.08.2015,40 Venner Avenue,Grounds Maintenance,48.00,BRIGHSTONE LANDSCAPING LTD
Revenue,Adult Services,5105646181,19.08.2015,Overbrook,Grounds Maintenance,48.00,BRIGHSTONE LANDSCAPING LTD
Revenue,Adult Services,5105646181,19.08.2015,The Laurels,Grounds Maintenance,126.00,BRIGHSTONE LANDSCAPING LTD
Revenue,Adult Services,5105643496,05.08.2015,Self Directed Support Team,Medical Fees and Staff Welfare,450.00,BRITISH DYSLEXIA ASSOCIATION
Revenue,Place,5105645426,12.08.2015,Dinosaur Isle Museum (Sandown Geology),Stock Purchases,101.25,BRITISH FOSSILS/GIFTSTONES LIMITED
Revenue,Place,5105644452,07.08.2015,Play Development,Operational Equipment,160.00,BRITISH RED CROSS SOCIETY
Revenue,Childrens Services,5105646760,21.08.2015,LSCB (Local Safeguarding Childrens Board),Training,55.00,BRITISH RED CROSS SOCIETY
Revenue,Childrens Services,5105646759,21.08.2015,LSCB (Local Safeguarding Childrens Board),Hire of facilities,70.00,BRITISH RED CROSS SOCIETY
Revenue,Childrens Services,5105646759,21.08.2015,LSCB (Local Safeguarding Childrens Board),Hire of facilities,70.00,BRITISH RED CROSS SOCIETY
Revenue,Place,5105647406,28.08.2015,Cowes Week,Professional Services,220.00,BRITISH RED CROSS SOCIETY
Revenue,Place,5105646149,14.08.2015,Fire Technical Support,Vehicle Fuel Costs,208.81,BROADWAY GARAGE
Revenue,Place,5105646610,19.08.2015,Transport Fleet Administration,Vehicle Fuel Costs,491.62,BROADWAY GARAGE
Revenue,Public Health,5105643520,05.08.2015,NHS Health Check Programme,Payment to Private Contractors,"1,866.00",BROOKSIDE HEALTH CENTRE
Revenue,Place,5105646791,21.08.2015,Other Grounds Maintenance,Operational Equipment,"1,130.00",BROXAP LTD
Revenue,Place,5105646791,21.08.2015,Other Grounds Maintenance,Postage,550.00,BROXAP LTD
Revenue,Adult Services,5105644759,12.08.2015,REDACTED PERSONAL DATA,Order Settlement to Bal Sht GL,"1,781.36",BUCKLAND CARE LTD
Revenue,Adult Services,5105644759,12.08.2015,Elderly Mentally Ill Residential Care,Charges from Independent Providers,"1,781.36",BUCKLAND CARE LTD
Revenue,Adult Services,5105644759,12.08.2015,Elderly Mentally Ill Residential Care,Charges from Independent Providers,"1,781.36",BUCKLAND CARE LTD
Revenue,Adult Services,5105644759,12.08.2015,Elderly Mentally Ill Residential Care,Charges from Independent Providers,"2,093.84",BUCKLAND CARE LTD
Revenue,Adult Services,5105644759,12.08.2015,Elderly Mentally Ill Residential Care,Charges from Independent Providers,"2,093.84",BUCKLAND CARE LTD
Revenue,Adult Services,5105644759,12.08.2015,Elderly Mentally Ill Residential Care,Charges from Independent Providers,"2,093.84",BUCKLAND CARE LTD
Revenue,Adult Services,5105644759,12.08.2015,Elderly Mentally Ill Residential Care,Charges from Independent Providers,"1,781.36",BUCKLAND CARE LTD
Revenue,Adult Services,5105644759,12.08.2015,Elderly Mentally Ill Residential Care,Charges from Independent Providers,"1,781.36",BUCKLAND CARE LTD
Revenue,Adult Services,5105644759,12.08.2015,Elderly Mentally Ill Residential Care,Charges from Independent Providers,"2,093.84",BUCKLAND CARE LTD
Revenue,Adult Services,5105644759,12.08.2015,Elderly Mentally Ill Residential Care,Charges from Independent Providers,"2,093.84",BUCKLAND CARE LTD
Revenue,Adult Services,5105644759,12.08.2015,Elderly Mentally Ill Residential Care,Charges from Independent Providers,"2,093.84",BUCKLAND CARE LTD
Revenue,Adult Services,5105647028,21.08.2015,Elderly Frail Residential Care,Charges from Independent Providers,"2,611.39",BUCKLAND CARE LTD
Revenue,Adult Services,5105646808,21.08.2015,Elderly Frail Residential Care,Charges from Independent Providers,485.84,BUCKLAND CARE LTD
Revenue,Adult Services,5105646808,21.08.2015,Elderly Frail Residential Care,Charges from Independent Providers,"5,101.32",BUCKLAND CARE LTD
Revenue,Adult Services,5105646246,14.08.2015,Elderly Frail Residential Care,Charges from Independent Providers,"5,085.04",BUCKLAND CARE LTD
Revenue,Adult Services,5105647028,21.08.2015,Elderly Frail Residential Care,Charges from Independent Providers,"2,692.08",BUCKLAND CARE LTD
Revenue,Adult Services,5105646359,19.08.2015,Elderly Frail Residential Care,Charges from Independent Providers,822.58,BUCKLAND CARE LTD
Revenue,Adult Services,5105644759,12.08.2015,Elderly Frail Residential Care,Charges from Independent Providers,"1,700.44",BUCKLAND CARE LTD
Revenue,Adult Services,5105644759,12.08.2015,Elderly Frail Residential Care,Charges from Independent Providers,"1,700.44",BUCKLAND CARE LTD
Revenue,Adult Services,5105644759,12.08.2015,Elderly Frail Residential Care,Charges from Independent Providers,"2,093.84",BUCKLAND CARE LTD
Revenue,Adult Services,5105644759,12.08.2015,Elderly Frail Residential Care,Charges from Independent Providers,"2,093.84",BUCKLAND CARE LTD
Revenue,Adult Services,5105644759,12.08.2015,Elderly Frail Residential Care,Charges from Independent Providers,"2,093.84",BUCKLAND CARE LTD
Revenue,Adult Services,5105644759,12.08.2015,Elderly Frail Residential Care,Charges from Independent Providers,"2,093.84",BUCKLAND CARE LTD
Revenue,Adult Services,5105644759,12.08.2015,Elderly Frail Residential Care,Charges from Independent Providers,"1,700.44",BUCKLAND CARE LTD
Revenue,Adult Services,5105644759,12.08.2015,Elderly Frail Residential Care,Charges from Independent Providers,"2,093.84",BUCKLAND CARE LTD
Revenue,Adult Services,5105643743,12.08.2015,Elderly Frail Residential Care,Charges from Independent Providers,"2,392.96",BUCKLAND CARE LTD
Revenue,Adult Services,5105644745,12.08.2015,Elderly Mentally Ill Nursing Island,Charges from Independent Providers,"2,784.60",BUCKLAND CARE LTD
Revenue,Adult Services,5105645506,12.08.2015,Elderly Mentally Ill Nursing Island,Charges from Independent Providers,"2,784.60",BUCKLAND CARE LTD
Revenue,Adult Services,5105644745,12.08.2015,Elderly Mentally Ill Nursing Island,Regular Respite Care,"2,784.60",BUCKLAND CARE LTD
Revenue,Adult Services,5105644745,12.08.2015,Elderly Mentally Ill Nursing Island,Charges from Independent Providers,"2,784.60",BUCKLAND CARE LTD
Revenue,Adult Services,5105644745,12.08.2015,Elderly Mentally Ill Nursing Island,Charges from Independent Providers,"2,784.60",BUCKLAND CARE LTD
Revenue,Adult Services,5105644745,12.08.2015,Elderly Mentally Ill Nursing Island,Charges from Independent Providers,"2,784.60",BUCKLAND CARE LTD
Revenue,Adult Services,5105644745,12.08.2015,REDACTED PERSONAL DATA,Order Settlement to Bal Sht GL,"2,336.60",BUCKLAND CARE LTD
Revenue,Adult Services,5105644745,12.08.2015,REDACTED PERSONAL DATA,Order Settlement to Bal Sht GL,"2,336.60",BUCKLAND CARE LTD
Revenue,Adult Services,5105644745,12.08.2015,Funded Nursing Care Island,Charges from Independent Providers,448.00,BUCKLAND CARE LTD
Revenue,Adult Services,5105644745,12.08.2015,Funded Nursing Care Island,Charges from Independent Providers,448.00,BUCKLAND CARE LTD
Revenue,Adult Services,5105644745,12.08.2015,Funded Nursing Care Island,Charges from Independent Providers,448.00,BUCKLAND CARE LTD
Revenue,Adult Services,5105644745,12.08.2015,Funded Nursing Care Island,Charges from Independent Providers,448.00,BUCKLAND CARE LTD
Revenue,Adult Services,5105644745,12.08.2015,Funded Nursing Care Island,Charges from Independent Providers,448.00,BUCKLAND CARE LTD
Revenue,Adult Services,5105644745,12.08.2015,Funded Nursing Care Island,Charges from Independent Providers,448.00,BUCKLAND CARE LTD
Revenue,Adult Services,5105644745,12.08.2015,Funded Nursing Care Island,Charges from Independent Providers,448.00,BUCKLAND CARE LTD
Revenue,Adult Services,5105644745,12.08.2015,Funded Nursing Care Island,Charges from Independent Providers,448.00,BUCKLAND CARE LTD
Revenue,Adult Services,5105644745,12.08.2015,Funded Nursing Care Island,Charges from Independent Providers,448.00,BUCKLAND CARE LTD
Revenue,Adult Services,5105644745,12.08.2015,Funded Nursing Care Island,Charges from Independent Providers,448.00,BUCKLAND CARE LTD
Revenue,Adult Services,5105644745,12.08.2015,Funded Nursing Care Island,Charges from Independent Providers,448.00,BUCKLAND CARE LTD
Revenue,Adult Services,5105644745,12.08.2015,Funded Nursing Care Island,Charges from Independent Providers,448.00,BUCKLAND CARE LTD
Revenue,Adult Services,5105644745,12.08.2015,Funded Nursing Care Island,Charges from Independent Providers,448.00,BUCKLAND CARE LTD
Revenue,Adult Services,5105644745,12.08.2015,Physical Disability Nursing Island,Charges from Independent Providers,"2,784.60",BUCKLAND CARE LTD
Revenue,Adult Services,5105644745,12.08.2015,Elderly Frail Nursing Island,Charges from Independent Providers,"2,784.60",BUCKLAND CARE LTD
Revenue,Adult Services,5105644745,12.08.2015,Elderly Frail Nursing Island,Charges from Independent Providers,"2,784.60",BUCKLAND CARE LTD
Revenue,Adult Services,5105644745,12.08.2015,Elderly Frail Nursing Island,Charges from Independent Providers,"2,784.60",BUCKLAND CARE LTD
Revenue,Adult Services,5105644745,12.08.2015,Elderly Frail Nursing Island,Charges from Independent Providers,"2,784.60",BUCKLAND CARE LTD
Revenue,Adult Services,5105644745,12.08.2015,Elderly Frail Nursing Island,Charges from Independent Providers,"2,784.60",BUCKLAND CARE LTD
Revenue,Adult Services,5105644745,12.08.2015,Elderly Frail Nursing Island,Charges from Independent Providers,"2,784.60",BUCKLAND CARE LTD
Revenue,Adult Services,5105643741,07.08.2015,Elderly Frail Nursing Island,Charges from Independent Providers,"3,580.20",BUCKLAND CARE LTD
Revenue,Adult Services,5105647290,28.08.2015,Plean Dene,Consumable Cleaning Materials,156.50,BUNZL CLEANING & HYGIENE SUPPLIES LTD
Revenue,Adult Services,5105645548,12.08.2015,Plean Dene,Consumable Cleaning Materials,204.55,BUNZL CLEANING & HYGIENE SUPPLIES LTD
Revenue,Adult Services,5105643508,05.08.2015,Plean Dene,Consumable Cleaning Materials,156.50,BUNZL CLEANING & HYGIENE SUPPLIES LTD
Revenue,Adult Services,5105645051,12.08.2015,Elderly Frail Nursing Mainland,Charges from Independent Providers,"1,904.56",BUPA CARE HOME (BNH) LTD
Revenue,Adult Services,5105647538,28.08.2015,Elderly Frail Nursing Mainland,Charges from Independent Providers,338.64,BUPA CARE HOME (BNH) LTD
Revenue,Place,5105643625,12.08.2015,Project Manager Waste Strategy,Consultants Fees,"19,955.62",BURGES SALMON LLP
Revenue,Adult Services,5105646341,26.08.2015,Westminster House,Prop Svs only - Day to day mtce,75.60,C & J GROUND MAINTENANCE
Revenue,Place,5105646340,19.08.2015,"Bugle House,Newport",Grounds Maintenance,60.00,C & J GROUND MAINTENANCE
Revenue,Adult Services,5105643505,05.08.2015,Mental Health Day Services,Grounds Maintenance,300.00,C & J GROUND MAINTENANCE
Revenue,Place,5105643477,05.08.2015,"Civic Centre,Sandown",Grounds Maintenance,565.00,C & J GROUND MAINTENANCE
Revenue,Childrens Services,5105643820,07.08.2015,Children placed with Family&Friends,Boarding Out Allowances,116.25,REDACTED PERSONAL DATA
Revenue,Childrens Services,5105643820,07.08.2015,Children placed with Family&Friends,Boarding Out Allowances,164.30,REDACTED PERSONAL DATA
Revenue,Childrens Services,5105646885,21.08.2015,Children placed with Family&Friends,Boarding Out Allowances,116.25,REDACTED PERSONAL DATA
Revenue,Childrens Services,5105646885,21.08.2015,Children placed with Family&Friends,Boarding Out Allowances,164.30,REDACTED PERSONAL DATA
Revenue,Childrens Services,5105647612,28.08.2015,Children placed with Family&Friends,Boarding Out Allowances,116.25,REDACTED PERSONAL DATA
Revenue,Childrens Services,5105647612,28.08.2015,Children placed with Family&Friends,Boarding Out Allowances,164.30,REDACTED PERSONAL DATA
Revenue,Childrens Services,5105646057,14.08.2015,Children placed with Family&Friends,Boarding Out Allowances,116.25,REDACTED PERSONAL DATA
Revenue,Childrens Services,5105646057,14.08.2015,Children placed with Family&Friends,Boarding Out Allowances,164.30,REDACTED PERSONAL DATA
Revenue,Childrens Services,5105646035,14.08.2015,Special Guardianship Order Costs,Support Children,125.79,REDACTED PERSONAL DATA
Revenue,Childrens Services,5105646864,21.08.2015,Special Guardianship Order Costs,Support Children,125.79,REDACTED PERSONAL DATA
Revenue,Childrens Services,5105647592,28.08.2015,Special Guardianship Order Costs,Support Children,125.79,REDACTED PERSONAL DATA
Revenue,Childrens Services,5105643798,07.08.2015,Special Guardianship Order Costs,Support Children,125.79,REDACTED PERSONAL DATA
Revenue,Place,5105646716,19.08.2015,Fort Victoria,General Materials,107.74,C BREWER & SONS LTD
Revenue,Place,5105646714,19.08.2015,Fort Victoria,General Materials,75.90,C BREWER & SONS LTD
Capital,Place,5105646720,26.08.2015,Fire Capital Projects,Payment to Contractors - Capital,77.62,C BREWER & SONS LTD
Revenue,Childrens Services,5105647639,28.08.2015,Children placed with Family&Friends,Boarding Out Allowances,142.86,REDACTED PERSONAL DATA
Revenue,Childrens Services,5105646084,14.08.2015,Children placed with Family&Friends,Boarding Out Allowances,142.86,REDACTED PERSONAL DATA
Revenue,Childrens Services,5105643847,07.08.2015,Children placed with Family&Friends,Boarding Out Allowances,142.86,REDACTED PERSONAL DATA
Revenue,Childrens Services,5105646912,21.08.2015,Children placed with Family&Friends,Boarding Out Allowances,142.86,REDACTED PERSONAL DATA
Revenue,Childrens Services,5105646895,21.08.2015,Adoption Costs,Support Children,125.79,REDACTED PERSONAL DATA
Revenue,Childrens Services,5105646895,21.08.2015,Adoption Costs,Support Children,132.69,REDACTED PERSONAL DATA
Revenue,Childrens Services,5105643830,07.08.2015,Adoption Costs,Support Children,125.79,REDACTED PERSONAL DATA
Revenue,Childrens Services,5105643830,07.08.2015,Adoption Costs,Support Children,132.69,REDACTED PERSONAL DATA
Revenue,Childrens Services,5105647622,28.08.2015,Adoption Costs,Support Children,125.79,REDACTED PERSONAL DATA
Revenue,Childrens Services,5105647622,28.08.2015,Adoption Costs,Support Children,132.69,REDACTED PERSONAL DATA
Revenue,Childrens Services,5105646067,14.08.2015,Adoption Costs,Support Children,125.79,REDACTED PERSONAL DATA
Revenue,Childrens Services,5105646067,14.08.2015,Adoption Costs,Support Children,132.69,REDACTED PERSONAL DATA
Revenue,Resources,5105647192,26.08.2015,Staff Benefits,Payment to Private Contractors,166.50,REDACTED PERSONAL DATA
Revenue,Childrens Services,5105647605,28.08.2015,Special Guardianship Order Costs,Support Children,125.79,REDACTED PERSONAL DATA
Revenue,Childrens Services,5105646050,14.08.2015,Special Guardianship Order Costs,Support Children,125.79,REDACTED PERSONAL DATA
Revenue,Childrens Services,5105646878,21.08.2015,Special Guardianship Order Costs,Support Children,125.79,REDACTED PERSONAL DATA
Revenue,Childrens Services,5105643813,07.08.2015,Special Guardianship Order Costs,Support Children,125.79,REDACTED PERSONAL DATA
Revenue,Childrens Services,5105647635,28.08.2015,In-house Fostering,Boarding Out Allowances,202.58,REDACTED PERSONAL DATA
Revenue,Childrens Services,5105647635,28.08.2015,In-house Fostering,Boarding Out Allowances,162.73,REDACTED PERSONAL DATA
Revenue,Childrens Services,5105646080,14.08.2015,In-house Fostering,Boarding Out Allowances,202.58,REDACTED PERSONAL DATA
Revenue,Childrens Services,5105646080,14.08.2015,In-house Fostering,Boarding Out Allowances,162.73,REDACTED PERSONAL DATA
Revenue,Childrens Services,5105646908,21.08.2015,In-house Fostering,Boarding Out Allowances,202.58,REDACTED PERSONAL DATA
Revenue,Childrens Services,5105646908,21.08.2015,In-house Fostering,Boarding Out Allowances,162.73,REDACTED PERSONAL DATA
Revenue,Childrens Services,5105643843,07.08.2015,In-house Fostering,Boarding Out Allowances,202.58,REDACTED PERSONAL DATA
Revenue,Childrens Services,5105643843,07.08.2015,In-house Fostering,Boarding Out Allowances,162.73,REDACTED PERSONAL DATA
Revenue,Childrens Services,5105646038,14.08.2015,Adoption Costs,Support Children,168.39,REDACTED PERSONAL DATA
Revenue,Childrens Services,5105646867,21.08.2015,Adoption Costs,Support Children,168.39,REDACTED PERSONAL DATA
Revenue,Childrens Services,5105646867,21.08.2015,Adoption Costs,Support Children,168.39,REDACTED PERSONAL DATA
Revenue,Childrens Services,5105643801,07.08.2015,Adoption Costs,Support Children,168.39,REDACTED PERSONAL DATA
Revenue,Childrens Services,5105643801,07.08.2015,Adoption Costs,Support Children,168.39,REDACTED PERSONAL DATA
Revenue,Childrens Services,5105647594,28.08.2015,Adoption Costs,Support Children,168.39,REDACTED PERSONAL DATA
Revenue,Childrens Services,5105647594,28.08.2015,Adoption Costs,Support Children,168.39,REDACTED PERSONAL DATA
Revenue,Childrens Services,5105646038,14.08.2015,Adoption Costs,Support Children,168.39,REDACTED PERSONAL DATA
Revenue,Childrens Services,5105647657,28.08.2015,Special Guardianship Order Costs,Support Children,116.80,REDACTED PERSONAL DATA
Revenue,Childrens Services,5105646930,21.08.2015,Special Guardianship Order Costs,Support Children,116.80,REDACTED PERSONAL DATA
Revenue,Childrens Services,5105646102,14.08.2015,Special Guardianship Order Costs,Support Children,116.80,REDACTED PERSONAL DATA
Revenue,Childrens Services,5105643866,07.08.2015,Special Guardianship Order Costs,Support Children,116.80,REDACTED PERSONAL DATA
Revenue,Resources,5105647771,28.08.2015,Litigation Costs,Legal Fees - Other Parties,564.00,12 COLLEGE PLACE BARRISTERS
Revenue,Childrens Services,5105647589,28.08.2015,In-house Fostering,Boarding Out Allowances,246.44,REDACTED PERSONAL DATA
Revenue,Childrens Services,5105647589,28.08.2015,In-house Fostering,Boarding Out Allowances,295.00,REDACTED PERSONAL DATA
Revenue,Childrens Services,5105647589,28.08.2015,In-house Fostering,Boarding Out Allowances,10.00,REDACTED PERSONAL DATA
Revenue,Childrens Services,5105646861,21.08.2015,In-house Fostering,Boarding Out Allowances,246.44,REDACTED PERSONAL DATA
Revenue,Childrens Services,5105646861,21.08.2015,In-house Fostering,Boarding Out Allowances,295.00,REDACTED PERSONAL DATA
Revenue,Childrens Services,5105646861,21.08.2015,In-house Fostering,Boarding Out Allowances,10.00,REDACTED PERSONAL DATA
Revenue,Childrens Services,5105646032,14.08.2015,In-house Fostering,Boarding Out Allowances,246.44,REDACTED PERSONAL DATA
Revenue,Childrens Services,5105646032,14.08.2015,In-house Fostering,Boarding Out Allowances,295.00,REDACTED PERSONAL DATA
Revenue,Childrens Services,5105646032,14.08.2015,In-house Fostering,Boarding Out Allowances,10.00,REDACTED PERSONAL DATA
Revenue,Childrens Services,5105643795,07.08.2015,In-house Fostering,Boarding Out Allowances,246.44,REDACTED PERSONAL DATA
Revenue,Childrens Services,5105643795,07.08.2015,In-house Fostering,Boarding Out Allowances,295.00,REDACTED PERSONAL DATA
Revenue,Childrens Services,5105643795,07.08.2015,In-house Fostering,Boarding Out Allowances,10.00,REDACTED PERSONAL DATA
Revenue,Childrens Services,5105647567,28.08.2015,In-house Fostering,Boarding Out Allowances,246.44,REDACTED PERSONAL DATA
Revenue,Childrens Services,5105647567,28.08.2015,In-house Fostering,Boarding Out Allowances,15.00,REDACTED PERSONAL DATA
Revenue,Childrens Services,5105646839,21.08.2015,In-house Fostering,Boarding Out Allowances,246.44,REDACTED PERSONAL DATA
Revenue,Childrens Services,5105646839,21.08.2015,In-house Fostering,Boarding Out Allowances,15.00,REDACTED PERSONAL DATA
Revenue,Childrens Services,5105646010,14.08.2015,In-house Fostering,Boarding Out Allowances,202.58,REDACTED PERSONAL DATA
Revenue,Childrens Services,5105646010,14.08.2015,In-house Fostering,Boarding Out Allowances,15.00,REDACTED PERSONAL DATA
Revenue,Childrens Services,5105643773,07.08.2015,In-house Fostering,Boarding Out Allowances,202.58,REDACTED PERSONAL DATA
Revenue,Childrens Services,5105643773,07.08.2015,In-house Fostering,Boarding Out Allowances,15.00,REDACTED PERSONAL DATA
Revenue,Childrens Services,5105643790,07.08.2015,Children placed with Family&Friends,Boarding Out Allowances,246.44,REDACTED PERSONAL DATA
Revenue,Childrens Services,5105643790,07.08.2015,Children placed with Family&Friends,Boarding Out Allowances,135.00,REDACTED PERSONAL DATA
Revenue,Childrens Services,5105647584,28.08.2015,Children placed with Family&Friends,Boarding Out Allowances,246.44,REDACTED PERSONAL DATA
Revenue,Childrens Services,5105647584,28.08.2015,Children placed with Family&Friends,Boarding Out Allowances,135.00,REDACTED PERSONAL DATA
Revenue,Childrens Services,5105646856,21.08.2015,Children placed with Family&Friends,Boarding Out Allowances,246.44,REDACTED PERSONAL DATA
Revenue,Childrens Services,5105646856,21.08.2015,Children placed with Family&Friends,Boarding Out Allowances,135.00,REDACTED PERSONAL DATA
Revenue,Childrens Services,5105646027,14.08.2015,Children placed with Family&Friends,Boarding Out Allowances,246.44,REDACTED PERSONAL DATA
Revenue,Childrens Services,5105646027,14.08.2015,Children placed with Family&Friends,Boarding Out Allowances,135.00,REDACTED PERSONAL DATA
Revenue,Place,5105646449,19.08.2015,Sandown Concessions,Payment to Private Contractors,"5,829.38",C N SERVICES
Revenue,Place,5105646737,21.08.2015,Rights of Way Operations,Payment to Private Contractors,"1,050.00",C N SERVICES
Revenue,Place,5105646726,21.08.2015,Play Areas Health & Safety work,Payment to Private Contractors,380.88,C N SERVICES
Revenue,Place,5105646733,19.08.2015,Other Grounds Maintenance,Payment to Private Contractors,677.52,C N SERVICES
Revenue,Place,5105646448,19.08.2015,Public Shelters - Ryde,Payment to Private Contractors,218.19,C N SERVICES
Revenue,Childrens Services,5105643804,07.08.2015,In-house Fostering,Boarding Out Allowances,99.62,REDACTED PERSONAL DATA
Revenue,Childrens Services,5105646041,14.08.2015,In-house Fostering,Boarding Out Allowances,99.62,REDACTED PERSONAL DATA
Revenue,Childrens Services,5105643418,05.08.2015,Children placed with Family&Friends,Support Children,25.00,REDACTED PERSONAL DATA
Revenue,Childrens Services,5105647616,28.08.2015,Special Guardianship Order Costs,Support Children,161.49,REDACTED PERSONAL DATA
Revenue,Childrens Services,5105646889,21.08.2015,Special Guardianship Order Costs,Support Children,161.49,REDACTED PERSONAL DATA
Revenue,Childrens Services,5105646061,14.08.2015,Special Guardianship Order Costs,Support Children,161.49,REDACTED PERSONAL DATA
Revenue,Childrens Services,5105643824,07.08.2015,Special Guardianship Order Costs,Support Children,161.49,REDACTED PERSONAL DATA
Revenue,Adult Services,5105644704,12.08.2015,Learning Disability Residential Care,Charges from Independent Providers,"1,894.76",REDACTED PERSONAL DATA
Revenue,Childrens Services,5105646862,21.08.2015,Adoption Costs,Support Children,132.69,REDACTED PERSONAL DATA
Revenue,Childrens Services,5105647590,28.08.2015,Adoption Costs,Support Children,132.69,REDACTED PERSONAL DATA
Revenue,Childrens Services,5105643796,07.08.2015,Adoption Costs,Support Children,132.69,REDACTED PERSONAL DATA
Revenue,Childrens Services,5105646033,14.08.2015,Adoption Costs,Support Children,132.69,REDACTED PERSONAL DATA
Revenue,Childrens Services,5105643543,07.08.2015,LSCB (Local Safeguarding Childrens Board),Professional Services,"1,237.50",CHILDREN ACT ENTERPRISES LTD
Revenue,Childrens Services,5105643682,12.08.2015,LSCB (Local Safeguarding Childrens Board),Professional Services,"1,650.00",CHILDREN ACT ENTERPRISES LTD
Revenue,Childrens Services,5105643686,19.08.2015,LSCB (Local Safeguarding Childrens Board),Professional Services,412.50,CHILDREN ACT ENTERPRISES LTD
Revenue,Childrens Services,5105643642,07.08.2015,LSCB (Local Safeguarding Childrens Board),Professional Services,412.50,CHILDREN ACT ENTERPRISES LTD
Revenue,Childrens Services,5105643644,07.08.2015,LSCB (Local Safeguarding Childrens Board),Professional Services,412.50,CHILDREN ACT ENTERPRISES LTD
Revenue,Childrens Services,5105643574,07.08.2015,LSCB (Local Safeguarding Childrens Board),Professional Services,225.00,CHILDREN ACT ENTERPRISES LTD
Revenue,Place,5105647112,26.08.2015,Fire Technical Support,Vehicle Maintenance Costs,25.00,CAGES LTD
Revenue,Place,5105647112,26.08.2015,Fire Technical Support,Vehicle Maintenance Costs,60.00,CAGES LTD
Revenue,Place,5105647112,26.08.2015,Fire Technical Support,Vehicle Maintenance Costs,10.00,CAGES LTD
Revenue,Place,5105647439,26.08.2015,Rights of Way Operations,Payment to Private Contractors,13.75,CALOR GAS LIMITED
Revenue,Childrens Services,5105644470,19.08.2015,Pre 16 Independ. & Non-Maint. Special Schls & Independ. Specialist Provision,Charges from Independent Providers,"2,685.32",CAMBIAN ASPERGER SYNDROME SERVICES LTD
Revenue,Place,5105647210,28.08.2015,Coroner,Professional Services,225.00,CAMERON LAMB LTD
Revenue,Resources,5105643712,07.08.2015,Litigation Costs,Legal Fees - Other Parties,50.00,CAMERON LAMB LTD
Revenue,Resources,5105643711,07.08.2015,Litigation Costs,Legal Fees - Other Parties,50.00,CAMERON LAMB LTD
Revenue,Place,5105647279,26.08.2015,Medina Leisure Centre,Cleaning Contracts,38.91,CANNON HYGIENE
Revenue,Place,5105647279,26.08.2015,Cowes Library,Cleaning Contracts,1.04,CANNON HYGIENE
Revenue,Place,5105647279,26.08.2015,Ryde Library,Cleaning Contracts,5.29,CANNON HYGIENE
Revenue,Childrens Services,5105647279,26.08.2015,Learning & Development Running Costs,Cleaning Contracts,5.20,CANNON HYGIENE
Revenue,Adult Services,5105647279,26.08.2015,S75 Integrated Community Equipment Store,Cleaning Contracts,1.04,CANNON HYGIENE
Revenue,Adult Services,5105647279,26.08.2015,Plean Dene,Cleaning Contracts,109.03,CANNON HYGIENE
Revenue,Adult Services,5105647279,26.08.2015,Westminster House,Cleaning Contracts,49.22,CANNON HYGIENE
Revenue,Adult Services,5105647279,26.08.2015,Saxonbury,Cleaning Contracts,120.26,CANNON HYGIENE
Revenue,Place,5105647279,26.08.2015,"Enterprise House, Newport",Cleaning Contracts,12.09,CANNON HYGIENE
Revenue,Place,5105647279,26.08.2015,Freshwater West Wight Library,Cleaning Contracts,1.04,CANNON HYGIENE
Revenue,Place,5105647279,26.08.2015,Newport Library,Cleaning Contracts,10.96,CANNON HYGIENE
Revenue,Place,5105647279,26.08.2015,Ventnor Library,Cleaning Contracts,1.04,CANNON HYGIENE
Revenue,Adult Services,5105647279,26.08.2015,31 Carter Avenue,Cleaning Contracts,1.04,CANNON HYGIENE
Revenue,Adult Services,5105647279,26.08.2015,Highmead,Cleaning Contracts,30.12,CANNON HYGIENE
Revenue,Place,5105647279,26.08.2015,"Barrack Block, Sandown",Cleaning Contracts,4.16,CANNON HYGIENE
Revenue,Place,5105647279,26.08.2015,Fire Technical Support,Cleaning Contracts,1.04,CANNON HYGIENE
Revenue,Place,5105647279,26.08.2015,Fire Technical Support,Cleaning Contracts,2.08,CANNON HYGIENE
Revenue,Place,5105647279,26.08.2015,Fire Technical Support,Cleaning Contracts,1.04,CANNON HYGIENE
Revenue,Place,5105647279,26.08.2015,Fire Technical Support,Cleaning Contracts,3.12,CANNON HYGIENE
Revenue,Place,5105647279,26.08.2015,Fire Technical Support,Cleaning Contracts,5.20,CANNON HYGIENE
Revenue,Place,5105647279,26.08.2015,Fire Technical Support,Cleaning Contracts,1.04,CANNON HYGIENE
Revenue,Place,5105647279,26.08.2015,Planning Business Support,Cleaning Contracts,22.41,CANNON HYGIENE
Revenue,Place,5105647279,26.08.2015,"Westridge, Ryde",Cleaning Contracts,5.20,CANNON HYGIENE
Revenue,Place,5105647279,26.08.2015,Fire Technical Support,Cleaning Contracts,1.04,CANNON HYGIENE
Revenue,Childrens Services,5105647279,26.08.2015,Beaulieu House,Cleaning Contracts,156.30,CANNON HYGIENE
Revenue,Childrens Services,5105639323,12.08.2015,Beaulieu House,Cleaning Contracts,15.21,CANNON HYGIENE
Revenue,Childrens Services,5105645552,12.08.2015,Beaulieu House,Cleaning Contracts,-15.21,CANNON HYGIENE
Revenue,Childrens Services,5105647279,26.08.2015,Contact Team,Cleaning Contracts,8.41,CANNON HYGIENE
Revenue,Place,5105647279,26.08.2015,Fort Victoria,Cleaning Contracts,4.51,CANNON HYGIENE
Revenue,Place,5105647279,26.08.2015,Regulatory Management & Admin Support,Cleaning Contracts,3.12,CANNON HYGIENE
Revenue,Childrens Services,5105647279,26.08.2015,Branstone Farm Studies Centre,Cleaning Contracts,3.12,CANNON HYGIENE
Revenue,Childrens Services,5105647279,26.08.2015,Workshop Initiative Support in Education,Cleaning Contracts,2.08,CANNON HYGIENE
Revenue,Childrens Services,5105647279,26.08.2015,Island Learning Centre,Cleaning Contracts,7.28,CANNON HYGIENE
Revenue,Place,5105647279,26.08.2015,Sandown Library,Cleaning Contracts,1.04,CANNON HYGIENE
Revenue,Place,5105647279,26.08.2015,Westridge Squash Courts,Cleaning Contracts,4.16,CANNON HYGIENE
Revenue,Place,5105647279,26.08.2015,"County Hall,Newport",Cleaning Contracts,105.73,CANNON HYGIENE
Revenue,Place,5105645552,12.08.2015,"County Hall,Newport",Cleaning Contracts,-4.03,CANNON HYGIENE
Revenue,Place,5105639323,12.08.2015,"County Hall,Newport",Cleaning Contracts,4.03,CANNON HYGIENE
Revenue,Place,5105647279,26.08.2015,"Bugle House,Newport",Cleaning Contracts,4.16,CANNON HYGIENE
Revenue,Adult Services,5105647279,26.08.2015,Seagulls,Cleaning Contracts,1.04,CANNON HYGIENE
Revenue,Place,5105647279,26.08.2015,Crematorium,Cleaning Contracts,3.12,CANNON HYGIENE
Revenue,Childrens Services,5105647279,26.08.2015,Specialist Service Business Admin,Cleaning Contracts,13.13,CANNON HYGIENE
Revenue,Place,5105647279,26.08.2015,The Heights,Cleaning Contracts,78.35,CANNON HYGIENE
Revenue,Place,5105647279,26.08.2015,Library HQ,Cleaning Contracts,1.04,CANNON HYGIENE
Revenue,Place,5105647279,26.08.2015,Guildhall Museum,Cleaning Contracts,1.04,CANNON HYGIENE
Revenue,Place,5105647279,26.08.2015,Dinosaur Isle Museum (Sandown Geology),Cleaning Contracts,11.53,CANNON HYGIENE
Revenue,Adult Services,5105647279,26.08.2015,Adelaide Resource Centre,Cleaning Contracts,35.01,CANNON HYGIENE
Revenue,Adult Services,5105647279,26.08.2015,Mental Health Day Services,Cleaning Contracts,4.16,CANNON HYGIENE
Revenue,Adult Services,5105647279,26.08.2015,Mental Health Day Services,Cleaning Contracts,2.08,CANNON HYGIENE
Revenue,Place,5105647279,26.08.2015,Downside Community & Learning Centre,Cleaning Contracts,12.35,CANNON HYGIENE
Revenue,Adult Services,5105647279,26.08.2015,Overbrook,Cleaning Contracts,42.90,CANNON HYGIENE
Revenue,Adult Services,5105647279,26.08.2015,The Laurels,Cleaning Contracts,30.11,CANNON HYGIENE
Revenue,Place,5105647279,26.08.2015,"Civic Centre,Sandown",Cleaning Contracts,11.05,CANNON HYGIENE
Revenue,Place,5105644000,14.08.2015,Print Unit,Photocopying Costs,"1,694.51",CANON (UK) LTD
Revenue,Corporate Items,5105647492,26.08.2015,Miscellaneous Non-rechargeable,Professional Services,"1,855.02",CAPACITY GRID T/A LIBERATA UK LTD
Revenue,Corporate Items,5105641935,19.08.2015,Miscellaneous Non-rechargeable,Professional Services,"10,858.19",CAPACITY GRID T/A LIBERATA UK LTD
Capital,Place,5105643546,05.08.2015,Coastal Capital Schemes,External Design and Supervision Fees,"8,162.59",CAPITA
Capital,Place,5105647511,28.08.2015,Parks and Gardens Capital,External Design and Supervision Fees,"10,600.00",CAPITA
Capital,Resources,5105630616,26.08.2015,Server Farm,ICT Hardware & Software - Capital,"2,250.00",CAPITA BUSINESS SERVICES LTD
Capital,Resources,5105630616,26.08.2015,Server Farm,ICT Hardware & Software - Capital,250.00,CAPITA BUSINESS SERVICES LTD
Capital,Resources,5105630616,26.08.2015,Server Farm,ICT Hardware & Software - Capital,"4,502.58",CAPITA BUSINESS SERVICES LTD
Capital,Resources,5105630616,26.08.2015,Server Farm,ICT Hardware & Software - Capital,"2,927.42",CAPITA BUSINESS SERVICES LTD
Revenue,Resources,5105646641,19.08.2015,Applications Development,Professional Services,"1,300.00",CAPITA BUSINESS SERVICES LTD
Revenue,Childrens Services,5105646466,19.08.2015,Purchased Fostering,Transport of Clients,400.00,CAPSTONE FOSTER CARE LTD
Revenue,Childrens Services,5105647397,26.08.2015,Purchased Fostering,Transport of Clients,400.00,CAPSTONE FOSTER CARE LTD
Revenue,Childrens Services,5105643932,07.08.2015,Purchased Fostering,Charges from Independent Providers,"1,107.01",CAPSTONE FOSTER CARE LTD
Revenue,Place,5105646533,19.08.2015,Fire Technical Support,Operational Equipment,375.00,CARDIAC SCIENCE HOLDINGS UK LTD
Revenue,Place,5105646585,19.08.2015,Fire Technical Support,Maintenance of Operational Equipment,"2,535.00",CARDIAC SCIENCE HOLDINGS UK LTD
Revenue,Place,5105646585,19.08.2015,Fire Technical Support,Maintenance of Operational Equipment,7.50,CARDIAC SCIENCE HOLDINGS UK LTD
Revenue,Place,5105646533,19.08.2015,Fire Technical Support,Courier Costs,5.95,CARDIAC SCIENCE HOLDINGS UK LTD
Revenue,Childrens Services,5105644458,26.08.2015,Short Breaks,Grants to External Bodies,841.00,CARE CONNECT IOW CIC
Revenue,Adult Services,5105645862,12.08.2015,Mental Health Homecare,Charges from Independent Providers,977.92,CARE FIRST IW LTD
Revenue,Adult Services,5105645864,12.08.2015,Physical Disability Homecare,Charges from Independent Providers,122.24,CARE FIRST IW LTD
Revenue,Adult Services,5105645839,12.08.2015,Physical Disability Homecare,Charges from Independent Providers,137.52,CARE FIRST IW LTD
Revenue,Adult Services,5105646348,19.08.2015,Physical Disability Homecare,Charges from Independent Providers,122.24,CARE FIRST IW LTD
Revenue,Adult Services,5105645854,12.08.2015,Physical Disability Homecare,Charges from Independent Providers,122.24,CARE FIRST IW LTD
Revenue,Adult Services,5105645852,12.08.2015,Elderly Frail Homecare,Regular Respite Care,106.96,CARE FIRST IW LTD
Revenue,Adult Services,5105645856,12.08.2015,Elderly Frail Homecare,Regular Respite Care,61.12,CARE FIRST IW LTD
Revenue,Adult Services,5105645859,12.08.2015,Elderly Frail Homecare,Regular Respite Care,91.68,CARE FIRST IW LTD
Revenue,Adult Services,5105645849,12.08.2015,Elderly Frail Homecare,Regular Respite Care,53.48,CARE FIRST IW LTD
Revenue,Adult Services,5105645826,12.08.2015,Mental Health Homecare,Charges from Independent Providers,213.92,CARE FIRST IW LTD
Revenue,Adult Services,5105645865,12.08.2015,Elderly Frail Homecare,Charges from Independent Providers,84.04,CARE FIRST IW LTD
Revenue,Adult Services,5105645863,12.08.2015,Elderly Frail Homecare,Charges from Independent Providers,855.68,CARE FIRST IW LTD
Revenue,Adult Services,5105645861,12.08.2015,Elderly Frail Homecare,Charges from Independent Providers,343.80,CARE FIRST IW LTD
Revenue,Adult Services,5105645858,12.08.2015,Elderly Frail Homecare,Charges from Independent Providers,"1,069.60",CARE FIRST IW LTD
Revenue,Adult Services,5105645850,12.08.2015,Elderly Frail Homecare,Charges from Independent Providers,"2,307.28",CARE FIRST IW LTD
Revenue,Adult Services,5105646350,19.08.2015,Elderly Frail Homecare,Charges from Independent Providers,91.68,CARE FIRST IW LTD
Revenue,Adult Services,5105645874,12.08.2015,Elderly Frail Homecare,Charges from Independent Providers,213.92,CARE FIRST IW LTD
Revenue,Adult Services,5105645871,12.08.2015,Elderly Frail Homecare,Charges from Independent Providers,160.44,CARE FIRST IW LTD
Revenue,Adult Services,5105645844,12.08.2015,Elderly Frail Homecare,Charges from Independent Providers,"1,054.32",CARE FIRST IW LTD
Revenue,Adult Services,5105645838,12.08.2015,Elderly Frail Homecare,Charges from Independent Providers,534.80,CARE FIRST IW LTD
Revenue,Adult Services,5105645840,12.08.2015,Elderly Frail Homecare,Charges from Independent Providers,561.54,CARE FIRST IW LTD
Revenue,Adult Services,5105645830,12.08.2015,Elderly Frail Homecare,Charges from Independent Providers,91.68,CARE FIRST IW LTD
Revenue,Adult Services,5105645875,12.08.2015,Elderly Frail Homecare,Regular Respite Care,122.24,CARE FIRST IW LTD
Revenue,Adult Services,5105646351,19.08.2015,Elderly Frail Homecare,Regular Respite Care,122.24,CARE FIRST IW LTD
Revenue,Adult Services,5105645832,12.08.2015,Elderly Frail Homecare,Regular Respite Care,152.80,CARE FIRST IW LTD
Revenue,Adult Services,5105645869,12.08.2015,Elderly Frail Homecare,Regular Respite Care,122.24,CARE FIRST IW LTD
Revenue,Adult Services,5105646349,19.08.2015,Elderly Frail Homecare,Regular Respite Care,30.56,CARE FIRST IW LTD
Revenue,Adult Services,5105645855,12.08.2015,Elderly Frail Homecare,Regular Respite Care,38.20,CARE FIRST IW LTD
Revenue,Adult Services,5105645847,12.08.2015,Elderly Frail Homecare,Regular Respite Care,122.24,CARE FIRST IW LTD
Revenue,Adult Services,5105645866,12.08.2015,Elderly Frail Homecare,Regular Respite Care,61.12,CARE FIRST IW LTD
Revenue,Adult Services,5105645853,12.08.2015,Elderly Frail Homecare,Charges from Independent Providers,76.40,CARE FIRST IW LTD
Revenue,Adult Services,5105645828,12.08.2015,Elderly Frail Homecare,Charges from Independent Providers,626.48,CARE FIRST IW LTD
Revenue,Adult Services,5105645827,12.08.2015,Elderly Frail Homecare,Charges from Independent Providers,546.26,CARE FIRST IW LTD
Revenue,Adult Services,5105645825,12.08.2015,Elderly Frail Homecare,Charges from Independent Providers,641.76,CARE FIRST IW LTD
Revenue,Adult Services,5105645829,12.08.2015,Elderly Frail Homecare,Charges from Independent Providers,515.70,CARE FIRST IW LTD
Revenue,Adult Services,5105645841,12.08.2015,Elderly Frail Homecare,Charges from Independent Providers,"1,283.52",CARE FIRST IW LTD
Revenue,Adult Services,5105645851,12.08.2015,Elderly Frail Homecare,Charges from Independent Providers,122.24,CARE FIRST IW LTD
Revenue,Adult Services,5105645857,12.08.2015,Elderly Frail Homecare,Charges from Independent Providers,168.08,CARE FIRST IW LTD
Revenue,Adult Services,5105645846,12.08.2015,Elderly Frail Homecare,Charges from Independent Providers,152.80,CARE FIRST IW LTD
Revenue,Adult Services,5105645868,12.08.2015,Elderly Frail Homecare,Charges from Independent Providers,61.12,CARE FIRST IW LTD
Revenue,Adult Services,5105645873,12.08.2015,Elderly Frail Homecare,Charges from Independent Providers,240.66,CARE FIRST IW LTD
Revenue,Adult Services,5105645835,12.08.2015,Elderly Frail Homecare,Charges from Independent Providers,962.64,CARE FIRST IW LTD
Revenue,Adult Services,5105645833,12.08.2015,Elderly Frail Homecare,Charges from Independent Providers,183.36,CARE FIRST IW LTD
Revenue,Adult Services,5105645848,12.08.2015,Elderly Frail Homecare,Charges from Independent Providers,420.20,CARE FIRST IW LTD
Revenue,Adult Services,5105645870,12.08.2015,Elderly Frail Homecare,Charges from Independent Providers,427.84,CARE FIRST IW LTD
Revenue,Adult Services,5105645842,12.08.2015,Elderly Frail Homecare,Charges from Independent Providers,"2,139.20",CARE FIRST IW LTD
Revenue,Adult Services,5105645843,12.08.2015,Elderly Frail Homecare,Charges from Independent Providers,855.68,CARE FIRST IW LTD
Revenue,Adult Services,5105645845,12.08.2015,Elderly Frail Homecare,Charges from Independent Providers,641.76,CARE FIRST IW LTD
Revenue,Adult Services,5105645834,12.08.2015,Elderly Frail Homecare,Charges from Independent Providers,446.94,CARE FIRST IW LTD
Revenue,Adult Services,5105645831,12.08.2015,Elderly Mentally Ill Homecare,Charges from Independent Providers,557.72,CARE FIRST IW LTD
Revenue,Adult Services,5105645860,12.08.2015,Elderly Mentally Ill Homecare,Charges from Independent Providers,420.20,CARE FIRST IW LTD
Revenue,Adult Services,5105645836,12.08.2015,Elderly Mentally Ill Homecare,Charges from Independent Providers,481.32,CARE FIRST IW LTD
Revenue,Adult Services,5105645872,12.08.2015,Elderly Mentally Ill Homecare,Regular Respite Care,366.72,CARE FIRST IW LTD
Revenue,Adult Services,5105645867,12.08.2015,Elderly Mentally Ill Homecare,Regular Respite Care,183.36,CARE FIRST IW LTD
Revenue,Adult Services,5105645837,12.08.2015,Elderly Mentally Ill Homecare,Regular Respite Care,91.68,CARE FIRST IW LTD
Revenue,Childrens Services,5105646345,19.08.2015,Support for Looked After Children - Disabled Childrens Team,Charges from Independent Providers,281.96,CAREWATCH (SOUTHAMPTON NEW FOREST & IOW)
Revenue,Adult Services,5105645733,12.08.2015,Mental Health Homecare,Charges from Independent Providers,"2,169.76",CAREWATCH (SOUTHAMPTON NEW FOREST & IOW)
Revenue,Adult Services,5105645723,12.08.2015,Mental Health Homecare,Charges from Independent Providers,213.92,CAREWATCH (SOUTHAMPTON NEW FOREST & IOW)
Revenue,Adult Services,5105645798,12.08.2015,Mental Health Homecare,Charges from Independent Providers,427.84,CAREWATCH (SOUTHAMPTON NEW FOREST & IOW)
Revenue,Adult Services,5105645754,12.08.2015,Physical Disability Homecare,Charges from Independent Providers,183.36,CAREWATCH (SOUTHAMPTON NEW FOREST & IOW)
Revenue,Adult Services,5105645742,12.08.2015,Physical Disability Homecare,Charges from Independent Providers,993.20,CAREWATCH (SOUTHAMPTON NEW FOREST & IOW)
Revenue,Adult Services,5105645704,12.08.2015,Physical Disability Homecare,Charges from Independent Providers,"1,390.48",CAREWATCH (SOUTHAMPTON NEW FOREST & IOW)
Revenue,Adult Services,5105645728,12.08.2015,Physical Disability Homecare,Charges from Independent Providers,641.76,CAREWATCH (SOUTHAMPTON NEW FOREST & IOW)
Revenue,Adult Services,5105645735,12.08.2015,Physical Disability Homecare,Charges from Independent Providers,320.88,CAREWATCH (SOUTHAMPTON NEW FOREST & IOW)
Revenue,Adult Services,5105645721,12.08.2015,Physical Disability Homecare,Charges from Independent Providers,"2,139.20",CAREWATCH (SOUTHAMPTON NEW FOREST & IOW)
Revenue,Adult Services,5105645714,12.08.2015,Physical Disability Homecare,Charges from Independent Providers,985.56,CAREWATCH (SOUTHAMPTON NEW FOREST & IOW)
Revenue,Adult Services,5105645715,12.08.2015,Physical Disability Homecare,Charges from Independent Providers,466.04,CAREWATCH (SOUTHAMPTON NEW FOREST & IOW)
Revenue,Adult Services,5105645737,12.08.2015,Physical Disability Homecare,Charges from Independent Providers,"1,466.88",CAREWATCH (SOUTHAMPTON NEW FOREST & IOW)
Revenue,Adult Services,5105645760,12.08.2015,Physical Disability Homecare,Charges from Independent Providers,702.88,CAREWATCH (SOUTHAMPTON NEW FOREST & IOW)
Revenue,Adult Services,5105645699,12.08.2015,Physical Disability Homecare,Charges from Independent Providers,764.00,CAREWATCH (SOUTHAMPTON NEW FOREST & IOW)
Revenue,Adult Services,5105645739,12.08.2015,Physical Disability Homecare,Regular Respite Care,672.32,CAREWATCH (SOUTHAMPTON NEW FOREST & IOW)
Revenue,Adult Services,5105645772,12.08.2015,Elderly Frail Homecare,Regular Respite Care,91.68,CAREWATCH (SOUTHAMPTON NEW FOREST & IOW)
Revenue,Adult Services,5105645745,12.08.2015,Elderly Frail Homecare,Regular Respite Care,366.72,CAREWATCH (SOUTHAMPTON NEW FOREST & IOW)
Revenue,Adult Services,5105645767,12.08.2015,Elderly Frail Homecare,Regular Respite Care,122.24,CAREWATCH (SOUTHAMPTON NEW FOREST & IOW)
Revenue,Adult Services,5105645773,12.08.2015,Elderly Frail Homecare,Regular Respite Care,122.24,CAREWATCH (SOUTHAMPTON NEW FOREST & IOW)
Revenue,Adult Services,5105645727,12.08.2015,Elderly Frail Homecare,Regular Respite Care,313.24,CAREWATCH (SOUTHAMPTON NEW FOREST & IOW)
Revenue,Adult Services,5105645725,12.08.2015,Elderly Frail Homecare,Regular Respite Care,122.24,CAREWATCH (SOUTHAMPTON NEW FOREST & IOW)
Revenue,Adult Services,5105645710,12.08.2015,Elderly Frail Homecare,Regular Respite Care,122.24,CAREWATCH (SOUTHAMPTON NEW FOREST & IOW)
Revenue,Adult Services,5105645716,12.08.2015,Elderly Frail Homecare,Regular Respite Care,366.72,CAREWATCH (SOUTHAMPTON NEW FOREST & IOW)
Revenue,Adult Services,5105645712,12.08.2015,Mental Health Homecare,Charges from Independent Providers,122.24,CAREWATCH (SOUTHAMPTON NEW FOREST & IOW)
Revenue,Adult Services,5105645711,12.08.2015,Mental Health Homecare,Charges from Independent Providers,118.42,CAREWATCH (SOUTHAMPTON NEW FOREST & IOW)
Revenue,Adult Services,5105645697,12.08.2015,Mental Health Homecare,Charges from Independent Providers,91.68,CAREWATCH (SOUTHAMPTON NEW FOREST & IOW)
Revenue,Adult Services,5105645780,12.08.2015,Elderly Frail Homecare,Charges from Independent Providers,641.76,CAREWATCH (SOUTHAMPTON NEW FOREST & IOW)
Revenue,Adult Services,5105645782,12.08.2015,Elderly Frail Homecare,Charges from Independent Providers,488.96,CAREWATCH (SOUTHAMPTON NEW FOREST & IOW)
Revenue,Adult Services,5105645757,12.08.2015,Elderly Frail Homecare,Charges from Independent Providers,61.12,CAREWATCH (SOUTHAMPTON NEW FOREST & IOW)
Revenue,Adult Services,5105645762,12.08.2015,Elderly Frail Homecare,Charges from Independent Providers,855.68,CAREWATCH (SOUTHAMPTON NEW FOREST & IOW)
Revenue,Adult Services,5105645792,12.08.2015,Elderly Frail Homecare,Charges from Independent Providers,213.92,CAREWATCH (SOUTHAMPTON NEW FOREST & IOW)
Revenue,Adult Services,5105645776,12.08.2015,Elderly Frail Homecare,Charges from Independent Providers,641.76,CAREWATCH (SOUTHAMPTON NEW FOREST & IOW)
Revenue,Adult Services,5105645744,12.08.2015,Elderly Frail Homecare,Charges from Independent Providers,"1,252.96",CAREWATCH (SOUTHAMPTON NEW FOREST & IOW)
Revenue,Adult Services,5105645746,12.08.2015,Elderly Frail Homecare,Charges from Independent Providers,213.92,CAREWATCH (SOUTHAMPTON NEW FOREST & IOW)
Revenue,Adult Services,5105645752,12.08.2015,Elderly Frail Homecare,Charges from Independent Providers,"1,176.56",CAREWATCH (SOUTHAMPTON NEW FOREST & IOW)
Revenue,Adult Services,5105645769,12.08.2015,Elderly Frail Homecare,Charges from Independent Providers,106.96,CAREWATCH (SOUTHAMPTON NEW FOREST & IOW)
Revenue,Adult Services,5105645775,12.08.2015,Elderly Frail Homecare,Charges from Independent Providers,748.72,CAREWATCH (SOUTHAMPTON NEW FOREST & IOW)
Revenue,Adult Services,5105645774,12.08.2015,Elderly Frail Homecare,Charges from Independent Providers,783.10,CAREWATCH (SOUTHAMPTON NEW FOREST & IOW)
Revenue,Adult Services,5105645797,12.08.2015,Elderly Frail Homecare,Charges from Independent Providers,30.56,CAREWATCH (SOUTHAMPTON NEW FOREST & IOW)
Revenue,Adult Services,5105645797,12.08.2015,Elderly Frail Homecare,Charges from Independent Providers,534.80,CAREWATCH (SOUTHAMPTON NEW FOREST & IOW)
Revenue,Adult Services,5105645794,12.08.2015,Elderly Frail Homecare,Charges from Independent Providers,"2,353.12",CAREWATCH (SOUTHAMPTON NEW FOREST & IOW)
Revenue,Adult Services,5105645795,12.08.2015,Elderly Frail Homecare,Charges from Independent Providers,320.88,CAREWATCH (SOUTHAMPTON NEW FOREST & IOW)
Revenue,Adult Services,5105645786,12.08.2015,Elderly Frail Homecare,Charges from Independent Providers,641.76,CAREWATCH (SOUTHAMPTON NEW FOREST & IOW)
Revenue,Adult Services,5105645740,12.08.2015,Elderly Frail Homecare,Charges from Independent Providers,553.90,CAREWATCH (SOUTHAMPTON NEW FOREST & IOW)
Revenue,Adult Services,5105645729,12.08.2015,Elderly Frail Homecare,Charges from Independent Providers,183.36,CAREWATCH (SOUTHAMPTON NEW FOREST & IOW)
Revenue,Adult Services,5105645734,12.08.2015,Elderly Frail Homecare,Charges from Independent Providers,320.88,CAREWATCH (SOUTHAMPTON NEW FOREST & IOW)
Revenue,Adult Services,5105645698,12.08.2015,Elderly Frail Homecare,Charges from Independent Providers,282.68,CAREWATCH (SOUTHAMPTON NEW FOREST & IOW)
Revenue,Adult Services,5105645724,12.08.2015,Elderly Frail Homecare,Charges from Independent Providers,718.16,CAREWATCH (SOUTHAMPTON NEW FOREST & IOW)
Revenue,Adult Services,5105645720,12.08.2015,Elderly Frail Homecare,Regular Respite Care,366.72,CAREWATCH (SOUTHAMPTON NEW FOREST & IOW)
Revenue,Adult Services,5105645719,12.08.2015,Elderly Frail Homecare,Regular Respite Care,122.24,CAREWATCH (SOUTHAMPTON NEW FOREST & IOW)
Revenue,Adult Services,5105645730,12.08.2015,Elderly Frail Homecare,Regular Respite Care,122.24,CAREWATCH (SOUTHAMPTON NEW FOREST & IOW)
Revenue,Adult Services,5105645785,12.08.2015,Elderly Frail Homecare,Regular Respite Care,122.24,CAREWATCH (SOUTHAMPTON NEW FOREST & IOW)
Revenue,Adult Services,5105645759,12.08.2015,Elderly Frail Homecare,Regular Respite Care,122.24,CAREWATCH (SOUTHAMPTON NEW FOREST & IOW)
Revenue,Adult Services,5105645781,12.08.2015,Elderly Frail Homecare,Regular Respite Care,122.24,CAREWATCH (SOUTHAMPTON NEW FOREST & IOW)
Revenue,Adult Services,5105645802,12.08.2015,Elderly Frail Homecare,Regular Respite Care,61.12,CAREWATCH (SOUTHAMPTON NEW FOREST & IOW)
Revenue,Adult Services,5105645799,12.08.2015,Elderly Frail Homecare,Regular Respite Care,91.68,CAREWATCH (SOUTHAMPTON NEW FOREST & IOW)
Revenue,Adult Services,5105645784,12.08.2015,Elderly Frail Homecare,Regular Respite Care,122.24,CAREWATCH (SOUTHAMPTON NEW FOREST & IOW)
Revenue,Adult Services,5105645790,12.08.2015,Elderly Frail Homecare,Regular Respite Care,122.24,CAREWATCH (SOUTHAMPTON NEW FOREST & IOW)
Revenue,Adult Services,5105645803,12.08.2015,Elderly Frail Homecare,Charges from Independent Providers,22.92,CAREWATCH (SOUTHAMPTON NEW FOREST & IOW)
Revenue,Adult Services,5105645758,12.08.2015,Elderly Frail Homecare,Charges from Independent Providers,45.84,CAREWATCH (SOUTHAMPTON NEW FOREST & IOW)
Revenue,Adult Services,5105645761,12.08.2015,Elderly Frail Homecare,Charges from Independent Providers,427.84,CAREWATCH (SOUTHAMPTON NEW FOREST & IOW)
Revenue,Adult Services,5105645708,12.08.2015,Elderly Frail Homecare,Charges from Independent Providers,152.80,CAREWATCH (SOUTHAMPTON NEW FOREST & IOW)
Revenue,Adult Services,5105645707,12.08.2015,Elderly Frail Homecare,Charges from Independent Providers,611.20,CAREWATCH (SOUTHAMPTON NEW FOREST & IOW)
Revenue,Adult Services,5105645706,12.08.2015,Elderly Frail Homecare,Charges from Independent Providers,718.16,CAREWATCH (SOUTHAMPTON NEW FOREST & IOW)
Revenue,Adult Services,5105645705,12.08.2015,Elderly Frail Homecare,Charges from Independent Providers,210.10,CAREWATCH (SOUTHAMPTON NEW FOREST & IOW)
Revenue,Adult Services,5105645755,12.08.2015,Elderly Frail Homecare,Charges from Independent Providers,641.76,CAREWATCH (SOUTHAMPTON NEW FOREST & IOW)
Revenue,Adult Services,5105645756,12.08.2015,Elderly Frail Homecare,Charges from Independent Providers,"1,069.60",CAREWATCH (SOUTHAMPTON NEW FOREST & IOW)
Revenue,Adult Services,5105645766,12.08.2015,Elderly Frail Homecare,Charges from Independent Providers,"1,497.44",CAREWATCH (SOUTHAMPTON NEW FOREST & IOW)
Revenue,Adult Services,5105645743,12.08.2015,Elderly Frail Homecare,Charges from Independent Providers,160.44,CAREWATCH (SOUTHAMPTON NEW FOREST & IOW)
Revenue,Adult Services,5105645770,12.08.2015,Elderly Frail Homecare,Charges from Independent Providers,702.88,CAREWATCH (SOUTHAMPTON NEW FOREST & IOW)
Revenue,Adult Services,5105645738,12.08.2015,Elderly Frail Homecare,Charges from Independent Providers,481.32,CAREWATCH (SOUTHAMPTON NEW FOREST & IOW)
Revenue,Adult Services,5105645777,12.08.2015,Elderly Frail Homecare,Charges from Independent Providers,611.20,CAREWATCH (SOUTHAMPTON NEW FOREST & IOW)
Revenue,Adult Services,5105645787,12.08.2015,Elderly Frail Homecare,Charges from Independent Providers,"1,772.48",CAREWATCH (SOUTHAMPTON NEW FOREST & IOW)
Revenue,Adult Services,5105645800,12.08.2015,Elderly Frail Homecare,Charges from Independent Providers,206.28,CAREWATCH (SOUTHAMPTON NEW FOREST & IOW)
Revenue,Adult Services,5105645793,12.08.2015,Elderly Frail Homecare,Charges from Independent Providers,122.24,CAREWATCH (SOUTHAMPTON NEW FOREST & IOW)
Revenue,Adult Services,5105645804,12.08.2015,Elderly Frail Homecare,Charges from Independent Providers,320.88,CAREWATCH (SOUTHAMPTON NEW FOREST & IOW)
Revenue,Adult Services,5105645791,12.08.2015,Elderly Frail Homecare,Charges from Independent Providers,213.92,CAREWATCH (SOUTHAMPTON NEW FOREST & IOW)
Revenue,Adult Services,5105645703,12.08.2015,Elderly Frail Homecare,Charges from Independent Providers,99.32,CAREWATCH (SOUTHAMPTON NEW FOREST & IOW)
Revenue,Adult Services,5105645736,12.08.2015,Elderly Frail Homecare,Charges from Independent Providers,213.92,CAREWATCH (SOUTHAMPTON NEW FOREST & IOW)
Revenue,Adult Services,5105645750,12.08.2015,Elderly Frail Homecare,Charges from Independent Providers,"2,207.96",CAREWATCH (SOUTHAMPTON NEW FOREST & IOW)
Revenue,Adult Services,5105645718,12.08.2015,Elderly Frail Homecare,Charges from Independent Providers,641.76,CAREWATCH (SOUTHAMPTON NEW FOREST & IOW)
Revenue,Adult Services,5105645717,12.08.2015,Elderly Frail Homecare,Charges from Independent Providers,320.88,CAREWATCH (SOUTHAMPTON NEW FOREST & IOW)
Revenue,Adult Services,5105645763,12.08.2015,Elderly Frail Homecare,Charges from Independent Providers,"1,069.60",CAREWATCH (SOUTHAMPTON NEW FOREST & IOW)
Revenue,Adult Services,5105645726,12.08.2015,Elderly Frail Homecare,Charges from Independent Providers,427.84,CAREWATCH (SOUTHAMPTON NEW FOREST & IOW)
Revenue,Adult Services,5105645702,12.08.2015,Elderly Frail Homecare,Charges from Independent Providers,427.84,CAREWATCH (SOUTHAMPTON NEW FOREST & IOW)
Revenue,Adult Services,5105645701,12.08.2015,Elderly Frail Homecare,Charges from Independent Providers,"1,314.08",CAREWATCH (SOUTHAMPTON NEW FOREST & IOW)
Revenue,Adult Services,5105645700,12.08.2015,Elderly Frail Homecare,Charges from Independent Providers,657.04,CAREWATCH (SOUTHAMPTON NEW FOREST & IOW)
Revenue,Adult Services,5105645788,12.08.2015,Elderly Frail Homecare,Charges from Independent Providers,53.48,CAREWATCH (SOUTHAMPTON NEW FOREST & IOW)
Revenue,Adult Services,5105645789,12.08.2015,Elderly Frail Homecare,Charges from Independent Providers,206.28,CAREWATCH (SOUTHAMPTON NEW FOREST & IOW)
Revenue,Adult Services,5105645783,12.08.2015,Elderly Frail Homecare,Charges from Independent Providers,427.84,CAREWATCH (SOUTHAMPTON NEW FOREST & IOW)
Revenue,Adult Services,5105645696,12.08.2015,Elderly Frail Homecare,Charges from Independent Providers,213.92,CAREWATCH (SOUTHAMPTON NEW FOREST & IOW)
Revenue,Adult Services,5105645709,12.08.2015,Elderly Frail Homecare,Charges from Independent Providers,733.44,CAREWATCH (SOUTHAMPTON NEW FOREST & IOW)
Revenue,Adult Services,5105645747,12.08.2015,Elderly Frail Homecare,Charges from Independent Providers,488.96,CAREWATCH (SOUTHAMPTON NEW FOREST & IOW)
Revenue,Adult Services,5105645748,12.08.2015,Elderly Frail Homecare,Charges from Independent Providers,320.88,CAREWATCH (SOUTHAMPTON NEW FOREST & IOW)
Revenue,Adult Services,5105645749,12.08.2015,Elderly Frail Homecare,Charges from Independent Providers,"1,069.60",CAREWATCH (SOUTHAMPTON NEW FOREST & IOW)
Revenue,Adult Services,5105645751,12.08.2015,Elderly Frail Homecare,Charges from Independent Providers,641.76,CAREWATCH (SOUTHAMPTON NEW FOREST & IOW)
Revenue,Adult Services,5105645753,12.08.2015,Elderly Frail Homecare,Charges from Independent Providers,534.80,CAREWATCH (SOUTHAMPTON NEW FOREST & IOW)
Revenue,Adult Services,5105645764,12.08.2015,Elderly Frail Homecare,Charges from Independent Providers,91.68,CAREWATCH (SOUTHAMPTON NEW FOREST & IOW)
Revenue,Childrens Services,5105644091,07.08.2015,Disabled Childrens Team,Charges from Independent Providers,133.56,CAREWATCH (SOUTHAMPTON NEW FOREST & IOW)
Revenue,Childrens Services,5105646237,14.08.2015,Disabled Childrens Team,Charges from Independent Providers,237.44,CAREWATCH (SOUTHAMPTON NEW FOREST & IOW)
Revenue,Childrens Services,5105646344,19.08.2015,Disabled Childrens Team,Charges from Independent Providers,118.72,CAREWATCH (SOUTHAMPTON NEW FOREST & IOW)
Revenue,Childrens Services,5105646344,19.08.2015,Disabled Childrens Team,Charges from Independent Providers,59.36,CAREWATCH (SOUTHAMPTON NEW FOREST & IOW)
Revenue,Childrens Services,5105646238,14.08.2015,Disabled Childrens Team,Charges from Independent Providers,118.72,CAREWATCH (SOUTHAMPTON NEW FOREST & IOW)
Revenue,Childrens Services,5105646657,19.08.2015,Disabled Childrens Team,Charges from Independent Providers,118.72,CAREWATCH (SOUTHAMPTON NEW FOREST & IOW)
Revenue,Childrens Services,5105646653,19.08.2015,Disabled Childrens Team,Charges from Independent Providers,118.72,CAREWATCH (SOUTHAMPTON NEW FOREST & IOW)
Revenue,Childrens Services,5105646234,14.08.2015,Disabled Childrens Team,Charges from Independent Providers,118.72,CAREWATCH (SOUTHAMPTON NEW FOREST & IOW)
Revenue,Adult Services,5105645796,12.08.2015,Learning Disability Homecare,Charges from Independent Providers,61.12,CAREWATCH (SOUTHAMPTON NEW FOREST & IOW)
Revenue,Childrens Services,5105645501,12.08.2015,Pre 16 Independ. & Non-Maint. Special Schls & Independ. Specialist Provision,Transport of Clients,531.26,CAREWATCH (SOUTHAMPTON NEW FOREST & IOW)
Revenue,Adult Services,5105645713,12.08.2015,Elderly Mentally Ill Homecare,Charges from Independent Providers,"1,069.60",CAREWATCH (SOUTHAMPTON NEW FOREST & IOW)
Revenue,Adult Services,5105645765,12.08.2015,Elderly Mentally Ill Homecare,Charges from Independent Providers,106.96,CAREWATCH (SOUTHAMPTON NEW FOREST & IOW)
Revenue,Adult Services,5105645779,12.08.2015,Elderly Mentally Ill Homecare,Charges from Independent Providers,412.56,CAREWATCH (SOUTHAMPTON NEW FOREST & IOW)
Revenue,Adult Services,5105645732,12.08.2015,Elderly Mentally Ill Homecare,Charges from Independent Providers,618.84,CAREWATCH (SOUTHAMPTON NEW FOREST & IOW)
Revenue,Adult Services,5105645741,12.08.2015,Elderly Mentally Ill Homecare,Charges from Independent Providers,412.56,CAREWATCH (SOUTHAMPTON NEW FOREST & IOW)
Revenue,Adult Services,5105645722,12.08.2015,Elderly Mentally Ill Homecare,Charges from Independent Providers,855.68,CAREWATCH (SOUTHAMPTON NEW FOREST & IOW)
Revenue,Adult Services,5105645801,12.08.2015,Elderly Mentally Ill Homecare,Charges from Independent Providers,152.80,CAREWATCH (SOUTHAMPTON NEW FOREST & IOW)
Revenue,Adult Services,5105645768,12.08.2015,Elderly Mentally Ill Homecare,Charges from Independent Providers,213.92,CAREWATCH (SOUTHAMPTON NEW FOREST & IOW)
Revenue,Adult Services,5105645778,12.08.2015,Elderly Mentally Ill Homecare,Regular Respite Care,122.24,CAREWATCH (SOUTHAMPTON NEW FOREST & IOW)
Revenue,Adult Services,5105645731,12.08.2015,Elderly Mentally Ill Homecare,Regular Respite Care,122.24,CAREWATCH (SOUTHAMPTON NEW FOREST & IOW)
Revenue,Adult Services,5105647300,26.08.2015,Elderly Mentally Ill Homecare,Charges from Independent Providers,626.48,CAREWATCH (SOUTHAMPTON NEW FOREST & IOW)
Revenue,Adult Services,5105647732,28.08.2015,Elderly Mentally Ill Homecare,Charges from Independent Providers,"1,749.56",CAREWATCH (SOUTHAMPTON NEW FOREST & IOW)
Revenue,Adult Services,5105645771,12.08.2015,Elderly Mentally Ill Homecare,Regular Respite Care,122.24,CAREWATCH (SOUTHAMPTON NEW FOREST & IOW)
Revenue,Childrens Services,5105644092,07.08.2015,Agency Domiciliary Care,Charges from Independent Providers,267.12,CAREWATCH (SOUTHAMPTON NEW FOREST & IOW)
Revenue,Childrens Services,5105647023,26.08.2015,Agency Domiciliary Care,Charges from Independent Providers,-356.16,CAREWATCH (SOUTHAMPTON NEW FOREST & IOW)
Revenue,Childrens Services,5105646235,14.08.2015,Agency Domiciliary Care,Charges from Independent Providers,267.12,CAREWATCH (SOUTHAMPTON NEW FOREST & IOW)
Revenue,Childrens Services,5105646654,19.08.2015,Agency Domiciliary Care,Charges from Independent Providers,356.16,CAREWATCH (SOUTHAMPTON NEW FOREST & IOW)
Revenue,Childrens Services,5105647023,26.08.2015,Agency Domiciliary Care,Charges from Independent Providers,-267.12,CAREWATCH (SOUTHAMPTON NEW FOREST & IOW)
Revenue,Childrens Services,5105646655,19.08.2015,Agency Domiciliary Care,Charges from Independent Providers,356.16,CAREWATCH (SOUTHAMPTON NEW FOREST & IOW)
Revenue,Childrens Services,5105646236,14.08.2015,Agency Domiciliary Care,Charges from Independent Providers,267.12,CAREWATCH (SOUTHAMPTON NEW FOREST & IOW)
Revenue,Childrens Services,5105646652,19.08.2015,Agency Domiciliary Care,Charges from Independent Providers,652.96,CAREWATCH (SOUTHAMPTON NEW FOREST & IOW)
Revenue,Childrens Services,5105646233,14.08.2015,Agency Domiciliary Care,Charges from Independent Providers,296.80,CAREWATCH (SOUTHAMPTON NEW FOREST & IOW)
Revenue,Childrens Services,5105646343,19.08.2015,Agency Domiciliary Care,Charges from Independent Providers,415.52,CAREWATCH (SOUTHAMPTON NEW FOREST & IOW)
Revenue,Childrens Services,5105646232,14.08.2015,Agency Domiciliary Care,Charges from Independent Providers,163.24,CAREWATCH (SOUTHAMPTON NEW FOREST & IOW)
Revenue,Childrens Services,5105646656,19.08.2015,Agency Domiciliary Care,Charges from Independent Providers,237.44,CAREWATCH (SOUTHAMPTON NEW FOREST & IOW)
Revenue,Childrens Services,5105647039,26.08.2015,Agency Domiciliary Care,Charges from Independent Providers,356.16,CAREWATCH (SOUTHAMPTON NEW FOREST & IOW)
Revenue,Childrens Services,5105647039,26.08.2015,Agency Domiciliary Care,Charges from Independent Providers,267.12,CAREWATCH (SOUTHAMPTON NEW FOREST & IOW)
Revenue,Resources,5105647158,26.08.2015,Staff Benefits,Payment to Private Contractors,11.00,CARISBROOKE CLEVER CLOGGS DAY CARE
Revenue,Adult Services,5105644476,12.08.2015,My Life A Full Life Vanguard Set-Up,Professional Services,550.00,CARISBROOKE HEALTH CENTRE
Revenue,Adult Services,5105645318,12.08.2015,Elderly Frail Residential Care,Charges from Independent Providers,"1,554.28",CARNALEA LIMITED
Revenue,Resources,5105647785,28.08.2015,Local Welfare Assistance Scheme,Local Welfare Provision payments,216.79,CARPETS ETC
Revenue,Childrens Services,5105645444,12.08.2015,Children In Need 3,Professional Services,419.90,CARTER BROWN THE EXPERT SERVICE
Revenue,Childrens Services,5105643940,07.08.2015,Children In Need 3,Professional Services,992.50,CARTER BROWN THE EXPERT SERVICE
Revenue,Childrens Services,5105643915,07.08.2015,Children In Need 3,Professional Services,113.40,CARTER BROWN THE EXPERT SERVICE
Revenue,Place,5105646314,14.08.2015,Dinosaur Isle Museum (Sandown Geology),Stock Purchases,15.12,CASA GRANDE LIMITED
Revenue,Place,5105646314,14.08.2015,Dinosaur Isle Museum (Sandown Geology),Stock Purchases,72.60,CASA GRANDE LIMITED
Revenue,Place,5105646314,14.08.2015,Dinosaur Isle Museum (Sandown Geology),Stock Purchases,40.92,CASA GRANDE LIMITED
Revenue,Place,5105646314,14.08.2015,Dinosaur Isle Museum (Sandown Geology),Stock Purchases,38.25,CASA GRANDE LIMITED
Revenue,Place,5105646314,14.08.2015,Dinosaur Isle Museum (Sandown Geology),Stock Purchases,64.50,CASA GRANDE LIMITED
Revenue,Place,5105646314,14.08.2015,Dinosaur Isle Museum (Sandown Geology),Stock Purchases,30.24,CASA GRANDE LIMITED
Revenue,Childrens Services,5105645422,12.08.2015,Purchased Residential,Charges from Independent Providers,"18,321.00",CASTLECARE
Capital,Childrens Services,5105647475,26.08.2015,Children Services Early Years,"Plant, Equipment & Furniture - Capital","1,799.00",CATER WIGHT
Capital,Childrens Services,5105643425,05.08.2015,Children Services Early Years,Payment to Contractors - Capital,"12,750.00",CATER WIGHT
Revenue,Adult Services,5105647402,26.08.2015,Gouldings Resource Centre,Prop Svs only - Day to day mtce,265.00,CATER WIGHT
Revenue,Childrens Services,5105646371,21.08.2015,Beaulieu House,Maintenance of Operational Equipment,371.00,CATER WIGHT
Revenue,Adult Services,5105645576,19.08.2015,DoLS/MCA,Professional Services,480.00,CCP
Revenue,Place,5105647802,28.08.2015,IOW Festival of Walking,Advertising & Publicity,330.00,CELADOR RADIO LTD
Revenue,Place,5105647803,28.08.2015,IOW Festival of Walking,Advertising & Publicity,165.00,CELADOR RADIO LTD
Revenue,Place,5105647805,28.08.2015,IOW Festival of Walking,Advertising & Publicity,165.00,CELADOR RADIO LTD
Revenue,Place,5105647806,28.08.2015,IOW Festival of Walking,Advertising & Publicity,440.00,CELADOR RADIO LTD
Revenue,Place,5105647808,28.08.2015,IOW Festival of Walking,Advertising & Publicity,330.00,CELADOR RADIO LTD
Revenue,Place,5105647809,28.08.2015,IOW Festival of Walking,Advertising & Publicity,330.00,CELADOR RADIO LTD
Revenue,Place,5105647810,28.08.2015,IOW Festival of Walking,Advertising & Publicity,275.00,CELADOR RADIO LTD
Revenue,Place,5105647796,28.08.2015,IOW Festival of Walking,Advertising & Publicity,825.00,CELADOR RADIO LTD
Revenue,Place,5105647797,28.08.2015,IOW Festival of Walking,Advertising & Publicity,"1,558.66",CELADOR RADIO LTD
Revenue,Place,5105647798,28.08.2015,IOW Festival of Walking,Advertising & Publicity,880.00,CELADOR RADIO LTD
Revenue,Place,5105647812,28.08.2015,IOW Festival of Walking,Advertising & Publicity,"-3,467.98",CELADOR RADIO LTD
Revenue,Place,5105647800,28.08.2015,IOW Festival of Walking,Advertising & Publicity,440.00,CELADOR RADIO LTD
Revenue,Resources,5105646757,21.08.2015,National Non Domestic Rates,Consultants Fees,880.00,CFH DOCMAIL LTD
Revenue,Resources,5105643606,05.08.2015,Council Tax,Postage,150.00,CFH DOCMAIL LTD
Revenue,Adult Services,5105646999,21.08.2015,Community Outreach,Vehicle Maintenance Costs,138.00,CHAMELEON CODEWING LTD
Revenue,Adult Services,5105646999,21.08.2015,Community Outreach,Vehicle Maintenance Costs,138.00,CHAMELEON CODEWING LTD
Revenue,Adult Services,5105646999,21.08.2015,Community Outreach,Vehicle Maintenance Costs,138.00,CHAMELEON CODEWING LTD
Revenue,Adult Services,5105646999,21.08.2015,Community Outreach,Vehicle Maintenance Costs,138.00,CHAMELEON CODEWING LTD
Revenue,Adult Services,5105646999,21.08.2015,Community Outreach,Vehicle Maintenance Costs,138.00,CHAMELEON CODEWING LTD
Revenue,Adult Services,5105646999,21.08.2015,Community Outreach,Vehicle Maintenance Costs,138.00,CHAMELEON CODEWING LTD
Revenue,Adult Services,5105646999,21.08.2015,Community Outreach,Vehicle Maintenance Costs,138.00,CHAMELEON CODEWING LTD
Revenue,Adult Services,5105646999,21.08.2015,Community Outreach,Vehicle Maintenance Costs,138.00,CHAMELEON CODEWING LTD
Revenue,Adult Services,5105646999,21.08.2015,Community Outreach,Vehicle Maintenance Costs,138.00,CHAMELEON CODEWING LTD
Revenue,Adult Services,5105646999,21.08.2015,Community Outreach,Vehicle Maintenance Costs,138.00,CHAMELEON CODEWING LTD
Revenue,Adult Services,5105646999,21.08.2015,Community Outreach,Vehicle Maintenance Costs,138.00,CHAMELEON CODEWING LTD
Revenue,Adult Services,5105646999,21.08.2015,Community Outreach,Vehicle Maintenance Costs,138.00,CHAMELEON CODEWING LTD
Revenue,Adult Services,5105646999,21.08.2015,Community Outreach,Vehicle Maintenance Costs,138.00,CHAMELEON CODEWING LTD
Revenue,Adult Services,5105646999,21.08.2015,Community Outreach,Vehicle Maintenance Costs,138.00,CHAMELEON CODEWING LTD
Capital,Place,5105646581,19.08.2015,Parks and Gardens Capital,Payment to Contractors - Capital,730.00,CHANT LOCK & SECURITY SERVICE
Revenue,Place,5105646310,14.08.2015,Ferry Operation,Operational Equipment,26.50,CHANT LOCK & SECURITY SERVICE
Revenue,Childrens Services,5105643468,05.08.2015,Hunnyhill Primary School Disposal,Security of Buildings,134.16,CHANT LOCK & SECURITY SERVICE
Revenue,Place,5105646312,14.08.2015,Other Grounds Maintenance,General Materials,76.86,CHANT LOCK & SECURITY SERVICE
Revenue,Place,5105645475,12.08.2015,"Jubilee Stores, Newport",Prop Svs only - Day to day mtce,50.00,CHANT LOCK & SECURITY SERVICE
Revenue,Place,5105646478,19.08.2015,Crematorium,Minor Works,63.20,CHANT LOCK & SECURITY SERVICE
Revenue,Place,5105646640,19.08.2015,Coroner,Security of Buildings,466.00,CHANT LOCK & SECURITY SERVICE
Revenue,Adult Services,5105645434,12.08.2015,Gouldings Resource Centre,Catering Purchases,309.60,CHAPEL NURSERIES
Revenue,Adult Services,5105646339,19.08.2015,Plean Dene,Catering Purchases,44.70,CHAPEL NURSERIES
Revenue,Adult Services,5105646336,19.08.2015,Plean Dene,Catering Purchases,45.50,CHAPEL NURSERIES
Revenue,Adult Services,5105646419,19.08.2015,Plean Dene,Catering Purchases,38.40,CHAPEL NURSERIES
Revenue,Adult Services,5105646992,21.08.2015,Plean Dene,Catering Purchases,42.20,CHAPEL NURSERIES
Revenue,Adult Services,5105643706,05.08.2015,Plean Dene,Catering Purchases,49.30,CHAPEL NURSERIES
Revenue,Adult Services,5105646967,21.08.2015,Saxonbury,Catering Purchases,18.00,CHAPEL NURSERIES
Revenue,Adult Services,5105646391,19.08.2015,Saxonbury,Catering Purchases,32.70,CHAPEL NURSERIES
Revenue,Adult Services,5105646413,19.08.2015,Saxonbury,Catering Purchases,35.40,CHAPEL NURSERIES
Revenue,Adult Services,5105646595,19.08.2015,Saxonbury,Catering Purchases,22.70,CHAPEL NURSERIES
Revenue,Childrens Services,5105646175,14.08.2015,Island Learning Centre,Schools Catering Contract,229.60,CHARTWELLS
Revenue,Childrens Services,5105646175,14.08.2015,Island Learning Centre,Schools Catering Contract,194.75,CHARTWELLS
Revenue,Childrens Services,5105646175,14.08.2015,Island Learning Centre,Schools Catering Contract,2.36,CHARTWELLS
Revenue,Resources,5105647169,26.08.2015,Staff Benefits,Payment to Private Contractors,125.00,CHATTERBOX NURSERY LTD
Revenue,Resources,5105647169,26.08.2015,Staff Benefits,Payment to Private Contractors,106.00,CHATTERBOX NURSERY LTD
Revenue,Resources,5105647169,26.08.2015,Staff Benefits,Payment to Private Contractors,236.00,CHATTERBOX NURSERY LTD
Revenue,Resources,5105647169,26.08.2015,Staff Benefits,Payment to Private Contractors,100.00,CHATTERBOX NURSERY LTD
Revenue,Resources,5105647169,26.08.2015,Staff Benefits,Payment to Private Contractors,116.67,CHATTERBOX NURSERY LTD
Revenue,Resources,5105647169,26.08.2015,Staff Benefits,Payment to Private Contractors,243.00,CHATTERBOX NURSERY LTD
Revenue,Resources,5105647169,26.08.2015,Staff Benefits,Payment to Private Contractors,75.80,CHATTERBOX NURSERY LTD
Revenue,Resources,5105647181,26.08.2015,Staff Benefits,Payment to Private Contractors,160.00,CHEEKY CHIMPS CHILDCARE
Revenue,Resources,5105647181,26.08.2015,Staff Benefits,Payment to Private Contractors,200.00,CHEEKY CHIMPS CHILDCARE
Revenue,Resources,5105647181,26.08.2015,Staff Benefits,Payment to Private Contractors,200.00,CHEEKY CHIMPS CHILDCARE
Revenue,Resources,5105647181,26.08.2015,Staff Benefits,Payment to Private Contractors,243.00,CHEEKY CHIMPS CHILDCARE
Revenue,Resources,5105647181,26.08.2015,Staff Benefits,Payment to Private Contractors,118.63,CHEEKY CHIMPS CHILDCARE
Revenue,Place,5105643561,05.08.2015,Ventnor Haven - General,Payment to Private Contractors,"6,048.33",CHEETAH MARINE LLP
Revenue,Place,5105643580,05.08.2015,Ventnor Haven - General,Payment to Private Contractors,"6,048.33",CHEETAH MARINE LLP
Revenue,Adult Services,5105644710,12.08.2015,Elderly Mentally Ill Residential Care,Charges from Independent Providers,"1,781.36",CHERRY TREES I.W. LTD
Revenue,Adult Services,5105644710,12.08.2015,Elderly Mentally Ill Residential Care,Charges from Independent Providers,"1,781.36",CHERRY TREES I.W. LTD
Revenue,Adult Services,5105644710,12.08.2015,Elderly Mentally Ill Residential Care,Charges from Independent Providers,"1,781.36",CHERRY TREES I.W. LTD
Revenue,Adult Services,5105644710,12.08.2015,Elderly Mentally Ill Residential Care,Charges from Independent Providers,"1,781.36",CHERRY TREES I.W. LTD
Revenue,Adult Services,5105644710,12.08.2015,Elderly Frail Residential Care,Charges from Independent Providers,"2,093.84",CHERRY TREES I.W. LTD
Revenue,Adult Services,5105644710,12.08.2015,Elderly Frail Residential Care,Charges from Independent Providers,"1,700.44",CHERRY TREES I.W. LTD
Revenue,Adult Services,5105644710,12.08.2015,Elderly Frail Residential Care,Charges from Independent Providers,"1,700.44",CHERRY TREES I.W. LTD
Revenue,Adult Services,5105644710,12.08.2015,Elderly Frail Residential Care,Charges from Independent Providers,"2,093.84",CHERRY TREES I.W. LTD
Revenue,Place,5105647103,21.08.2015,Rights of Way Operations,General Materials,465.00,CHESSELL WOODYARD LTD
Revenue,Place,5105643905,07.08.2015,Rights of Way Operations,General Materials,97.50,CHESSELL WOODYARD LTD
Capital,Place,5105643524,05.08.2015,Rights Of Way Capital Programme,Payment to Contractors - Capital,"1,036.50",CHESSELL WOODYARD LTD
Revenue,Resources,5105647160,26.08.2015,Staff Benefits,Payment to Private Contractors,50.00,CHILLERTON & ROOKLEY CP SCHOOL
Revenue,Resources,5105647160,26.08.2015,Staff Benefits,Payment to Private Contractors,110.00,CHILLERTON & ROOKLEY CP SCHOOL
Revenue,Resources,5105647160,26.08.2015,Staff Benefits,Payment to Private Contractors,5.00,CHILLERTON & ROOKLEY CP SCHOOL
Revenue,Resources,5105647160,26.08.2015,Staff Benefits,Payment to Private Contractors,120.25,CHILLERTON & ROOKLEY CP SCHOOL
Revenue,Place,5105646185,14.08.2015,Dinosaur Isle Museum (Sandown Geology),Stock Purchases,153.60,CHOC-AFFAIR
Revenue,Place,5105646185,14.08.2015,Dinosaur Isle Museum (Sandown Geology),Stock Purchases,153.60,CHOC-AFFAIR
Revenue,Place,5105646185,14.08.2015,Dinosaur Isle Museum (Sandown Geology),Stock Purchases,57.60,CHOC-AFFAIR
Revenue,Place,5105646185,14.08.2015,Dinosaur Isle Museum (Sandown Geology),Stock Purchases,57.60,CHOC-AFFAIR
Revenue,Adult Services,5105644696,12.08.2015,Mental Health Residential Care,Charges from Independent Providers,"2,898.00",CHOICE SUPPORT
Revenue,Adult Services,5105644696,12.08.2015,Mental Health Residential Care,Charges from Independent Providers,"2,898.00",CHOICE SUPPORT
Revenue,Corporate Items,5105646983,21.08.2015,Miscellaneous Non-rechargeable,Minor Works,750.00,REDACTED PERSONAL DATA
Revenue,Corporate Items,5105647002,21.08.2015,Miscellaneous Non-rechargeable,Minor Works,350.00,REDACTED PERSONAL DATA
Revenue,Childrens Services,5105647001,21.08.2015,Youth- Newport,Professional Services,420.00,REDACTED PERSONAL DATA
Revenue,Childrens Services,5105647003,21.08.2015,Youth- Newport,Professional Services,"1,500.00",REDACTED PERSONAL DATA
Revenue,Childrens Services,5105645897,12.08.2015,Youth- Newport,Professional Services,525.00,REDACTED PERSONAL DATA
Revenue,Childrens Services,5105643954,07.08.2015,Court Work & Consultancy Services,Legal Fees - Other Parties,782.14,CHURCHERS BOLITHO WAY
Revenue,Childrens Services,5105643954,07.08.2015,Court Work & Consultancy Services,Legal Fees - Other Parties,6.65,CHURCHERS BOLITHO WAY
Revenue,Childrens Services,5105643954,07.08.2015,Court Work & Consultancy Services,Legal Fees - Other Parties,215.00,CHURCHERS BOLITHO WAY
Revenue,Childrens Services,5105643330,05.08.2015,Leaving Care Team,Training,50.00,CISTERS
Revenue,Childrens Services,5105643926,07.08.2015,Adult Community Learning,Licences,15.00,CITY AND GUILDS
Revenue,Childrens Services,5105643935,07.08.2015,Adult Community Learning,Licences,15.00,CITY AND GUILDS
Revenue,Childrens Services,5105643909,07.08.2015,Adult Community Learning,Licences,15.00,CITY AND GUILDS
Revenue,Childrens Services,5105643943,07.08.2015,Adult Community Learning,Licences,15.00,CITY AND GUILDS
Revenue,Childrens Services,5105643908,12.08.2015,Adult Community Learning,Licences,7.50,CITY AND GUILDS
Revenue,Childrens Services,5105646682,19.08.2015,Adult Community Learning,Licences,7.50,CITY AND GUILDS
Revenue,Childrens Services,5105646702,19.08.2015,Adult Community Learning,Licences,7.50,CITY AND GUILDS
Revenue,Childrens Services,5105646685,19.08.2015,Adult Community Learning,Licences,7.50,CITY AND GUILDS
Revenue,Childrens Services,5105646705,19.08.2015,Adult Community Learning,Licences,7.50,CITY AND GUILDS
Revenue,Childrens Services,5105646703,19.08.2015,Adult Community Learning,Licences,7.50,CITY AND GUILDS
Revenue,Childrens Services,5105646701,19.08.2015,Adult Community Learning,Licences,7.50,CITY AND GUILDS
Revenue,Adult Services,5105646698,26.08.2015,Adelaide Resource Centre,Fixtures and Fittings,27.78,CITY ELECTRICAL FACTORS LTD
Revenue,Place,5105647225,26.08.2015,Public Libraries Central,Computer Maintenance,550.22,CIVICA UK LTD
Revenue,Resources,5105646293,14.08.2015,Litigation Costs,Legal Fees - Other Parties,400.00,CLARKE WILLMOTT LLP
Revenue,Resources,5105646293,14.08.2015,Litigation Costs,Legal Fees - Other Parties,12.00,CLARKE WILLMOTT LLP
Revenue,Resources,5105647779,28.08.2015,Litigation Costs,Legal Fees - Other Parties,400.00,CLARKE WILLMOTT LLP
Revenue,Resources,5105647779,28.08.2015,Litigation Costs,Legal Fees - Other Parties,6.00,CLARKE WILLMOTT LLP
Revenue,Resources,5105646293,14.08.2015,Telephones,Fixed Telephones,600.00,CLARKE WILLMOTT LLP
Revenue,Place,5105643503,05.08.2015,Crematorium,Maintenance of Operational Equipment,"2,300.00",CLEAR SKIES SOFTWARE
Revenue,Resources,5105647175,26.08.2015,Staff Benefits,Payment to Private Contractors,14.00,CLUB COOL C/O COWES PRIMARY SCHOOL
Revenue,Resources,5105647175,26.08.2015,Staff Benefits,Payment to Private Contractors,140.40,CLUB COOL C/O COWES PRIMARY SCHOOL
Revenue,Place,5105646631,19.08.2015,Dinosaur Isle Museum (Sandown Geology),Stock Purchases,334.34,COMMERCE ATTRACTIVE LTD
Revenue,Place,5105646631,19.08.2015,Dinosaur Isle Museum (Sandown Geology),Stock Purchases,57.00,COMMERCE ATTRACTIVE LTD
Revenue,Place,5105643956,07.08.2015,Fire Control,Fire Comms - Radio,"10,058.83",COMMUNITIES AND LOCAL GOVERNMENT
Revenue,Place,5105643911,07.08.2015,Fire Control,Fire Comms - Radio,"10,034.45",COMMUNITIES AND LOCAL GOVERNMENT
Revenue,Childrens Services,5105643430,05.08.2015,Youth Commissioning,Payments to Voluntary and Other Associations,"11,250.00",COMMUNITY ACTION ISLE OF WIGHT
Revenue,Childrens Services,5105646572,19.08.2015,Short Breaks,Charges from Independent Providers,948.00,COMMUNITY ACTION ISLE OF WIGHT
Revenue,Childrens Services,5105646638,19.08.2015,Short Breaks,Charges from Independent Providers,"1,185.00",COMMUNITY ACTION ISLE OF WIGHT
Revenue,Place,5105647722,28.08.2015,Supporting People Learning Disability,Payment to Private Contractors,"1,080.00",SOMERSET CARE LTD
Revenue,Place,5105647723,28.08.2015,Supporting People Learning Disability,Payment to Private Contractors,"2,160.00",SOMERSET CARE LTD
Revenue,Place,5105645622,26.08.2015,Medina Leisure Centre,Maintenance of Operational Equipment,256.40,COMPLETE POOL CONTROLS LTD
Revenue,Place,5105645608,26.08.2015,The Heights,Consumable Cleaning Materials,118.35,COMPLETE POOL CONTROLS LTD
Revenue,Place,5105645620,26.08.2015,The Heights,Consumable Cleaning Materials,820.45,COMPLETE POOL CONTROLS LTD
Revenue,Place,5105643902,07.08.2015,The Heights,Maintenance of Operational Equipment,26.76,COMPLETE POOL CONTROLS LTD
Revenue,Resources,5105643924,07.08.2015,ICT Contracts,Computer Maintenance,"6,736.25",COMPUTACENTER (UK) LTD
Revenue,Childrens Services,5105643730,14.08.2015,Special Discretionary Grants,Maintenance of Operational Equipment,109.78,CONNEVANS LTD
Revenue,Childrens Services,5105643512,19.08.2015,Special Discretionary Grants,Schools Learn Res - Specialised Edu Equip,7.95,CONNEVANS LTD
Revenue,Childrens Services,5105643512,19.08.2015,Special Discretionary Grants,Schools Learn Res - Specialised Edu Equip,7.04,CONNEVANS LTD
Revenue,Childrens Services,5105643512,19.08.2015,Special Discretionary Grants,Schools Learn Res - Specialised Edu Equip,138.30,CONNEVANS LTD
Revenue,Childrens Services,5105643512,19.08.2015,Special Discretionary Grants,Schools Learn Res - Specialised Edu Equip,46.44,CONNEVANS LTD
Revenue,Childrens Services,5105643512,19.08.2015,Special Discretionary Grants,Schools Learn Res - Specialised Edu Equip,45.36,CONNEVANS LTD
Revenue,Childrens Services,5105643512,19.08.2015,Special Discretionary Grants,Schools Learn Res - Specialised Edu Equip,29.16,CONNEVANS LTD
Revenue,Childrens Services,5105643512,19.08.2015,Special Discretionary Grants,Schools Learn Res - Specialised Edu Equip,63.50,CONNEVANS LTD
Revenue,Childrens Services,5105643512,19.08.2015,Special Discretionary Grants,Schools Learn Res - Specialised Edu Equip,24.50,CONNEVANS LTD
Revenue,Childrens Services,5105643512,19.08.2015,Special Discretionary Grants,Schools Learn Res - Specialised Edu Equip,900.00,CONNEVANS LTD
Revenue,Childrens Services,5105643512,19.08.2015,Special Discretionary Grants,Schools Learn Res - Specialised Edu Equip,"1,410.00",CONNEVANS LTD
Revenue,Childrens Services,5105643512,19.08.2015,Special Discretionary Grants,Schools Learn Res - Specialised Edu Equip,2.25,CONNEVANS LTD
Revenue,Childrens Services,5105643512,19.08.2015,Special Discretionary Grants,Schools Learn Res - Specialised Edu Equip,12.68,CONNEVANS LTD
Revenue,Childrens Services,5105643512,19.08.2015,Special Discretionary Grants,Schools Learn Res - Specialised Edu Equip,4.00,CONNEVANS LTD
Revenue,Childrens Services,5105643512,19.08.2015,Special Discretionary Grants,Schools Learn Res - Specialised Edu Equip,5.50,CONNEVANS LTD
Revenue,Childrens Services,5105643512,19.08.2015,Special Discretionary Grants,Schools Learn Res - Specialised Edu Equip,7.24,CONNEVANS LTD
Revenue,Childrens Services,5105643512,19.08.2015,Special Discretionary Grants,Schools Learn Res - Specialised Edu Equip,66.50,CONNEVANS LTD
Revenue,Childrens Services,5105643512,19.08.2015,Special Discretionary Grants,Schools Learn Res - Specialised Edu Equip,16.83,CONNEVANS LTD
Revenue,Childrens Services,5105643512,19.08.2015,Special Discretionary Grants,Schools Learn Res - Specialised Edu Equip,56.50,CONNEVANS LTD
Revenue,Childrens Services,5105643512,19.08.2015,Special Discretionary Grants,Schools Learn Res - Specialised Edu Equip,21.40,CONNEVANS LTD
Revenue,Childrens Services,5105643512,19.08.2015,Special Discretionary Grants,Schools Learn Res - Specialised Edu Equip,31.52,CONNEVANS LTD
Revenue,Childrens Services,5105643512,19.08.2015,Special Discretionary Grants,Schools Learn Res - Specialised Edu Equip,53.80,CONNEVANS LTD
Revenue,Childrens Services,5105643512,19.08.2015,Special Discretionary Grants,Schools Learn Res - Specialised Edu Equip,31.50,CONNEVANS LTD
Revenue,Childrens Services,5105643512,19.08.2015,Special Discretionary Grants,Schools Learn Res - Specialised Edu Equip,22.75,CONNEVANS LTD
Revenue,Place,5105646162,14.08.2015,Coroner,Transport of Clients,400.00,CO-OPERATIVE FUNERALCARE LTD
Revenue,Adult Services,5105644750,12.08.2015,Mental Health Residential Care,Charges from Independent Providers,"1,700.44",CORNELIA HEIGHTS CARE HOME
